Transaction Number,Service - Fund ,Service  - Function ,Service - Cost Centre,Expense Type ,Expense Description,Supplier Name,Supplier Post Code (first 4 digits),Payment Date,Amount �
36214234,Physical Support,Adults,Physical Support 18 - 64,3rd Party Payments,Personal Budget - Domiciliary care,247 HOME CARE LTD,SN5 ,29/07/2022,"1,140.18"
35109243,Physical Support,Adults,Physical Support 18 - 64,3rd Party Payments,Personal Budget - Domiciliary care,247 HOME CARE LTD,SN5 ,22/07/2022,-3.80
34826235,Physical Support,Adults,Physical Support 18 - 64,3rd Party Payments,Personal Budget - Domiciliary care,247 HOME CARE LTD,SN5 ,20/07/2022,"1,140.18"
32223233,Physical Support,Adults,Physical Support 18 - 64,3rd Party Payments,Personal Budget - Domiciliary care,247 HOME CARE LTD,SN5 ,08/07/2022,"1,140.18"
34826235,Physical Support,Adults,Physical Support 18 - 64,3rd Party Payments,Personal Budget - Domiciliary care,247 HOME CARE LTD,SN5 ,20/07/2022,-3.80
30896268,Physical Support,Adults,Physical Support 18 - 64,3rd Party Payments,Personal Budget - Domiciliary care,247 HOME CARE LTD,SN5 ,01/07/2022,"1,140.18"
36214234,Physical Support,Adults,Physical Support 18 - 64,3rd Party Payments,Personal Budget - Domiciliary care,247 HOME CARE LTD,SN5 ,29/07/2022,-3.80
35109243,Physical Support,Adults,Physical Support 18 - 64,3rd Party Payments,Personal Budget - Domiciliary care,247 HOME CARE LTD,SN5 ,22/07/2022,"1,140.18"
32223233,Physical Support,Adults,Physical Support 18 - 64,3rd Party Payments,Personal Budget - Domiciliary care,247 HOME CARE LTD,SN5 ,08/07/2022,-3.80
30896268,Physical Support,Adults,Physical Support 18 - 64,3rd Party Payments,Personal Budget - Domiciliary care,247 HOME CARE LTD,SN5 ,01/07/2022,-3.80
32316233,School Transport,Inclusion and Achievement,Special Educational Needs Transport,Transport Costs,Home to School Transport,4K TRAVEL,SN2 ,06/07/2022,"2,483.33"
32314233,School Transport,Inclusion and Achievement,Special Educational Needs Transport,Transport Costs,Home to School Transport,4K TRAVEL,SN2 ,06/07/2022,"4,015.33"
32312233,School Transport,Inclusion and Achievement,Special Educational Needs Transport,Employees,Temporary / Agency - by Accounts Payable,4K TRAVEL,SN2 ,06/07/2022,950.00
33223233,Highways & Transport,Highways & Transport,Traffic Signalling,Employees,Temporary / Agency - by Accounts Payable,4WAY CONSULTING LTD,SK4 ,13/07/2022,450.95
32746233,Property Service Charged Properties,Property,Service Charged - Carriageworks,Premises Costs,Waste,707 LTD T/A CLICK WASTE,NG24,08/07/2022,"2,620.30"
32745233,Property Service Charged Properties,Property,Service Charged - Carriageworks,Premises Costs,Waste,707 LTD T/A CLICK WASTE,NG24,08/07/2022,"1,958.20"
34973233,Human Resources and Organisational Development,"People, Culture and Organisational Resilience",Organisational Development,Employees,Training,A PLUS SAFETY & TRAINING SERVICES LTD,SN3 ,20/07/2022,"1,098.00"
32565233,Sheltered Accomodation,Special Services,Sheltered Housing Management General,Employees,Training,A PLUS SAFETY & TRAINING SERVICES LTD,SN3 ,08/07/2022,420.00
35540241,Homelessness and Travellers,Housing Services,Leased Private Managed Accommodation,Transfer Payments,Payment of Costs,REDACTED PERSONAL DATA,SN3 ,25/07/2022,800.00
35539233,Homelessness and Travellers,Housing Services,Leased Private Managed Accommodation,Transfer Payments,Payment of Costs,REDACTED PERSONAL DATA,SN3 ,25/07/2022,800.00
37064233,Responsive Repairs,Repairs,Responsive Repairs,3rd Party Payments,Contract Payments,ABBEY ELECTRICAL (SWINDON) LTD T/A ABBEY ELECTRICAL UK,SN6 ,29/07/2022,535.04
33276233,High Needs Block,DSG Skills and Attainment,SEN Resourcing Assessment Panel,3rd Party Payments,Top up funding - Academies and Free Schools Pre 16,ABBEY MEADS COMMUNITY PRIMARY SCHOOL,SN25,13/07/2022,"7,558.08"
33372233,Early Years Block,DSG Skills and Attainment,Free Nursery Education Commissioning - three & four  year olds,3rd Party Payments,Contracts - Child Care,ABBEY MEADS COMMUNITY PRIMARY SCHOOL,SN25,13/07/2022,"11,273.04"
34226233,DSG Other Funding,DSG Skills and Attainment,LAC pupil premium,Supplies and Services,Services,ABBEY MEADS COMMUNITY PRIMARY SCHOOL,SN25,18/07/2022,650.00
31979233,Public Health,Public Health,Sexual Health & Health Protection Budget,3rd Party Payments,Contract Payments,ABBEY MEADS MEDICAL PRACTICE,SN25,06/07/2022,504.00
35299233,Public Health,Public Health,Smoking & Tobacco,3rd Party Payments,Contract Payments,ABBEY MEADS MEDICAL PRACTICE,SN25,22/07/2022,600.00
32300274,Physical Support,Adults,Physical Support 18 - 64,3rd Party Payments,Personal Budget - Domiciliary care,ABICARE SERVICES LTD,BS32,06/07/2022,571.78
34825233,Physical Support,Adults,Physical Support 18 - 64,3rd Party Payments,Personal Budget - Domiciliary care,ABICARE SERVICES LTD,BS32,20/07/2022,571.78
35997234,Physical Support,Adults,Physical Support 18 - 64,3rd Party Payments,Personal Budget - Domiciliary care,ABICARE SERVICES LTD,BS32,25/07/2022,571.78
36000233,Physical Support,Adults,Physical Support 18 - 64,3rd Party Payments,Personal Budget - Domiciliary care,ABICARE SERVICES LTD (LIVE IN),SP2 ,25/07/2022,988.68
32300281,Memory & Cognition,Adults,Support for Memory and Cognition 65 and over,3rd Party Payments,Personal Budget - Domiciliary care,ABICARE SERVICES LTD (LIVE IN),SP2 ,06/07/2022,"1,106.00"
32300282,Mental Health,Adults,Mental Health 65 and over,3rd Party Payments,Personal Budget - Domiciliary care,ABICARE SERVICES LTD (LIVE IN),SP2 ,06/07/2022,"1,106.00"
36001233,Memory & Cognition,Adults,Support for Memory and Cognition 65 and over,3rd Party Payments,Personal Budget - Domiciliary care,ABICARE SERVICES LTD (LIVE IN),SP2 ,25/07/2022,"1,106.00"
32300279,Mental Health,Adults,Mental Health 65 and over,3rd Party Payments,Personal Budget - Domiciliary care,ABICARE SERVICES LTD (LIVE IN),SP2 ,06/07/2022,988.68
34825237,Mental Health,Adults,Mental Health 65 and over,3rd Party Payments,Personal Budget - Domiciliary care,ABICARE SERVICES LTD (LIVE IN),SP2 ,20/07/2022,988.68
34825238,Memory & Cognition,Adults,Support for Memory and Cognition 65 and over,3rd Party Payments,Personal Budget - Domiciliary care,ABICARE SERVICES LTD (LIVE IN),SP2 ,20/07/2022,"1,106.00"
34826234,Physical Support,Adults,Physical Support 18 - 64,3rd Party Payments,Personal Budget - Domiciliary care,ABICARE SERVICES LTD (LIVE IN),SP2 ,20/07/2022,988.68
35999233,Mental Health,Adults,Mental Health 65 and over,3rd Party Payments,Personal Budget - Domiciliary care,ABICARE SERVICES LTD (LIVE IN),SP2 ,25/07/2022,988.68
32300280,Physical Support,Adults,Physical Support 18 - 64,3rd Party Payments,Personal Budget - Domiciliary care,ABICARE SERVICES LTD (LIVE IN),SP2 ,06/07/2022,988.68
34826233,Mental Health,Adults,Mental Health 65 and over,3rd Party Payments,Personal Budget - Domiciliary care,ABICARE SERVICES LTD (LIVE IN),SP2 ,20/07/2022,"1,106.00"
36001234,Mental Health,Adults,Mental Health 65 and over,3rd Party Payments,Personal Budget - Domiciliary care,ABICARE SERVICES LTD (LIVE IN),SP2 ,25/07/2022,"1,106.00"
31636233,Streetsmart,Streetsmart,Waterside Fleet Hires,Transport Costs,Vehicle Hire / Contract,ACCESS HIRE NATIONWIDE,WF6 ,04/07/2022,"1,264.29"
31635233,Streetsmart,Streetsmart,Waterside Fleet Hires,Transport Costs,Vehicle Hire / Contract,ACCESS HIRE NATIONWIDE,WF6 ,04/07/2022,"1,401.43"
34109239,Physical Support,Adults,Physical Support 18 - 64,3rd Party Payments,Residential Care,ACCOMPLISH,B45 ,15/07/2022,"5,817.12"
34109239,Physical Support,Adults,Physical Support 18 - 64,Income,Client Contribution - Residential,ACCOMPLISH,B45 ,15/07/2022,-414.20
33813233,Social Care,"Children, Families and Community Health Services",External Placements,3rd Party Payments,Independent Fostering Agency Placements,ACTION FOR CHILDREN,WD18,15/07/2022,"3,072.90"
33815233,Social Care,"Children, Families and Community Health Services",External Placements,3rd Party Payments,Independent Fostering Agency Placements,ACTION FOR CHILDREN,WD18,15/07/2022,"3,542.10"
33812233,Social Care,"Children, Families and Community Health Services",External Placements,3rd Party Payments,Independent Fostering Agency Placements,ACTION FOR CHILDREN,WD18,15/07/2022,"3,068.70"
33814233,Social Care,"Children, Families and Community Health Services",External Placements,3rd Party Payments,Independent Fostering Agency Placements,ACTION FOR CHILDREN,WD18,15/07/2022,"3,542.10"
33309233,High Needs Block,DSG Skills and Attainment,SEN Resourcing Assessment Panel,3rd Party Payments,Top up funding - Academies and Free Schools Post 16,ACTIVATE LEARNING EDUCATION TRUST,OX1 ,13/07/2022,"2,372.83"
33300233,High Needs Block,DSG Skills and Attainment,SEN Resourcing Assessment Panel,3rd Party Payments,Top up funding - Academies and Free Schools Pre 16,ACTIVATE LEARNING EDUCATION TRUST,OX1 ,13/07/2022,570.42
35785233,Social Care,"Children, Families and Community Health Services",Unaccompanied Asylum Seeking Children (UASC),3rd Party Payments,Independent Fostering Agency Placements,ACTIVE CARE SOLUTIONS LTD,B60 ,22/07/2022,"4,345.58"
37163234,Social Care,"Children, Families and Community Health Services",External Placements,3rd Party Payments,Independent Fostering Agency Placements,ACTIVE CARE SOLUTIONS LTD,B60 ,29/07/2022,"3,365.36"
37162238,Social Care,"Children, Families and Community Health Services",External Placements,3rd Party Payments,Independent Fostering Agency Placements,ACTIVE CARE SOLUTIONS LTD,B60 ,29/07/2022,"3,277.01"
35783233,Social Care,"Children, Families and Community Health Services",External Placements,3rd Party Payments,Independent Fostering Agency Placements,ACTIVE CARE SOLUTIONS LTD,B60 ,22/07/2022,"6,394.68"
37031233,Learning Disabilities,Adults,Learning Disability 26 - 64,Transfer Payments,Personal Budget - Direct Payments - Domiciliary Care,REDACTED PERSONAL DATA,SN4 ,29/07/2022,"1,146.29"
37053474,Learning Disabilities,Adults,Learning Disability 26 - 64,Transfer Payments,Personal Budget - Direct Payments - Domiciliary Care,REDACTED PERSONAL DATA,SN3 ,29/07/2022,"2,026.16"
35540256,Homelessness and Travellers,Housing Services,Leased Private Managed Accommodation,Transfer Payments,Payment of Costs,ADVANCE HOUSING & SUPPORT LTD,OX28,25/07/2022,"1,074.00"
35720233,Care Management & Safeguarding,Adults,Mental Capacity & DOL,3rd Party Payments,Contracts - Social Care,ADVENT ADVOCACY LTD,DL1 ,22/07/2022,766.04
32762233,Property Management,Property,Corporate Repairs & Maintenance Programme,Premises Costs,Repairs - Buildings,AFFLECK ELECTRICAL LTD,SN3 ,08/07/2022,"4,988.00"
33481233,Streetsmart,Streetsmart,Waterside Depot,Premises Costs,Maintenance - Buildings,AG AUTOMATION LTD,SN8 ,13/07/2022,958.00
36093233,Social Care,"Children, Families and Community Health Services",CP & CIN Social Work - South,3rd Party Payments,Personal Needs,AGILE QUARTER ACCOMMODATION LTD,EC1V,25/07/2022,"1,000.00"
36095233,Social Care,"Children, Families and Community Health Services",CP & CIN Social Work - South,3rd Party Payments,Personal Needs,AGILE QUARTER ACCOMMODATION LTD,EC1V,25/07/2022,"1,000.00"
31873233,Museums & Heritage,Culture & Heritage,Steam:Education & Curatorial,Supplies and Services,Materials,AJ PRODUCTS (UK) LTD,GU14,04/07/2022,750.00
32376233,School Transport,Inclusion and Achievement,Special Educational Needs Transport,Employees,Temporary / Agency - by Accounts Payable,AKCESS LTD,SN2 ,06/07/2022,874.00
32728233,Learning Disabilities,Adults,Learning Disability 26 - 64,Transport Costs,Home to Centre Transport,AKCESS LTD,SN2 ,08/07/2022,"18,229.17"
32728233,Physical Support,Adults,Physical Support 65 and over,Transport Costs,Home to Centre Transport,AKCESS LTD,SN2 ,08/07/2022,"5,208.33"
32304234,School Transport,Inclusion and Achievement,Special Educational Needs Transport,Transport Costs,Home to School Transport,AKCESS LTD,SN2 ,06/07/2022,"63,666.67"
32375233,School Transport,Inclusion and Achievement,Special Educational Needs Transport,Employees,Temporary / Agency - by Accounts Payable,AKCESS LTD,SN2 ,06/07/2022,"2,850.00"
32728233,Learning Disabilities,Adults,Learning Disability 26 - 64,Transport Costs,Home to Centre Transport,AKCESS LTD,SN2 ,08/07/2022,"5,208.33"
32728233,Physical Support,Adults,Physical Support 65 and over,Transport Costs,Home to Centre Transport,AKCESS LTD,SN2 ,08/07/2022,"2,604.17"
32301233,School Transport,Inclusion and Achievement,Special Educational Needs Transport,Transport Costs,Home to School Transport,AKCESS LTD,SN2 ,06/07/2022,"2,470.00"
32308233,School Transport,Inclusion and Achievement,Special Educational Needs Transport,Employees,Temporary / Agency - by Accounts Payable,AKCESS LTD,SN2 ,06/07/2022,"1,995.00"
32308233,School Transport,Inclusion and Achievement,Special Educational Needs Transport,Employees,Temporary / Agency - by Accounts Payable,AKCESS LTD,SN2 ,06/07/2022,"3,800.00"
32304233,School Transport,Inclusion and Achievement,Mainstream School Transport,Transport Costs,Home to School Transport,AKCESS LTD,SN2 ,06/07/2022,"1,889.58"
32307233,School Transport,Inclusion and Achievement,Mainstream School Transport,Transport Costs,Home to School Transport,AKCESS LTD,SN2 ,06/07/2022,"2,580.83"
33758233,Travel,Highways & Transport,Public Transport,3rd Party Payments,Contract Payments,AKCESS LTD,SN2 ,13/07/2022,"14,680.14"
32305233,School Transport,Inclusion and Achievement,Special Educational Needs Transport,Transport Costs,Home to School Transport,AKCESS LTD,SN2 ,06/07/2022,"17,690.83"
32304233,School Transport,Inclusion and Achievement,Special Educational Needs Transport,Transport Costs,Home to School Transport,AKCESS LTD,SN2 ,06/07/2022,"92,589.19"
32728233,Physical Support,Adults,Physical Support 65 and over,Transport Costs,Home to Centre Transport,AKCESS LTD,SN2 ,08/07/2022,"5,208.33"
36742233,Responsive Repairs,Repairs,Responsive Repairs,Supplies and Services,Materials,AKW MEDI-CARE LTD,WR9 ,29/07/2022,22.78
36742233,Responsive Repairs,Repairs,Responsive Repairs,Supplies and Services,Materials,AKW MEDI-CARE LTD,WR9 ,29/07/2022,441.66
32018236,Social Care,"Children, Families and Community Health Services",Placement - Care Leaver Team,3rd Party Payments,Supported Living,ALABARE CHRISTIAN DAY CENTRES,SP2 ,06/07/2022,"1,750.62"
31910233,Regeneration Schemes,Regeneration Schemes,Capital Scheme Buffer,Capital,Professional Fees,ALAN BAXTER LIMITED,EC1M,04/07/2022,"6,600.00"
32053233,Senior Management Team,"Children, Families and Community Health Services",Family Safeguarding Model,Supplies and Services,Services,ALASDAIR CANT & ASSOCIATES LIMITED,CB2 ,06/07/2022,"5,200.00"
31856234,Social Care,"Children, Families and Community Health Services",Placement Fostering Service,3rd Party Payments,Foster Care Basic Payments,REDACTED PERSONAL DATA,SN4 ,04/07/2022,520.20
34578234,Social Care,"Children, Families and Community Health Services",Placement Fostering Service,3rd Party Payments,Foster Care Basic Payments,REDACTED PERSONAL DATA,SN4 ,18/07/2022,520.20
31856234,Social Care,"Children, Families and Community Health Services",Placement Fostering Service,3rd Party Payments,Carers Skills Payments - Core,REDACTED PERSONAL DATA,SN4 ,04/07/2022,116.00
34578234,Social Care,"Children, Families and Community Health Services",Placement Fostering Service,3rd Party Payments,Carers Skills Payments - Core,REDACTED PERSONAL DATA,SN4 ,18/07/2022,116.00
34359233,Learning Disabilities,Adults,Learning Disability 26 - 64,3rd Party Payments,Supported Accommodation Scheme,REDACTED PERSONAL DATA,SN2 ,20/07/2022,"2,444.96"
37053493,Learning Disabilities,Adults,Learning Disability 26 - 64,Transfer Payments,Personal Budget - Direct Payments - Domiciliary Care,REDACTED PERSONAL DATA,SN25,29/07/2022,973.45
33515233,Early Years Block,DSG Skills and Attainment,Free Nursery Education Commissioning - three & four  year olds,3rd Party Payments,Contracts - Child Care,ALFRESCO CHILDCARE,SN6 ,13/07/2022,"10,041.32"
33515234,Early Years Block,DSG Skills and Attainment,Free Nursery Education Commissioning - two year olds,3rd Party Payments,Contracts - Child Care,ALFRESCO CHILDCARE,SN6 ,13/07/2022,"2,143.00"
36215233,Early Help,"Children, Families and Community Health Services","Holiday, Activities & Food Grant",3rd Party Payments,Contracts - Child Care,ALFRESCO CHILDCARE,SN6 ,27/07/2022,"1,458.00"
34390233,Learning Disabilities,Adults,Learning Disability 26 - 64,3rd Party Payments,Supported Accommodation Scheme,REDACTED PERSONAL DATA,SN1 ,20/07/2022,"2,444.96"
34391233,Learning Disabilities,Adults,Learning Disability 26 - 64,3rd Party Payments,Supported Accommodation Scheme,REDACTED PERSONAL DATA,SN2 ,20/07/2022,"1,671.04"
34391233,Learning Disabilities,Adults,Learning Disability 26 - 64,3rd Party Payments,Supported Accommodation Scheme,REDACTED PERSONAL DATA,SN2 ,20/07/2022,"1,707.36"
34391233,Learning Disabilities,Adults,Learning Disability 26 - 64,3rd Party Payments,Supported Accommodation Scheme,REDACTED PERSONAL DATA,SN2 ,20/07/2022,"1,985.40"
37033233,Learning Disabilities,Adults,Learning Disability 26 - 64,Transfer Payments,Personal Budget - Direct Payments - Domiciliary Care,REDACTED PERSONAL DATA,SN5 ,29/07/2022,"8,839.97"
33515238,Early Years Block,DSG Skills and Attainment,Free Nursery Education Commissioning - two year olds,3rd Party Payments,Contracts - Child Care,REDACTED PERSONAL DATA,SN25,13/07/2022,"1,904.40"
33515239,Early Years Block,DSG Skills and Attainment,Free Nursery Education Commissioning - three & four  year olds,3rd Party Payments,Contracts - Child Care,REDACTED PERSONAL DATA,SN25,13/07/2022,"1,490.84"
33375234,Early Years Block,DSG Skills and Attainment,Free Nursery Education Commissioning - three & four  year olds,3rd Party Payments,Contracts - Child Care,REDACTED PERSONAL DATA,SN1 ,13/07/2022,708.76
33375235,Early Years Block,DSG Skills and Attainment,Free Nursery Education Commissioning - three & four  year olds,3rd Party Payments,Contracts - Child Care,REDACTED PERSONAL DATA,SN1 ,13/07/2022,857.89
37053376,Learning Disabilities,Adults,Learning Disability 26 - 64,Transfer Payments,Personal Budget - Direct Payments - Domiciliary Care,REDACTED PERSONAL DATA,SN4 ,29/07/2022,"3,427.95"
34927234,Environmental & Regulatory,Highways & Transport,Shaw Farm Landfill Site,Supplies and Services,Testing / Inspection,ALLBUILD BUILDING & LANDSCAPING SERVICES,SN25,20/07/2022,"1,250.00"
34536233,Homelessness and Travellers,Housing Services,Leased Private Managed Accommodation,Transfer Payments,Payment of Costs,ALLEN & HARRIS,SN1 ,18/07/2022,663.00
34976244,Streetsmart,Streetsmart,Waterside Fleet Workshops,Supplies and Services,Equipment,ALLIANCE AUTOMOTIVE UK T/A BRAYMARC,BD4 ,20/07/2022,830.16
33015233,Streetsmart,Streetsmart,Waterside Fleet Workshops,Supplies and Services,Materials,ALLIANCE AUTOMOTIVE UK T/A BRAYMARC,BD4 ,13/07/2022,150.00
34976244,Streetsmart,Streetsmart,Waterside Fleet Workshops,Supplies and Services,Equipment,ALLIANCE AUTOMOTIVE UK T/A BRAYMARC,BD4 ,20/07/2022,150.00
33015233,Streetsmart,Streetsmart,Waterside Fleet Workshops,Supplies and Services,Materials,ALLIANCE AUTOMOTIVE UK T/A BRAYMARC,BD4 ,13/07/2022,830.16
32875233,Landlord Services,Supervision & Management,Estate Management Team,Supplies and Services,Contracts,ALLPAY-NET LIMITED,HR1 ,11/07/2022,"1,891.39"
33516234,Early Years Block,DSG Skills and Attainment,Free Nursery Education Commissioning - two year olds,3rd Party Payments,Contracts - Child Care,ALPHA PRE-SCHOOL,SN5 ,13/07/2022,"2,368.08"
33516233,Early Years Block,DSG Skills and Attainment,Free Nursery Education Commissioning - three & four  year olds,3rd Party Payments,Contracts - Child Care,ALPHA PRE-SCHOOL,SN5 ,13/07/2022,"1,981.73"
32323233,Highways Schemes,Strategic Planning and Highways,"Rapid Transit - QBC Wichelstowe, North and UTMC",Capital,Professional Fees,ALUN GRIFFITHS (CONTRACTORS ) LTD,NP7 ,06/07/2022,"27,334.99"
36472233,Highways Schemes,Strategic Planning and Highways,Wichelstowe Southern Access,Capital,Contractor Payments,ALUN GRIFFITHS (CONTRACTORS ) LTD,NP7 ,27/07/2022,"152,838.74"
35802233,"Volutary Sector, Equipment and Carers",Adults,Voluntary Sector Adults,3rd Party Payments,Contracts - Social Care,ALZHEIMERS SOCIETY,PL2 ,22/07/2022,"2,433.00"
35803233,"Volutary Sector, Equipment and Carers",Adults,Voluntary Sector Adults,3rd Party Payments,Contracts - Social Care,ALZHEIMERS SOCIETY,PL2 ,22/07/2022,"2,433.00"
35804233,"Volutary Sector, Equipment and Carers",Adults,Voluntary Sector Adults,3rd Party Payments,Contracts - Social Care,ALZHEIMERS SOCIETY,PL2 ,22/07/2022,"2,433.00"
35954233,"Volutary Sector, Equipment and Carers",Adults,Voluntary Sector Adults,3rd Party Payments,Contracts - Social Care,ALZHEIMERS SOCIETY,PL2 ,25/07/2022,"2,433.00"
34827233,Disabled Children,"Children, Families and Community Health Services",DCT Daytime Short Breaks,Transfer Payments,Personal Budget - Direct Payments - Other,REDACTED PERSONAL DATA,SN4 ,20/07/2022,532.00
31623244,Social Care,"Children, Families and Community Health Services",External Placements,3rd Party Payments,Parent & Child Placements,AMBER FAMILY LTD,PR8 ,01/07/2022,"16,363.00"
33831233,Social Care,"Children, Families and Community Health Services",External Placements,3rd Party Payments,Parent & Child Placements,AMBER FAMILY LTD,PR8 ,15/07/2022,"2,542.00"
33830233,Social Care,"Children, Families and Community Health Services",External Placements,3rd Party Payments,Parent & Child Placements,AMBER FAMILY LTD,PR8 ,15/07/2022,"16,928.00"
35770233,Social Care,"Children, Families and Community Health Services",External Placements,3rd Party Payments,Residential Care,AMEGREEN CHILDREN'S SERVICES LTD,RG7 ,22/07/2022,"17,437.50"
31587233,Responsive Repairs,Repairs,Responsive Repairs,Premises Costs,Repairs - Buildings,AMELIO UTILITIES(GLOU) LTD T/A 3 COUNTIES DRAIN SERVICES,GL1 ,01/07/2022,287.29
32629233,Responsive Repairs,Repairs,Responsive Repairs,Premises Costs,Repairs - Buildings,AMELIO UTILITIES(GLOU) LTD T/A 3 COUNTIES DRAIN SERVICES,GL1 ,08/07/2022,159.94
31587233,Responsive Repairs,Repairs,Responsive Repairs,Premises Costs,Repairs - Buildings,AMELIO UTILITIES(GLOU) LTD T/A 3 COUNTIES DRAIN SERVICES,GL1 ,01/07/2022,"1,612.66"
32629233,Responsive Repairs,Repairs,Responsive Repairs,Premises Costs,Repairs - Buildings,AMELIO UTILITIES(GLOU) LTD T/A 3 COUNTIES DRAIN SERVICES,GL1 ,08/07/2022,318.37
32629233,Responsive Repairs,Repairs,Responsive Repairs,Premises Costs,Repairs - Buildings,AMELIO UTILITIES(GLOU) LTD T/A 3 COUNTIES DRAIN SERVICES,GL1 ,08/07/2022,373.19
31587233,Responsive Repairs,Repairs,Responsive Repairs,Premises Costs,Repairs - Buildings,AMELIO UTILITIES(GLOU) LTD T/A 3 COUNTIES DRAIN SERVICES,GL1 ,01/07/2022,159.94
31587233,Responsive Repairs,Repairs,Responsive Repairs,Premises Costs,Repairs - Buildings,AMELIO UTILITIES(GLOU) LTD T/A 3 COUNTIES DRAIN SERVICES,GL1 ,01/07/2022,127.35
31587233,Responsive Repairs,Repairs,Responsive Repairs,Premises Costs,Repairs - Buildings,AMELIO UTILITIES(GLOU) LTD T/A 3 COUNTIES DRAIN SERVICES,GL1 ,01/07/2022,"1,527.17"
31587233,Responsive Repairs,Repairs,Responsive Repairs,Premises Costs,Repairs - Buildings,AMELIO UTILITIES(GLOU) LTD T/A 3 COUNTIES DRAIN SERVICES,GL1 ,01/07/2022,319.88
32629233,Responsive Repairs,Repairs,Responsive Repairs,Premises Costs,Repairs - Buildings,AMELIO UTILITIES(GLOU) LTD T/A 3 COUNTIES DRAIN SERVICES,GL1 ,08/07/2022,"3,499.19"
32629233,Responsive Repairs,Repairs,Responsive Repairs,Premises Costs,Repairs - Buildings,AMELIO UTILITIES(GLOU) LTD T/A 3 COUNTIES DRAIN SERVICES,GL1 ,08/07/2022,"3,352.33"
32629233,Responsive Repairs,Repairs,Responsive Repairs,Premises Costs,Repairs - Buildings,AMELIO UTILITIES(GLOU) LTD T/A 3 COUNTIES DRAIN SERVICES,GL1 ,08/07/2022,"1,918.29"
35971233,Highways & Transport,Highways & Transport,Project Delivery,Supplies and Services,Services,AMEY OW LTD,L19 ,25/07/2022,"57,139.87"
31522233,Highways & Transport,Highways & Transport,Project Delivery,Supplies and Services,Services,AMEY OW LTD,L19 ,01/07/2022,"38,622.32"
33054233,"Volutary Sector, Equipment and Carers",Adults,Carers Short Term Breaks - Adults,3rd Party Payments,Carers,REDACTED PERSONAL DATA,SN2 ,13/07/2022,500.00
37053245,Mental Health,Adults,Mental Health 18-64,Transfer Payments,Personal Budget - Direct Payments - Domiciliary Care,REDACTED PERSONAL DATA,SN25,29/07/2022,555.51
33376239,Early Years Block,DSG Skills and Attainment,Free Nursery Education Commissioning - three & four  year olds,3rd Party Payments,Contracts - Child Care,REDACTED PERSONAL DATA,SN25,13/07/2022,916.50
33518235,Early Years Block,DSG Skills and Attainment,Free Nursery Education Commissioning - three & four  year olds,3rd Party Payments,Contracts - Child Care,REDACTED PERSONAL DATA,SN3 ,13/07/2022,642.72
35602235,Social Care,"Children, Families and Community Health Services",Legal Fees,Supplies and Services,Fees,REDACTED PERSONAL DATA,EC4Y,22/07/2022,800.00
35505239,Homelessness and Travellers,Housing Services,Leased Private Managed Accommodation,Transfer Payments,Payment of Costs,REDACTED PERSONAL DATA,SN26,25/07/2022,675.00
Corporate Card Transaction,Social Care,"Children, Families and Community Health Services",Placement - Care Leaver Team,Transfer Payments,Grants to Individuals,Amznmktplace,,29/06/2022,580.83
35414233,Social Care,"Children, Families and Community Health Services",Legal Fees,Supplies and Services,Fees,ANDY MORGAN-SMITH (SALISBURY) LTD,SP1 ,22/07/2022,"1,602.00"
33562249,Early Years Block,DSG Skills and Attainment,Free Nursery Education Commissioning - three & four  year olds,3rd Party Payments,Contracts - Child Care,REDACTED PERSONAL DATA,SN25,13/07/2022,"23,923.03"
33563233,Early Years Block,DSG Skills and Attainment,Free Nursery Education Commissioning - two year olds,3rd Party Payments,Contracts - Child Care,REDACTED PERSONAL DATA,SN25,13/07/2022,"6,325.92"
35540244,Homelessness and Travellers,Housing Services,Leased Private Managed Accommodation,Transfer Payments,Payment of Costs,ANGELVIEW PROPERTIES LTD,ALBO,25/07/2022,548.51
35540243,Homelessness and Travellers,Housing Services,Leased Private Managed Accommodation,Transfer Payments,Payment of Costs,ANGELVIEW PROPERTIES LTD,ALBO,25/07/2022,548.45
33364233,Planned Maintenance Programme,HRA Capital Financing,Windows,Capital,Contractor Payments,ANGLIAN BUILDING PRODUCTS LIMITED,NR6 ,13/07/2022,"1,624.55"
33364233,Planned Maintenance Programme,HRA Capital Financing,Windows,Capital,Contractor Payments,ANGLIAN BUILDING PRODUCTS LIMITED,NR6 ,13/07/2022,"1,743.00"
33364233,Planned Maintenance Programme,HRA Capital Financing,Windows,Capital,Contractor Payments,ANGLIAN BUILDING PRODUCTS LIMITED,NR6 ,13/07/2022,"2,178.81"
33364233,Planned Maintenance Programme,HRA Capital Financing,Windows,Capital,Contractor Payments,ANGLIAN BUILDING PRODUCTS LIMITED,NR6 ,13/07/2022,"1,635.84"
33364233,Planned Maintenance Programme,HRA Capital Financing,Windows,Capital,Contractor Payments,ANGLIAN BUILDING PRODUCTS LIMITED,NR6 ,13/07/2022,"2,101.38"
33364233,Planned Maintenance Programme,HRA Capital Financing,Windows,Capital,Contractor Payments,ANGLIAN BUILDING PRODUCTS LIMITED,NR6 ,13/07/2022,"1,825.36"
33364233,Planned Maintenance Programme,HRA Capital Financing,Windows,Capital,Contractor Payments,ANGLIAN BUILDING PRODUCTS LIMITED,NR6 ,13/07/2022,654.17
33364233,Planned Maintenance Programme,HRA Capital Financing,Windows,Capital,Contractor Payments,ANGLIAN BUILDING PRODUCTS LIMITED,NR6 ,13/07/2022,"1,505.77"
33364233,Planned Maintenance Programme,HRA Capital Financing,Windows,Capital,Contractor Payments,ANGLIAN BUILDING PRODUCTS LIMITED,NR6 ,13/07/2022,"1,452.09"
33364233,Planned Maintenance Programme,HRA Capital Financing,Windows,Capital,Contractor Payments,ANGLIAN BUILDING PRODUCTS LIMITED,NR6 ,13/07/2022,762.24
33364233,Planned Maintenance Programme,HRA Capital Financing,Windows,Capital,Contractor Payments,ANGLIAN BUILDING PRODUCTS LIMITED,NR6 ,13/07/2022,"1,511.99"
33364233,Planned Maintenance Programme,HRA Capital Financing,Windows,Capital,Contractor Payments,ANGLIAN BUILDING PRODUCTS LIMITED,NR6 ,13/07/2022,622.05
33364233,Planned Maintenance Programme,HRA Capital Financing,Windows,Capital,Contractor Payments,ANGLIAN BUILDING PRODUCTS LIMITED,NR6 ,13/07/2022,720.95
33364233,Planned Maintenance Programme,HRA Capital Financing,Windows,Capital,Contractor Payments,ANGLIAN BUILDING PRODUCTS LIMITED,NR6 ,13/07/2022,"1,558.92"
33364233,Planned Maintenance Programme,HRA Capital Financing,Windows,Capital,Contractor Payments,ANGLIAN BUILDING PRODUCTS LIMITED,NR6 ,13/07/2022,"1,152.30"
33364233,Planned Maintenance Programme,HRA Capital Financing,Windows,Capital,Contractor Payments,ANGLIAN BUILDING PRODUCTS LIMITED,NR6 ,13/07/2022,"1,518.71"
33364233,Planned Maintenance Programme,HRA Capital Financing,Windows,Capital,Contractor Payments,ANGLIAN BUILDING PRODUCTS LIMITED,NR6 ,13/07/2022,"1,732.51"
33364233,Planned Maintenance Programme,HRA Capital Financing,Windows,Capital,Contractor Payments,ANGLIAN BUILDING PRODUCTS LIMITED,NR6 ,13/07/2022,"1,832.21"
33364233,Planned Maintenance Programme,HRA Capital Financing,Windows,Capital,Contractor Payments,ANGLIAN BUILDING PRODUCTS LIMITED,NR6 ,13/07/2022,"1,894.75"
33364233,Planned Maintenance Programme,HRA Capital Financing,Windows,Capital,Contractor Payments,ANGLIAN BUILDING PRODUCTS LIMITED,NR6 ,13/07/2022,727.03
33364233,Planned Maintenance Programme,HRA Capital Financing,Windows,Capital,Contractor Payments,ANGLIAN BUILDING PRODUCTS LIMITED,NR6 ,13/07/2022,"1,152.80"
37053476,Physical Support,Adults,Physical Support 18 - 64,Transfer Payments,Personal Budget - Direct Payments - Domiciliary Care,REDACTED PERSONAL DATA,SN25,29/07/2022,"2,385.10"
35618233,HRA Overheads,Supervision & Management,Admin / Management General,Supplies and Services,Civic Services,AON UK LIMITED,EC3V,22/07/2022,"3,268.80"
32366235,Supported Employment,Housing Services,Community Meals,Supplies and Services,Food,APETITO LIMITED,BA14,06/07/2022,"1,159.51"
32366234,Supported Employment,Housing Services,Community Meals,Supplies and Services,Food,APETITO LIMITED,BA14,06/07/2022,"1,029.19"
33624233,Responsive Repairs,Repairs,Responsive Repairs,3rd Party Payments,Contract Payments,APEX SCAFFOLDING SERVICES,SN2 ,13/07/2022,649.14
32407234,Responsive Repairs,Repairs,Responsive Repairs,3rd Party Payments,Contract Payments,APEX SCAFFOLDING SERVICES,SN2 ,08/07/2022,480.00
31714233,Responsive Repairs,Repairs,Responsive Repairs,3rd Party Payments,Contract Payments,APEX SCAFFOLDING SERVICES,SN2 ,01/07/2022,"1,253.80"
31590234,Responsive Repairs,Repairs,Responsive Repairs,Supplies and Services,Materials,APEX SCAFFOLDING SERVICES,SN2 ,01/07/2022,55.00
32628234,Responsive Repairs,Repairs,Responsive Repairs,3rd Party Payments,Contract Payments,APEX SCAFFOLDING SERVICES,SN2 ,08/07/2022,585.00
33626233,Responsive Repairs,Repairs,Responsive Repairs,3rd Party Payments,Contract Payments,APEX SCAFFOLDING SERVICES,SN2 ,13/07/2022,"1,100.00"
35181234,Responsive Repairs,Repairs,Responsive Repairs,3rd Party Payments,Contract Payments,APEX SCAFFOLDING SERVICES,SN2 ,20/07/2022,775.00
31590233,Responsive Repairs,Repairs,Responsive Repairs,3rd Party Payments,Contract Payments,APEX SCAFFOLDING SERVICES,SN2 ,01/07/2022,983.00
33221234,,,Balance Sheet,Balance Sheet & Recharge,Resources Recharges,APOGEE CORPORATION LIMITED,EC2A,13/07/2022,"8,140.92"
34092241,Learning Disabilities,Adults,Learning Disability 26 - 64,Income,Client Contribution - Residential,APPLEFORD LTD T/A DANESWOOD,BS25,15/07/2022,-397.00
34092241,Learning Disabilities,Adults,Learning Disability 26 - 64,3rd Party Payments,Residential Care,APPLEFORD LTD T/A DANESWOOD,BS25,15/07/2022,"19,174.68"
31964233,Adults - Staffing and Supporting People,Adults,Blue Badges,Supplies and Services,Materials,APS GROUP,SK3 ,06/07/2022,"1,028.33"
36718234,Adults - Staffing and Supporting People,Adults,Blue Badges,Supplies and Services,Materials,APS GROUP,SK3 ,29/07/2022,"1,159.83"
34762233,Communications & Engagement,Communications & Engagement,"Policy, Campaigns and Communications",Employees,Training,APSE--------------------------------,M32 ,20/07/2022,"1,389.00"
33928233,Property & Assets,Property & Assets,General Enhancement Works Corporate Buildings,Capital,Contractor Payments,AQUA SOLVE WATER MANAGEMENT,OX44,15/07/2022,960.00
37131237,Social Care,"Children, Families and Community Health Services",External Placements,3rd Party Payments,Residential Care,REDACTED PERSONAL DATA,LL40,29/07/2022,"99,800.00"
34067233,High Needs Block,DSG Skills and Attainment,SEN Resourcing Assessment Panel,3rd Party Payments,Top up funding - Maintained providers Pre 16,REDACTED PERSONAL DATA,SN2 ,20/07/2022,"7,980.00"
35884234,Early Years Block,DSG Skills and Attainment,Free Nursery Education Commissioning - three & four  year olds,3rd Party Payments,Contracts - Child Care,REDACTED PERSONAL DATA,SN2 ,27/07/2022,800.00
35884233,Early Years Block,DSG Skills and Attainment,Free Nursery Education Commissioning - three & four  year olds,3rd Party Payments,Contracts - Child Care,REDACTED PERSONAL DATA,SN2 ,27/07/2022,800.00
35884236,Early Years Block,DSG Skills and Attainment,Free Nursery Education Commissioning - three & four  year olds,3rd Party Payments,Contracts - Child Care,REDACTED PERSONAL DATA,SN2 ,27/07/2022,800.00
35884235,Early Years Block,DSG Skills and Attainment,Free Nursery Education Commissioning - three & four  year olds,3rd Party Payments,Contracts - Child Care,REDACTED PERSONAL DATA,SN2 ,27/07/2022,800.00
35884237,Early Years Block,DSG Skills and Attainment,Free Nursery Education Commissioning - three & four  year olds,3rd Party Payments,Contracts - Child Care,REDACTED PERSONAL DATA,SN2 ,27/07/2022,800.00
33518236,Early Years Block,DSG Skills and Attainment,Free Nursery Education Commissioning - three & four  year olds,3rd Party Payments,Contracts - Child Care,REDACTED PERSONAL DATA,SN2 ,13/07/2022,"6,092.11"
34424233,Early Years Block,DSG Skills and Attainment,Free Nursery Education Commissioning - three & four  year olds,3rd Party Payments,Contracts - Child Care,REDACTED PERSONAL DATA,SN2 ,20/07/2022,"7,980.00"
33727234,Landscaping & Open Space,Culture & Heritage & Art,GWCF - Trees for Climate,Capital,Contractor Payments,ARCHAEOLOGICAL SURVEYS LTD,SN11,13/07/2022,"7,800.00"
35832233,Streetsmart,Streetsmart,Refuse Collection,Supplies and Services,Equipment,ARCO GROUP,HU1 ,22/07/2022,313.50
35832233,Streetsmart,Streetsmart,Refuse Collection,Supplies and Services,Equipment,ARCO GROUP,HU1 ,22/07/2022,50.00
35832233,Streetsmart,Streetsmart,Refuse Collection,Supplies and Services,Equipment,ARCO GROUP,HU1 ,22/07/2022,209.00
Corporate Card Transaction,ASC Finance Services Teams,ASC Finance Services,ASC Money Management Team,Supplies and Services,Services,Argos Ltd,,04/07/2022,564.95
32082233,Homelessness and Travellers,Housing Services,Leased Private Managed Accommodation,Transfer Payments,Payment of Costs,ASCENT------------,SN2 ,06/07/2022,650.00
31932233,Homeline,Special Services,Homeline,Supplies and Services,Materials,ASF SIGNS LTD,SN4 ,06/07/2022,509.00
34092242,Mental Health,Adults,Mental Health 18-64,3rd Party Payments,Residential Care,ASH VIEW HOUSE,BS15,15/07/2022,"7,476.36"
34092242,Mental Health,Adults,Mental Health 18-64,Income,Client Contribution - Residential,ASH VIEW HOUSE,BS15,15/07/2022,-394.20
34046233,Traded Services,Inclusion and Achievement,Plas Pencelli Outdoor Education Centre,Supplies and Services,Materials,ASHBURNHAM BAKERY,LD3 ,15/07/2022,634.79
34086235,Physical Support,Adults,Physical Support 65 and over,3rd Party Payments,Residential Care,ASHBURY LODGE,SN3 ,15/07/2022,"2,384.04"
34086235,Physical Support,Adults,Physical Support 65 and over,3rd Party Payments,Residential Care,ASHBURY LODGE,SN3 ,15/07/2022,"2,194.39"
34086235,Mental Health,Adults,Mental Health 65 and over,3rd Party Payments,Residential Care,ASHBURY LODGE,SN3 ,15/07/2022,"2,668.72"
34086235,Physical Support,Adults,Physical Support 65 and over,3rd Party Payments,Residential Care,ASHBURY LODGE,SN3 ,15/07/2022,"2,668.72"
34086235,Memory & Cognition,Adults,Support for Memory and Cognition 65 and over,Income,Client Contribution - Residential,ASHBURY LODGE,SN3 ,15/07/2022,-855.12
34086235,Mental Health,Adults,Mental Health 65 and over,Income,Client Contribution - Residential,ASHBURY LODGE,SN3 ,15/07/2022,-805.32
34086235,Physical Support,Adults,Physical Support 65 and over,3rd Party Payments,Residential Care,ASHBURY LODGE,SN3 ,15/07/2022,"2,560.12"
34086235,Physical Support,Adults,Physical Support 65 and over,Income,Client Contribution - Residential,ASHBURY LODGE,SN3 ,15/07/2022,"1,255.60"
34086235,Physical Support,Adults,Physical Support 65 and over,Income,Client Contribution - Residential,ASHBURY LODGE,SN3 ,15/07/2022,29.77
34086235,Physical Support,Adults,Physical Support 65 and over,Income,Client Contribution - Residential,ASHBURY LODGE,SN3 ,15/07/2022,-587.40
34086235,Physical Support,Adults,Physical Support 65 and over,Income,Client Contribution - Residential,ASHBURY LODGE,SN3 ,15/07/2022,-730.76
34086235,Physical Support,Adults,Physical Support 18 - 64,3rd Party Payments,Residential Care,ASHBURY LODGE,SN3 ,15/07/2022,"2,668.72"
34086235,Physical Support,Adults,Physical Support 65 and over,Income,Client Contribution - Residential,ASHBURY LODGE,SN3 ,15/07/2022,-595.40
34086235,Physical Support,Adults,Physical Support 65 and over,Income,Client Contribution - Residential,ASHBURY LODGE,SN3 ,15/07/2022,-608.80
34086235,Physical Support,Adults,Physical Support 65 and over,3rd Party Payments,Residential Care,ASHBURY LODGE,SN3 ,15/07/2022,-95.31
34086235,Physical Support,Adults,Physical Support 65 and over,Income,Client Contribution - Residential,ASHBURY LODGE,SN3 ,15/07/2022,"-1,032.64"
34086235,Physical Support,Adults,Physical Support 65 and over,Income,Client Contribution - Residential,ASHBURY LODGE,SN3 ,15/07/2022,-610.00
34086235,Physical Support,Adults,Physical Support 65 and over,Income,Client Contribution - Residential,ASHBURY LODGE,SN3 ,15/07/2022,-875.20
34086235,Physical Support,Adults,Physical Support 65 and over,Income,Client Contribution - Residential,ASHBURY LODGE,SN3 ,15/07/2022,-538.11
34086235,Physical Support,Adults,Physical Support 65 and over,Income,Client Contribution - Residential,ASHBURY LODGE,SN3 ,15/07/2022,-627.80
32081233,Public Health,Public Health,Sexual Health & Health Protection Budget,3rd Party Payments,Contract Payments,ASHINGTON HOUSE SURGERY,SN5 ,06/07/2022,558.00
35300233,Public Health,Public Health,Health Checks,3rd Party Payments,Contract Payments,ASHINGTON WAY PHARMACY,SN5 ,22/07/2022,160.00
35300233,Public Health,Public Health,Smoking & Tobacco,3rd Party Payments,Contract Payments,ASHINGTON WAY PHARMACY,SN5 ,22/07/2022,697.68
37053498,Physical Support,Adults,Physical Support 18 - 64,Transfer Payments,Personal Budget - Direct Payments - Domiciliary Care,REDACTED PERSONAL DATA,SN25,29/07/2022,"1,510.98"
34687233,Libraries,Inclusion and Achievement,Library Delivery,Supplies and Services,Materials,ASKEWS AND HOLTS LIBRARY SERVICES LIMITED,PR1 ,18/07/2022,"2,237.21"
33753233,Libraries,Inclusion and Achievement,Library Delivery,Supplies and Services,Materials,ASKEWS AND HOLTS LIBRARY SERVICES LIMITED,PR1 ,13/07/2022,821.08
33695233,Libraries,Inclusion and Achievement,Library Delivery,Supplies and Services,Materials,ASKEWS AND HOLTS LIBRARY SERVICES LIMITED,PR1 ,13/07/2022,"1,479.00"
36061233,Libraries,Inclusion and Achievement,Library Delivery,Supplies and Services,Materials,ASKEWS AND HOLTS LIBRARY SERVICES LIMITED,PR1 ,25/07/2022,969.61
36060233,Libraries,Inclusion and Achievement,Library Delivery,Supplies and Services,Materials,ASKEWS AND HOLTS LIBRARY SERVICES LIMITED,PR1 ,25/07/2022,954.18
34090234,Learning Disabilities,Adults,Learning Disability 26 - 64,3rd Party Payments,Residential Care,ASPECTS & MILESTONES TRUST,BS16,15/07/2022,"27,485.38"
34090234,Learning Disabilities,Adults,Learning Disability 26 - 64,Income,Client Contribution - Residential,ASPECTS & MILESTONES TRUST,BS16,15/07/2022,-425.60
34090234,Learning Disabilities,Adults,Learning Disability 26 - 64,3rd Party Payments,Residential Care,ASPECTS & MILESTONES TRUST,BS16,15/07/2022,"6,308.12"
34090234,Learning Disabilities,Adults,Learning Disability 26 - 64,3rd Party Payments,Residential Care,ASPECTS & MILESTONES TRUST,BS16,15/07/2022,"-26,415.61"
34098235,Mental Health,Adults,Mental Health 65 and over,3rd Party Payments,Supported Living,ASPECTS 2 LTD,B70 ,15/07/2022,"3,052.80"
34098235,Learning Disabilities,Adults,Learning Disability 26 - 64,3rd Party Payments,Residential Care,ASPECTS 2 LTD,B70 ,15/07/2022,"8,284.52"
34098235,Physical Support,Adults,Physical Support 18 - 64,3rd Party Payments,Supported Living,ASPECTS 2 LTD,B70 ,15/07/2022,"3,931.20"
34098235,Learning Disabilities,Adults,Learning Disability 26 - 64,Income,Client Contribution - Residential,ASPECTS 2 LTD,B70 ,15/07/2022,-414.20
34108233,Learning Disabilities,Adults,Learning Disability 26 - 64,3rd Party Payments,Residential Care,ASTON CARE LIMITED,RG30,15/07/2022,"9,182.84"
34107240,Learning Disabilities,Adults,Learning Disability 26 - 64,Income,Client Contribution - Residential,ASTON CARE LIMITED,RG30,15/07/2022,-594.36
34107240,Learning Disabilities,Adults,Learning Disability 26 - 64,3rd Party Payments,Residential Care,ASTON CARE LIMITED,RG30,15/07/2022,"9,104.80"
34108233,Learning Disabilities,Adults,Learning Disability 26 - 64,Income,Client Contribution - Residential,ASTON CARE LIMITED,RG30,15/07/2022,-262.40
34107240,Learning Disabilities,Adults,Learning Disability 26 - 64,3rd Party Payments,Residential Care,ASTON CARE LIMITED,RG30,15/07/2022,"6,350.24"
34107240,Learning Disabilities,Adults,Learning Disability 26 - 64,Income,Client Contribution - Residential,ASTON CARE LIMITED,RG30,15/07/2022,-349.00
34107240,Learning Disabilities,Adults,Learning Disability 26 - 64,Income,Client Contribution - Residential,ASTON CARE LIMITED,RG30,15/07/2022,"-1,033.20"
34107240,Learning Disabilities,Adults,Learning Disability 26 - 64,3rd Party Payments,Residential Care,ASTON CARE LIMITED,RG30,15/07/2022,"6,909.40"
34602233,Early Help,"Children, Families and Community Health Services","Holiday, Activities & Food Grant",3rd Party Payments,Contracts - Child Care,ATBSHOP LTD,SN2 ,20/07/2022,"19,566.00"
33872233,Early Help,"Children, Families and Community Health Services","Holiday, Activities & Food Grant",3rd Party Payments,Contracts - Child Care,ATBSHOP LTD,SN2 ,15/07/2022,986.50
33858233,Highways & Transport,Highways & Transport,Project Delivery,Supplies and Services,Services,ATKINS LTD,WR5 ,15/07/2022,"14,529.42"
31390233,Mental Health,Adults,Mental Health 18-64,3rd Party Payments,Personal Budget - Domiciliary care,AUDLEY CARE WHITE HORSE LTD,TW20,01/07/2022,708.02
37053577,Physical Support,Adults,Physical Support 65 and over,Transfer Payments,Personal Budget - Direct Payments - Domiciliary Care,REDACTED PERSONAL DATA,SP11,29/07/2022,"3,943.39"
34122235,Care Management & Safeguarding,Adults,Community Response Hub,3rd Party Payments,Residential Care,AURA CARE LIVING CIRENCESTER LTD,GL7 ,15/07/2022,"4,400.00"
34122235,Physical Support,Adults,Physical Support 65 and over,Income,Client Contribution - Nursing,AURA CARE LIVING CIRENCESTER LTD,GL7 ,15/07/2022,-396.40
34122235,Physical Support,Adults,Physical Support 65 and over,Income,Client Contribution - Nursing,AURA CARE LIVING CIRENCESTER LTD,GL7 ,15/07/2022,-339.77
34122235,Physical Support,Adults,Physical Support 65 and over,3rd Party Payments,Nursing Care,AURA CARE LIVING CIRENCESTER LTD,GL7 ,15/07/2022,"4,000.00"
34122235,Mental Health,Adults,Mental Health 18-64,3rd Party Payments,Residential Care,AURA CARE LIVING CIRENCESTER LTD,GL7 ,15/07/2022,"6,720.00"
34122235,Physical Support,Adults,Physical Support 18 - 64,3rd Party Payments,Nursing Care,AURA CARE LIVING CIRENCESTER LTD,GL7 ,15/07/2022,"-9,742.86"
34122235,Physical Support,Adults,Physical Support 65 and over,3rd Party Payments,Nursing Care,AURA CARE LIVING CIRENCESTER LTD,GL7 ,15/07/2022,"6,285.72"
34122235,Mental Health,Adults,Mental Health 18-64,3rd Party Payments,Residential Care,AURA CARE LIVING CIRENCESTER LTD,GL7 ,15/07/2022,"4,600.00"
34122235,Physical Support,Adults,Physical Support 65 and over,3rd Party Payments,Residential Care,AURA CARE LIVING CIRENCESTER LTD,GL7 ,15/07/2022,"3,800.00"
34122235,Physical Support,Adults,Physical Support 65 and over,3rd Party Payments,Nursing Care,AURA CARE LIVING CIRENCESTER LTD,GL7 ,15/07/2022,"3,771.43"
34122235,Physical Support,Adults,Physical Support 65 and over,Income,Client Contribution - Nursing,AURA CARE LIVING CIRENCESTER LTD,GL7 ,15/07/2022,-627.80
34122235,Physical Support,Adults,Physical Support 65 and over,3rd Party Payments,Nursing Care,AURA CARE LIVING CIRENCESTER LTD,GL7 ,15/07/2022,"4,400.00"
34122235,Mental Health,Adults,Mental Health 65 and over,3rd Party Payments,Residential Care,AURA CARE LIVING CIRENCESTER LTD,GL7 ,15/07/2022,"5,600.00"
31654233,Streetsmart,Streetsmart,Waterside Fleet Workshops,Supplies and Services,Equipment,AUTOCRAFT EQUIPMENT LTD,TA12,06/07/2022,675.00
34112233,Learning Disabilities,Adults,Learning Disability 65 and over,3rd Party Payments,Residential Care,AUTONOMY LIFE LIMITED,SN12,15/07/2022,"9,312.84"
34112233,Learning Disabilities,Adults,Learning Disability 65 and over,Income,Client Contribution - Residential,AUTONOMY LIFE LIMITED,SN12,15/07/2022,-528.80
31386233,Social Care,"Children, Families and Community Health Services",Unaccompanied Asylum Seeking Children (UASC),3rd Party Payments,Supported Living,AVISANT CONSULTING LTD,EC1V,01/07/2022,"5,292.14"
33232233,Property Estates,Property,Investment Properties,Supplies and Services,Fees,AVISON YOUNG (UK) LTD,B1 2,13/07/2022,"1,803.90"
37149233,Property Management,Property,Property Assets,Supplies and Services,Fees,AVISON YOUNG (UK) LTD,B1 2,29/07/2022,"5,775.00"
34997233,Care Management & Safeguarding,Adults,Mental Health Non-Pool,Employees,Non-SBC Staff Terms - Basic Pay,AVON & WILTSHIRE MENTAL HEALTH PARTNERSHIP NHS TRUST,BA1 ,20/07/2022,"3,201.59"
34996233,Care Management & Safeguarding,Adults,Mental Health Non-Pool,3rd Party Payments,Contracts - Social Care,AVON & WILTSHIRE MENTAL HEALTH PARTNERSHIP NHS TRUST,BA1 ,20/07/2022,"24,088.83"
32567233,Care Management & Safeguarding,Adults,Mental Health Non-Pool,Employees,Non-SBC Staff Terms - Basic Pay,AVON & WILTSHIRE MENTAL HEALTH PARTNERSHIP NHS TRUST,BA1 ,08/07/2022,"9,604.76"
34086249,Learning Disabilities,Adults,Learning Disability 26 - 64,3rd Party Payments,Residential Care,AVON AUTISTIC FOUNDATION LTD,BS11,15/07/2022,"22,116.68"
34086249,Learning Disabilities,Adults,Learning Disability 26 - 64,Income,Client Contribution - Residential,AVON AUTISTIC FOUNDATION LTD,BS11,15/07/2022,-414.20
34086250,Learning Disabilities,Adults,Learning Disability 26 - 64,Income,Client Contribution - Residential,AVON AUTISTIC FOUNDATION LTD,BS11,15/07/2022,-414.20
34086250,Learning Disabilities,Adults,Learning Disability 26 - 64,3rd Party Payments,Residential Care,AVON AUTISTIC FOUNDATION LTD,BS11,15/07/2022,"7,100.28"
34086250,Learning Disabilities,Adults,Learning Disability 26 - 64,3rd Party Payments,Residential Care,AVON AUTISTIC FOUNDATION LTD,BS11,15/07/2022,"30,936.93"
34086249,Learning Disabilities,Adults,Learning Disability 26 - 64,3rd Party Payments,Residential Care,AVON AUTISTIC FOUNDATION LTD,BS11,15/07/2022,"-21,255.89"
34086250,Learning Disabilities,Adults,Learning Disability 26 - 64,3rd Party Payments,Residential Care,AVON AUTISTIC FOUNDATION LTD,BS11,15/07/2022,"-29,732.79"
34086249,Learning Disabilities,Adults,Learning Disability 26 - 64,3rd Party Payments,Residential Care,AVON AUTISTIC FOUNDATION LTD,BS11,15/07/2022,"5,075.96"
35516235,Homelessness and Travellers,Housing Services,Leased Private Managed Accommodation,Transfer Payments,Payment of Costs,AVONPARK PROPERTIES LTD,NW1W,25/07/2022,650.00
35516234,Homelessness and Travellers,Housing Services,Leased Private Managed Accommodation,Transfer Payments,Payment of Costs,AVONPARK PROPERTIES LTD,NW1W,25/07/2022,615.00
35544237,Homelessness and Travellers,Housing Services,Leased Private Managed Accommodation,Transfer Payments,Payment of Costs,AVONPARK PROPERTIES LTD,NW1W,25/07/2022,550.00
35155233,Human Resources and Organisational Development,"People, Culture and Organisational Resilience",Organisational Development,Employees,Training,AWARENESS TRAINING LTD,GL54,20/07/2022,500.00
32956233,Town Centre,"Economy, Growth and Place","No 7, 9 & 11 Carriage works @ Railway Village",Capital,Consultants,BAILEY PARTNERSHIP (CONSULTANTS) LLP,PL1 ,11/07/2022,"1,500.00"
32051233,Town Centre,"Economy, Growth and Place","No 7, 9 & 11 Carriage works @ Railway Village",Capital,Consultants,BAILEY PARTNERSHIP (CONSULTANTS) LLP,PL1 ,06/07/2022,"1,500.00"
34109237,Physical Support,Adults,Physical Support 65 and over,3rd Party Payments,Nursing Care,BARCHESTER HEALTHCARE HOMES,GL7 ,15/07/2022,"3,415.00"
34109237,Memory & Cognition,Adults,Support for Memory and Cognition 65 and over,3rd Party Payments,Nursing Care,BARCHESTER HEALTHCARE HOMES,GL7 ,15/07/2022,"6,271.84"
34109237,Physical Support,Adults,Physical Support 65 and over,Income,Client Contribution - Nursing,BARCHESTER HEALTHCARE HOMES,GL7 ,15/07/2022,-809.92
33518239,Early Years Block,DSG Skills and Attainment,Free Nursery Education Commissioning - three & four  year olds,3rd Party Payments,Contracts - Child Care,BARN OWL PRE-SCHOOL,SN4 ,13/07/2022,"9,487.52"
35884238,Early Years Block,DSG Skills and Attainment,Free Nursery Education Commissioning - three & four  year olds,3rd Party Payments,Contracts - Child Care,BARN OWL PRE-SCHOOL,SN4 ,27/07/2022,800.00
32363233,School Transport,Inclusion and Achievement,Special Educational Needs Transport,Transport Costs,Home to School Transport,BARNES COACHES LTD,SN3 ,06/07/2022,"4,256.00"
32363233,School Transport,Inclusion and Achievement,Special Educational Needs Transport,Employees,Temporary / Agency - by Accounts Payable,BARNES COACHES LTD,SN3 ,06/07/2022,920.55
34094233,Physical Support,Adults,Physical Support 65 and over,Income,Client Contribution - Nursing,BASSETT HOUSE CARE HOME,SN4 ,15/07/2022,-879.52
34094233,Physical Support,Adults,Physical Support 65 and over,3rd Party Payments,Nursing Care,BASSETT HOUSE CARE HOME,SN4 ,15/07/2022,"3,018.40"
32048233,Social Care,"Children, Families and Community Health Services",Childrens Placement Team,Supplies and Services,Fees,BCP COUNCIL,BH2 ,06/07/2022,"3,542.95"
34194247,Schools Block - Central,DSG Skills and Attainment,Universal Infant Free School Meals,Supplies and Services,Payments to Educational Bodies,BEECHCROFT INFANT SCHOOL,SN2 ,18/07/2022,"37,324.00"
34201259,DSG Other Funding,DSG Skills and Attainment,DFE Additional Grants,3rd Party Payments,Payment of Pupil Premium to school,BEECHCROFT INFANT SCHOOL,SN2 ,18/07/2022,"8,129.00"
34217233,DSG Other Funding,DSG Skills and Attainment,DFE Additional Grants,Supplies and Services,Payments to Educational Bodies,BEECHCROFT INFANT SCHOOL,SN2 ,18/07/2022,"2,392.50"
34201260,Schools - Primary,DSG Skills and Attainment,Primary School Budgets,3rd Party Payments,Mainstream Delegated Funding,BEECHCROFT INFANT SCHOOL,SN2 ,18/07/2022,"97,491.00"
34194248,Schools Block - Central,DSG Skills and Attainment,Universal Infant Free School Meals,Supplies and Services,Payments to Educational Bodies,BEECHCROFT INFANT SCHOOL,SN2 ,18/07/2022,"43,539.00"
33259237,High Needs Block,DSG Skills and Attainment,SEN Resourcing Assessment Panel,3rd Party Payments,Top up funding - Maintained providers Pre 16,BEECHCROFT INFANT SCHOOL,SN2 ,13/07/2022,"6,245.00"
34092239,Learning Disabilities,Adults,Learning Disability 26 - 64,3rd Party Payments,Residential Care,BEECHWOOD COURT LTD,CF10,15/07/2022,"12,787.16"
34092239,Learning Disabilities,Adults,Learning Disability 26 - 64,3rd Party Payments,Residential Care,BEECHWOOD COURT LTD,CF10,15/07/2022,"26,739.16"
34092239,Learning Disabilities,Adults,Learning Disability 26 - 64,Income,Client Contribution - Residential,BEECHWOOD COURT LTD,CF10,15/07/2022,-322.56
35875233,Property Estates,Property,Estates - Brindley Close,Premises Costs,Waste,BEEFY'S SKIPS,SN26,25/07/2022,541.67
35876233,Property Estates,Property,Estates - Brindley Close,Premises Costs,Waste,BEEFY'S SKIPS,SN26,25/07/2022,541.67
35877233,Property Estates,Property,Estates - Brindley Close,Premises Costs,Waste,BEEFY'S SKIPS,SN26,25/07/2022,541.67
35442233,Other Repairs,Repairs,Delivery Team & Overheads,Supplies and Services,Equipment,BEESLEYS TOOLS,SN2 ,22/07/2022,"1,497.00"
35442233,Other Repairs,Repairs,Delivery Team & Overheads,Supplies and Services,Equipment,BEESLEYS TOOLS,SN2 ,22/07/2022,"1,824.00"
32019236,Social Care,"Children, Families and Community Health Services",External Placements,3rd Party Payments,Residential Care,BENJAMIN UK LIMITED,HP23,06/07/2022,"20,127.68"
32019237,Social Care,"Children, Families and Community Health Services",External Placements,3rd Party Payments,Residential Care,BENJAMIN UK LIMITED,HP23,06/07/2022,"17,692.01"
31623234,Social Care,"Children, Families and Community Health Services",External Placements,3rd Party Payments,Residential Care,BENJAMIN UK LIMITED,HP23,01/07/2022,"17,121.30"
34229233,DSG Other Funding,DSG Skills and Attainment,LAC pupil premium,Supplies and Services,Services,BENJAMIN UK LIMITED,HP23,18/07/2022,650.00
31623233,Social Care,"Children, Families and Community Health Services",External Placements,3rd Party Payments,Residential Care,BENJAMIN UK LIMITED,HP23,01/07/2022,"16,607.01"
34995233,Social Care,"Children, Families and Community Health Services",Looked After Children Service,3rd Party Payments,Personal Needs,BESPOKE GUARDIANS LTD,SN6 ,20/07/2022,"1,351.35"
32939233,Care Management & Safeguarding,Adults,Local Safeguarding Board,Supplies and Services,Fees,BEVAN BRITTAN,BS2 ,11/07/2022,425.00
33520233,Early Years Block,DSG Skills and Attainment,Free Nursery Education Commissioning - three & four  year olds,3rd Party Payments,Contracts - Child Care,REDACTED PERSONAL DATA,SN4 ,13/07/2022,"1,991.86"
31795234,Routes to Employment & Libraries,Libraries,Libraries extended access upgrade,Capital,Contractor Payments,BIBLIOTHECA LTD,SK8 ,04/07/2022,"4,895.00"
32126233,Libraries,Inclusion and Achievement,Central,Premises Costs,Waste,BIFFA WASTE SERVICES LTD,HP12,06/07/2022,438.75
34193233,Schools Block - Central,DSG Skills and Attainment,Universal Infant Free School Meals,Supplies and Services,Payments to Educational Bodies,BISHOPSTONE C E PRIMARY SCHOOL,SN6 ,18/07/2022,"3,607.00"
34201242,Schools - Primary,DSG Skills and Attainment,Primary School Budgets,3rd Party Payments,Mainstream Delegated Funding,BISHOPSTONE C E PRIMARY SCHOOL,SN6 ,18/07/2022,"26,319.00"
34212233,DSG Other Funding,DSG Skills and Attainment,DFE Additional Grants,Supplies and Services,Payments to Educational Bodies,BISHOPSTONE C E PRIMARY SCHOOL,SN6 ,18/07/2022,500.00
34193234,Schools Block - Central,DSG Skills and Attainment,Universal Infant Free School Meals,Supplies and Services,Payments to Educational Bodies,BISHOPSTONE C E PRIMARY SCHOOL,SN6 ,18/07/2022,"2,836.00"
34201241,DSG Other Funding,DSG Skills and Attainment,DFE Additional Grants,3rd Party Payments,Payment of Pupil Premium to school,BISHOPSTONE C E PRIMARY SCHOOL,SN6 ,18/07/2022,915.00
34230233,DSG Other Funding,DSG Skills and Attainment,LAC pupil premium,Supplies and Services,Services,BISHOPSWOOD SCHOOL,RG4 ,18/07/2022,650.00
34231233,DSG Other Funding,DSG Skills and Attainment,LAC pupil premium,Supplies and Services,Services,BISHOPSWOOD SCHOOL,RG4 ,18/07/2022,650.00
31637233,Streetsmart,Streetsmart,Waterside Fleet Hires,Transport Costs,Vehicle Hire / Contract,BLAKEDALE LTD,PR7 ,06/07/2022,770.00
37164235,Social Care,"Children, Families and Community Health Services",External Placements,3rd Party Payments,Independent Fostering Agency Placements,BLUE SKY,HA1 ,29/07/2022,"5,469.33"
37164233,Social Care,"Children, Families and Community Health Services",External Placements,3rd Party Payments,Independent Fostering Agency Placements,BLUE SKY,HA1 ,29/07/2022,"3,429.53"
37164234,Social Care,"Children, Families and Community Health Services",External Placements,3rd Party Payments,Independent Fostering Agency Placements,BLUE SKY,HA1 ,29/07/2022,"6,510.00"
34086236,Physical Support,Adults,Physical Support 65 and over,3rd Party Payments,Residential Care,BLUEBELLS RESIDENTIAL HOME,SN25,15/07/2022,"3,818.88"
34086236,Physical Support,Adults,Physical Support 65 and over,3rd Party Payments,Residential Care,BLUEBELLS RESIDENTIAL HOME,SN25,15/07/2022,"4,920.00"
34086236,Physical Support,Adults,Physical Support 65 and over,Income,Client Contribution - Residential,BLUEBELLS RESIDENTIAL HOME,SN25,15/07/2022,-688.80
34086236,Physical Support,Adults,Physical Support 65 and over,Income,Client Contribution - Residential,BLUEBELLS RESIDENTIAL HOME,SN25,15/07/2022,"-1,140.68"
34086236,Mental Health,Adults,Mental Health 65 and over,3rd Party Payments,Residential Care,BLUEBELLS RESIDENTIAL HOME,SN25,15/07/2022,"3,800.00"
34917236,Learning Disabilities,Adults,Learning Disability 26 - 64,3rd Party Payments,Personal Budget - Domiciliary care,BLUEBIRD CARE (SWINDON),SN25,20/07/2022,975.05
34917237,Learning Disabilities,Adults,Learning Disability 26 - 64,3rd Party Payments,Personal Budget - Domiciliary care,BLUEBIRD CARE (SWINDON),SN25,20/07/2022,76.75
35915233,Learning Disabilities,Adults,Learning Disability 26 - 64,3rd Party Payments,Personal Budget - Domiciliary care,BLUEBIRD CARE (SWINDON),SN25,27/07/2022,546.48
34917239,Physical Support,Adults,Physical Support 65 and over,3rd Party Payments,Personal Budget - Domiciliary care,BLUEBIRD CARE (SWINDON),SN25,20/07/2022,607.20
34920234,Physical Support,Adults,Physical Support 65 and over,3rd Party Payments,Carers,BLUEBIRD CARE (SWINDON),SN25,20/07/2022,647.68
35909233,Learning Disabilities,Adults,Learning Disability 26 - 64,3rd Party Payments,Personal Budget - Domiciliary care,BLUEBIRD CARE (SWINDON),SN25,27/07/2022,617.32
34918234,Learning Disabilities,Adults,Learning Disability 26 - 64,3rd Party Payments,Personal Budget - Domiciliary care,BLUEBIRD CARE (SWINDON),SN25,20/07/2022,59.03
34918233,Learning Disabilities,Adults,Learning Disability 26 - 64,3rd Party Payments,Personal Budget - Domiciliary care,BLUEBIRD CARE (SWINDON),SN25,20/07/2022,76.65
34918234,Learning Disabilities,Adults,Learning Disability 26 - 64,3rd Party Payments,Personal Budget - Domiciliary care,BLUEBIRD CARE (SWINDON),SN25,20/07/2022,639.25
35910233,Physical Support,Adults,Physical Support 65 and over,3rd Party Payments,Personal Budget - Domiciliary care,BLUEBIRD CARE (SWINDON),SN25,27/07/2022,779.24
34920233,Physical Support,Adults,Physical Support 65 and over,3rd Party Payments,Personal Budget - Domiciliary care,BLUEBIRD CARE (SWINDON),SN25,20/07/2022,"1,588.84"
34919233,Physical Support,Adults,Physical Support 18 - 64,3rd Party Payments,Personal Budget - Domiciliary care,BLUEBIRD CARE (SWINDON),SN25,20/07/2022,647.68
34918233,Learning Disabilities,Adults,Learning Disability 26 - 64,3rd Party Payments,Personal Budget - Domiciliary care,BLUEBIRD CARE (SWINDON),SN25,20/07/2022,830.03
34917237,Learning Disabilities,Adults,Learning Disability 26 - 64,3rd Party Payments,Personal Budget - Domiciliary care,BLUEBIRD CARE (SWINDON),SN25,20/07/2022,894.77
33521237,Early Years Block,DSG Skills and Attainment,Free Nursery Education Commissioning - three & four  year olds,3rd Party Payments,Contracts - Child Care,REDACTED PERSONAL DATA,SN3 ,13/07/2022,"10,238.72"
33521238,Early Years Block,DSG Skills and Attainment,Free Nursery Education Commissioning - two year olds,3rd Party Payments,Contracts - Child Care,REDACTED PERSONAL DATA,SN3 ,13/07/2022,"1,480.47"
34107233,Mental Health,Adults,Mental Health 65 and over,3rd Party Payments,Residential Care,BOLEALLER HOUSE LTD,EX15,15/07/2022,"4,719.32"
32892233,Physical Support,Adults,Fessey House,Supplies and Services,Food,BOOKER LIMITED,CH5 ,11/07/2022,222.48
32892233,Physical Support,Adults,Fessey House,Supplies and Services,Food,BOOKER LIMITED,CH5 ,11/07/2022,289.08
35406235,Public Health,Public Health,DAAT,3rd Party Payments,Contract Payments,BOOTS UK LTD,NG90,22/07/2022,"2,383.50"
32627233,Social Care,"Children, Families and Community Health Services",CP & CIN Social Work - South,Supplies and Services,Interpretation,BOSTICO INTERNATIONAL COMPANY,BH1 ,08/07/2022,545.13
31432233,Social Care,"Children, Families and Community Health Services",CP & CIN Social Work - South,Supplies and Services,Interpretation,BOSTICO INTERNATIONAL COMPANY,BH1 ,01/07/2022,790.16
34089243,Physical Support,Adults,Physical Support 65 and over,3rd Party Payments,Nursing Care,BOTHWELLS LTD,HA6 ,15/07/2022,"3,733.20"
34089243,Physical Support,Adults,Physical Support 65 and over,Income,Client Contribution - Nursing,BOTHWELLS LTD,HA6 ,15/07/2022,-909.16
34089243,Physical Support,Adults,Physical Support 18 - 64,3rd Party Payments,Nursing Care,BOTHWELLS LTD,HA6 ,15/07/2022,"2,560.12"
34089243,Physical Support,Adults,Physical Support 65 and over,3rd Party Payments,Nursing Care,BOTHWELLS LTD,HA6 ,15/07/2022,"2,560.12"
34089243,Physical Support,Adults,Physical Support 18 - 64,3rd Party Payments,Nursing Care,BOTHWELLS LTD,HA6 ,15/07/2022,"2,384.04"
34089243,Physical Support,Adults,Physical Support 65 and over,3rd Party Payments,Nursing Care,BOTHWELLS LTD,HA6 ,15/07/2022,"-1,294.68"
34089243,Physical Support,Adults,Physical Support 65 and over,3rd Party Payments,Nursing Care,BOTHWELLS LTD,HA6 ,15/07/2022,"2,920.32"
34089243,Learning Disabilities,Adults,Learning Disability 26 - 64,3rd Party Payments,Nursing Care,BOTHWELLS LTD,HA6 ,15/07/2022,"4,079.08"
34089243,Physical Support,Adults,Physical Support 65 and over,3rd Party Payments,Nursing Care,BOTHWELLS LTD,HA6 ,15/07/2022,"1,234.26"
34089243,Physical Support,Adults,Physical Support 65 and over,Income,Client Contribution - Nursing,BOTHWELLS LTD,HA6 ,15/07/2022,-659.80
34089243,Physical Support,Adults,Physical Support 18 - 64,Income,Client Contribution - Nursing,BOTHWELLS LTD,HA6 ,15/07/2022,-425.60
34089243,Physical Support,Adults,Physical Support 18 - 64,Income,Client Contribution - Nursing,BOTHWELLS LTD,HA6 ,15/07/2022,-414.20
34089243,Physical Support,Adults,Physical Support 65 and over,Income,Client Contribution - Nursing,BOTHWELLS LTD,HA6 ,15/07/2022,-523.80
34089243,Physical Support,Adults,Physical Support 65 and over,Income,Client Contribution - Nursing,BOTHWELLS LTD,HA6 ,15/07/2022,-648.28
34089243,Physical Support,Adults,Physical Support 65 and over,Income,Client Contribution - Nursing,BOTHWELLS LTD,HA6 ,15/07/2022,40.67
34089243,Physical Support,Adults,Physical Support 65 and over,3rd Party Payments,Nursing Care,BOTHWELLS LTD,HA6 ,15/07/2022,"-3,474.45"
34089243,Physical Support,Adults,Physical Support 65 and over,Income,Client Contribution - Nursing,BOTHWELLS LTD,HA6 ,15/07/2022,-608.80
34089243,Physical Support,Adults,Physical Support 65 and over,Income,Client Contribution - Nursing,BOTHWELLS LTD,HA6 ,15/07/2022,772.76
33656234,DSG Other Funding,DSG Skills and Attainment,LAC pupil premium,Supplies and Services,Services,BRADON FOREST SCHOOL,SN5 ,20/07/2022,650.00
33521241,Early Years Block,DSG Skills and Attainment,Free Nursery Education Commissioning - three & four  year olds,3rd Party Payments,Contracts - Child Care,BRAMBLE HOUSE DAY NURSERY LTD,SN2 ,13/07/2022,"9,982.90"
34068233,High Needs Block,DSG Skills and Attainment,SEN Resourcing Assessment Panel,3rd Party Payments,Top up funding - Maintained providers Pre 16,BRAMBLE HOUSE DAY NURSERY LTD,SN2 ,20/07/2022,624.00
33521242,Early Years Block,DSG Skills and Attainment,Free Nursery Education Commissioning - two year olds,3rd Party Payments,Contracts - Child Care,BRAMBLE HOUSE DAY NURSERY LTD,SN2 ,13/07/2022,"1,291.68"
34603233,Early Help,"Children, Families and Community Health Services","Holiday, Activities & Food Grant",3rd Party Payments,Contracts - Child Care,BRAMBLE HOUSE DAY NURSERY LTD,SN2 ,20/07/2022,"4,140.00"
35767233,Social Care,"Children, Families and Community Health Services",External Placements,3rd Party Payments,Residential Care,BRANAS ISAF LIMITED,EN6 ,22/07/2022,"24,578.66"
31955234,Planned Maintenance Programme,HRA Capital Financing,Roofs,Capital,Contractor Payments,BREYER GROUP PLC,RM3 ,06/07/2022,"6,937.13"
31955234,Planned Maintenance Programme,HRA Capital Financing,Roofs,Capital,Contractor Payments,BREYER GROUP PLC,RM3 ,06/07/2022,"7,029.56"
31955234,Planned Maintenance Programme,HRA Capital Financing,Roofs,Capital,Contractor Payments,BREYER GROUP PLC,RM3 ,06/07/2022,"7,893.49"
31955234,Planned Maintenance Programme,HRA Capital Financing,Roofs,Capital,Contractor Payments,BREYER GROUP PLC,RM3 ,06/07/2022,"7,177.86"
31955234,Planned Maintenance Programme,HRA Capital Financing,Roofs,Capital,Contractor Payments,BREYER GROUP PLC,RM3 ,06/07/2022,"7,572.48"
31955234,Planned Maintenance Programme,HRA Capital Financing,Roofs,Capital,Contractor Payments,BREYER GROUP PLC,RM3 ,06/07/2022,"7,814.01"
31955234,Planned Maintenance Programme,HRA Capital Financing,Roofs,Capital,Contractor Payments,BREYER GROUP PLC,RM3 ,06/07/2022,"8,308.88"
31955234,Planned Maintenance Programme,HRA Capital Financing,Roofs,Capital,Contractor Payments,BREYER GROUP PLC,RM3 ,06/07/2022,"7,270.29"
31955234,Planned Maintenance Programme,HRA Capital Financing,Roofs,Capital,Contractor Payments,BREYER GROUP PLC,RM3 ,06/07/2022,"8,156.53"
31955234,Planned Maintenance Programme,HRA Capital Financing,Roofs,Capital,Contractor Payments,BREYER GROUP PLC,RM3 ,06/07/2022,"8,169.54"
31955234,Planned Maintenance Programme,HRA Capital Financing,Roofs,Capital,Contractor Payments,BREYER GROUP PLC,RM3 ,06/07/2022,"7,993.14"
31955234,Planned Maintenance Programme,HRA Capital Financing,Roofs,Capital,Contractor Payments,BREYER GROUP PLC,RM3 ,06/07/2022,"7,928.86"
31955234,Planned Maintenance Programme,HRA Capital Financing,Roofs,Capital,Contractor Payments,BREYER GROUP PLC,RM3 ,06/07/2022,"7,042.67"
31955234,Planned Maintenance Programme,HRA Capital Financing,Roofs,Capital,Contractor Payments,BREYER GROUP PLC,RM3 ,06/07/2022,"7,642.28"
31955234,Planned Maintenance Programme,HRA Capital Financing,Roofs,Capital,Contractor Payments,BREYER GROUP PLC,RM3 ,06/07/2022,"7,354.33"
31955234,Planned Maintenance Programme,HRA Capital Financing,Roofs,Capital,Contractor Payments,BREYER GROUP PLC,RM3 ,06/07/2022,"7,546.51"
31955234,Planned Maintenance Programme,HRA Capital Financing,Roofs,Capital,Contractor Payments,BREYER GROUP PLC,RM3 ,06/07/2022,"7,404.72"
31955234,Planned Maintenance Programme,HRA Capital Financing,Roofs,Capital,Contractor Payments,BREYER GROUP PLC,RM3 ,06/07/2022,"7,078.11"
31955234,Planned Maintenance Programme,HRA Capital Financing,Roofs,Capital,Contractor Payments,BREYER GROUP PLC,RM3 ,06/07/2022,"7,243.84"
31955234,Planned Maintenance Programme,HRA Capital Financing,Roofs,Capital,Contractor Payments,BREYER GROUP PLC,RM3 ,06/07/2022,"7,286.91"
34246240,DSG Other Funding,DSG Skills and Attainment,LAC pupil premium,Supplies and Services,Services,BRIDGE MULTI ACADEMY TRUST,PL30,18/07/2022,650.00
34534233,Libraries,Inclusion and Achievement,Library Delivery,Supplies and Services,Materials,BRIDGEALL LIBRARIES LTD,G52 ,18/07/2022,"8,000.00"
34194242,Schools Block - Central,DSG Skills and Attainment,Universal Infant Free School Meals,Supplies and Services,Payments to Educational Bodies,BRIDLEWOOD PRIMARY SCHOOL,SN25,18/07/2022,"15,092.00"
34213237,DSG Other Funding,DSG Skills and Attainment,DFE Additional Grants,Supplies and Services,Payments to Educational Bodies,BRIDLEWOOD PRIMARY SCHOOL,SN25,18/07/2022,"1,268.75"
34201251,DSG Other Funding,DSG Skills and Attainment,DFE Additional Grants,3rd Party Payments,Payment of Pupil Premium to school,BRIDLEWOOD PRIMARY SCHOOL,SN25,18/07/2022,"4,187.00"
34201252,Schools - Primary,DSG Skills and Attainment,Primary School Budgets,3rd Party Payments,Mainstream Delegated Funding,BRIDLEWOOD PRIMARY SCHOOL,SN25,18/07/2022,"75,277.00"
33256233,High Needs Block,DSG Skills and Attainment,SEN Resourcing Assessment Panel,3rd Party Payments,Top up funding - Maintained providers Pre 16,BRIDLEWOOD PRIMARY SCHOOL,SN25,13/07/2022,"6,428.67"
33376242,Early Years Block,DSG Skills and Attainment,Free Nursery Education Commissioning - three & four  year olds,3rd Party Payments,Contracts - Child Care,BRIDLEWOOD PRIMARY SCHOOL,SN25,13/07/2022,"6,834.35"
34194241,Schools Block - Central,DSG Skills and Attainment,Universal Infant Free School Meals,Supplies and Services,Payments to Educational Bodies,BRIDLEWOOD PRIMARY SCHOOL,SN25,18/07/2022,"10,780.00"
35729233,DMJ Tower,Housing Services,DMJ Apartments,Premises Costs,Maintenance - Buildings,BRISTOL FIRE,BS37,25/07/2022,"4,308.00"
33738233,Other Repairs,Repairs,Unallocated job costs from OPEN system,Premises Costs,Maintenance - Buildings,BRISTOL FIRE,BS37,13/07/2022,687.75
36229233,Revenues & Benefits,Revenues & Benefits,Swindon Emergency Assistance Fund,Supplies and Services,Materials,BRITISH HEART FOUNDATION,NW1 ,27/07/2022,"1,395.00"
34776233,Revenues & Benefits,Revenues & Benefits,Swindon Emergency Assistance Fund,Supplies and Services,Materials,BRITISH HEART FOUNDATION,NW1 ,20/07/2022,"1,569.00"
34189233,,,Balance Sheet,Balance Sheet & Recharge,Mobile phone invoices,BRITISH TELECOMMUNICATIONS PLC,NE82,15/07/2022,"22,167.05"
32978233,Corporate,Corporate Finance,Corporate Financial Management,Supplies and Services,Fees,BROADSTONE CONSULTANTS & ACTUARIES LTD,BS1 ,11/07/2022,"15,719.75"
31969234,Property Management,Property,Corporate Repairs & Maintenance Programme,Premises Costs,Maintenance - Buildings,BROADWATER TECHNOLOGIES LTD,BS37,06/07/2022,550.00
33312233,High Needs Block,DSG Skills and Attainment,Post 16 - New Responsibilties,3rd Party Payments,FE Colleges,BRUNEL EDUCATION,SN25,13/07/2022,"111,805.07"
33296235,High Needs Block,DSG Skills and Attainment,SEN Resourcing Assessment Panel,3rd Party Payments,Top up funding - Academies and Free Schools Pre 16,REDACTED PERSONAL DATA,SN25,13/07/2022,"116,504.38"
33181233,SEND Funds,Skills & Attainment,Education High Needs Provision,Capital,Contractor Payments,REDACTED PERSONAL DATA,SN25,13/07/2022,"457,397.68"
33189233,SEND Funds,Skills & Attainment,Education High Needs Provision,Capital,Contractor Payments,REDACTED PERSONAL DATA,SN25,13/07/2022,"10,000.00"
33663234,DSG Other Funding,DSG Skills and Attainment,LAC pupil premium,Supplies and Services,Services,REDACTED PERSONAL DATA,SN25,20/07/2022,650.00
31492233,School Transport,Inclusion and Achievement,Special Educational Needs Transport,Employees,Temporary / Agency - by Accounts Payable,REDACTED PERSONAL DATA,SN25,01/07/2022,"3,168.60"
34202239,High Needs Block,DSG Skills and Attainment,Advisory Teacher Services,Supplies and Services,Payments to Educational Bodies,REDACTED PERSONAL DATA,SN25,18/07/2022,"7,250.00"
33298233,High Needs Block,DSG Skills and Attainment,SEN Resourcing Assessment Panel,3rd Party Payments,Top up funding - Academies and Free Schools Pre 16,REDACTED PERSONAL DATA,SN25,13/07/2022,"114,952.77"
33297233,High Needs Block,DSG Skills and Attainment,SEN Resourcing Assessment Panel,3rd Party Payments,Top up funding - Academies and Free Schools Pre 16,REDACTED PERSONAL DATA,SN25,13/07/2022,"96,890.78"
33308234,High Needs Block,DSG Skills and Attainment,SEN Resourcing Assessment Panel,3rd Party Payments,Top up funding - Academies and Free Schools Post 16,REDACTED PERSONAL DATA,SN25,13/07/2022,"43,014.99"
33862233,School Transport,Inclusion and Achievement,Special Educational Needs Transport,Employees,Temporary / Agency - by Accounts Payable,REDACTED PERSONAL DATA,SN25,15/07/2022,"4,541.40"
34202241,High Needs Block,DSG Skills and Attainment,Advisory Teacher Services,Supplies and Services,Payments to Educational Bodies,REDACTED PERSONAL DATA,SN25,18/07/2022,"11,317.00"
33867233,School Transport,Inclusion and Achievement,Special Educational Needs Transport,Employees,Temporary / Agency - by Accounts Payable,REDACTED PERSONAL DATA,SN25,15/07/2022,"8,411.25"
34265235,DSG Other Funding,DSG Skills and Attainment,LAC pupil premium,Supplies and Services,Services,REDACTED PERSONAL DATA,SN25,18/07/2022,650.00
33300234,High Needs Block,DSG Skills and Attainment,SEN Resourcing Assessment Panel,3rd Party Payments,Top up funding - Academies and Free Schools Pre 16,REDACTED PERSONAL DATA,SN25,13/07/2022,"130,364.76"
36241233,High Needs Block,DSG Skills and Attainment,Advisory Teacher Services,Supplies and Services,Services,REDACTED PERSONAL DATA,SN25,27/07/2022,"2,700.00"
33184233,SEND Funds,Skills & Attainment,Education High Needs Provision,Capital,Contractor Payments,REDACTED PERSONAL DATA,SN25,13/07/2022,"330,366.48"
33204233,SEND Funds,Skills & Attainment,Education High Needs Provision,Capital,Contractor Payments,REDACTED PERSONAL DATA,SN25,13/07/2022,"6,978.00"
33305236,High Needs Block,DSG Skills and Attainment,SEN Resourcing Assessment Panel,3rd Party Payments,Top up funding - Academies and Free Schools Pre 16,REDACTED PERSONAL DATA,SN25,13/07/2022,"40,219.16"
32366236,Supported Employment,Housing Services,EW - Timber,Supplies and Services,Materials,BSW TIMBER LIMITED,TD4 ,06/07/2022,"13,741.79"
34849233,Supported Employment,Housing Services,EW - Timber,Supplies and Services,Materials,BSW TIMBER LIMITED,TD4 ,20/07/2022,"14,072.04"
35746233,NEV,"Economy, Growth and Place",Southern Connector Road,Capital,Contractor Payments,BUCKINGHAM GROUP CONTRACTING LIMITED,MK18,22/07/2022,"135,632.79"
33847233,Social Care,"Children, Families and Community Health Services",External Placements,3rd Party Payments,Supported Living,BUDWOOD LTD,SO53,15/07/2022,"6,000.12"
32765233,Social Care,"Children, Families and Community Health Services",External Placements,3rd Party Payments,Supported Living,BUDWOOD LTD,SO53,08/07/2022,"1,928.61"
32765233,Social Care,"Children, Families and Community Health Services",External Placements,3rd Party Payments,Supported Living,BUDWOOD LTD,SO53,08/07/2022,"8,539.17"
35170234,Schools Maintenance,Skills & Attainment,Condition Works,Capital,Contractor Payments,BUILDTECH SW LIMITED,GL53,20/07/2022,174.16
35170234,Schools Maintenance,Skills & Attainment,Condition Works,Capital,Contractor Payments,BUILDTECH SW LIMITED,GL53,20/07/2022,540.00
35170235,Schools Maintenance,Skills & Attainment,Condition Works,Capital,Professional Fees,BUILDTECH SW LIMITED,GL53,20/07/2022,"4,206.45"
35332233,Schools Maintenance,Skills & Attainment,Condition Works,Capital,Professional Fees,BUILDTECH SW LIMITED,GL53,22/07/2022,540.00
35170235,Schools Maintenance,Skills & Attainment,Condition Works,Capital,Professional Fees,BUILDTECH SW LIMITED,GL53,20/07/2022,"28,150.84"
35332233,Schools Maintenance,Skills & Attainment,Condition Works,Capital,Professional Fees,BUILDTECH SW LIMITED,GL53,22/07/2022,270.99
35819233,Neighbourhood Wardens,Special Services,Neighbourhood Wardens,Supplies and Services,Hire / Rental,BUNZL CLEANING & HYGIENE SUPPLIES,SL3 ,22/07/2022,423.04
33521245,Early Years Block,DSG Skills and Attainment,Free Nursery Education Commissioning - three & four  year olds,3rd Party Payments,Contracts - Child Care,"BUSY BEES, BROOME MANOR",SN3 ,13/07/2022,"14,309.19"
34067235,High Needs Block,DSG Skills and Attainment,SEN Resourcing Assessment Panel,3rd Party Payments,Top up funding - Maintained providers Pre 16,"BUSY BEES, BROOME MANOR",SN3 ,20/07/2022,780.00
33522233,Early Years Block,DSG Skills and Attainment,Free Nursery Education Commissioning - two year olds,3rd Party Payments,Contracts - Child Care,"BUSY BEES, BROOME MANOR",SN3 ,13/07/2022,"1,771.92"
33525233,Early Years Block,DSG Skills and Attainment,Free Nursery Education Commissioning - two year olds,3rd Party Payments,Contracts - Child Care,"BUSY BEES, PEATMOOR",SN5 ,13/07/2022,"2,517.12"
33524233,Early Years Block,DSG Skills and Attainment,Free Nursery Education Commissioning - three & four  year olds,3rd Party Payments,Contracts - Child Care,"BUSY BEES, PEATMOOR",SN5 ,13/07/2022,"19,641.51"
33526234,Early Years Block,DSG Skills and Attainment,Free Nursery Education Commissioning - two year olds,3rd Party Payments,Contracts - Child Care,"BUSY BEES, ST ANDREWS RIDGE",SN25,13/07/2022,574.08
33526233,Early Years Block,DSG Skills and Attainment,Free Nursery Education Commissioning - three & four  year olds,3rd Party Payments,Contracts - Child Care,"BUSY BEES, ST ANDREWS RIDGE",SN25,13/07/2022,"20,773.25"
36739233,Public Health,Public Health,DAAT,3rd Party Payments,Contract Payments,C & P MEDICAL TRAINING LTD,SN12,29/07/2022,"16,000.00"
34363233,Learning Disabilities,Adults,Learning Disability 26 - 64,3rd Party Payments,Supported Accommodation Scheme,REDACTED PERSONAL DATA,SN3 ,20/07/2022,"2,058.96"
34091236,Learning Disabilities,Adults,Learning Disability 65 and over,Income,Client Contribution - Residential,C.H.O.I.C.E LTD,RG12,15/07/2022,-607.60
34091237,Learning Disabilities,Adults,Learning Disability 26 - 64,Income,Client Contribution - Residential,C.H.O.I.C.E LTD,RG12,15/07/2022,-391.00
34091236,Learning Disabilities,Adults,Learning Disability 26 - 64,Income,Client Contribution - Residential,C.H.O.I.C.E LTD,RG12,15/07/2022,-595.32
34091235,Learning Disabilities,Adults,Learning Disability 26 - 64,Income,Client Contribution - Residential,C.H.O.I.C.E LTD,RG12,15/07/2022,-415.00
34091237,Learning Disabilities,Adults,Learning Disability 65 and over,Income,Client Contribution - Residential,C.H.O.I.C.E LTD,RG12,15/07/2022,-550.84
34091237,Learning Disabilities,Adults,Learning Disability 65 and over,Income,Client Contribution - Residential,C.H.O.I.C.E LTD,RG12,15/07/2022,-636.32
34091238,Learning Disabilities,Adults,Learning Disability 26 - 64,3rd Party Payments,Residential Care,C.H.O.I.C.E LTD,RG12,15/07/2022,"10,934.04"
34091237,Learning Disabilities,Adults,Learning Disability 26 - 64,3rd Party Payments,Residential Care,C.H.O.I.C.E LTD,RG12,15/07/2022,"6,825.52"
34091233,Learning Disabilities,Adults,Learning Disability 26 - 64,Income,Client Contribution - Residential,C.H.O.I.C.E LTD,RG12,15/07/2022,-298.20
34091234,Learning Disabilities,Adults,Learning Disability 26 - 64,3rd Party Payments,Residential Care,C.H.O.I.C.E LTD,RG12,15/07/2022,"6,691.00"
34091235,Learning Disabilities,Adults,Learning Disability 26 - 64,3rd Party Payments,Residential Care,C.H.O.I.C.E LTD,RG12,15/07/2022,"10,940.40"
34091233,Learning Disabilities,Adults,Learning Disability 26 - 64,3rd Party Payments,Residential Care,C.H.O.I.C.E LTD,RG12,15/07/2022,"9,147.40"
34091238,Learning Disabilities,Adults,Learning Disability 26 - 64,Income,Client Contribution - Residential,C.H.O.I.C.E LTD,RG12,15/07/2022,-414.20
34091234,Learning Disabilities,Adults,Learning Disability 26 - 64,Income,Client Contribution - Residential,C.H.O.I.C.E LTD,RG12,15/07/2022,-423.00
34091238,Physical Support,Adults,Physical Support 18 - 64,3rd Party Payments,Residential Care,C.H.O.I.C.E LTD,RG12,15/07/2022,"10,222.80"
34091237,Learning Disabilities,Adults,Learning Disability 65 and over,3rd Party Payments,Residential Care,C.H.O.I.C.E LTD,RG12,15/07/2022,"8,340.72"
34091236,Learning Disabilities,Adults,Learning Disability 65 and over,3rd Party Payments,Residential Care,C.H.O.I.C.E LTD,RG12,15/07/2022,"8,447.72"
34091236,Learning Disabilities,Adults,Learning Disability 65 and over,3rd Party Payments,Residential Care,C.H.O.I.C.E LTD,RG12,15/07/2022,"8,898.76"
34091238,Physical Support,Adults,Physical Support 18 - 64,Income,Client Contribution - Residential,C.H.O.I.C.E LTD,RG12,15/07/2022,-414.20
34091238,Learning Disabilities,Adults,Learning Disability 26 - 64,3rd Party Payments,Residential Care,C.H.O.I.C.E LTD,RG12,15/07/2022,"11,677.40"
34091237,Learning Disabilities,Adults,Learning Disability 65 and over,3rd Party Payments,Residential Care,C.H.O.I.C.E LTD,RG12,15/07/2022,"9,474.20"
34091234,Learning Disabilities,Adults,Learning Disability 26 - 64,3rd Party Payments,Residential Care,C.H.O.I.C.E LTD,RG12,15/07/2022,"6,668.68"
34091238,Learning Disabilities,Adults,Learning Disability 26 - 64,Income,Client Contribution - Residential,C.H.O.I.C.E LTD,RG12,15/07/2022,-207.60
34246234,DSG Other Funding,DSG Skills and Attainment,LAC pupil premium,Supplies and Services,Services,REDACTED PERSONAL DATA,BS15,18/07/2022,650.00
34546233,High Needs Block,DSG Skills and Attainment,Out of Borough School Fees,3rd Party Payments,Other Local Authority Mainstream Schools- Pre 16,REDACTED PERSONAL DATA,BS15,18/07/2022,"11,045.00"
34994233,NEV,"Economy, Growth and Place",Southern Connector Road,Capital,Professional Fees,CADUK LTD (THE COMPETENCE ASSESSMENT & DEVELOPMENT CENTRE UK LTD),TF2 ,20/07/2022,"2,100.00"
32952233,Homeline,Special Services,Homeline,Supplies and Services,Materials,CAIR (UK) LTD,HX1 ,11/07/2022,790.00
34837262,Social Care,"Children, Families and Community Health Services",External Placements,3rd Party Payments,Residential Care,CALCOT SERVICES FOR CHILDREN LTD,RG7 ,20/07/2022,"29,361.34"
34837263,Social Care,"Children, Families and Community Health Services",External Placements,3rd Party Payments,Residential Care,CALCOT SERVICES FOR CHILDREN LTD,RG7 ,20/07/2022,"29,892.68"
37053414,Learning Disabilities,Adults,Learning Disability 26 - 64,Transfer Payments,Personal Budget - Direct Payments - Domiciliary Care,REDACTED PERSONAL DATA,SP11,29/07/2022,"1,844.32"
37053510,Learning Disabilities,Adults,Learning Disability 26 - 64,Transfer Payments,Personal Budget - Direct Payments - Domiciliary Care,REDACTED PERSONAL DATA,SP11,29/07/2022,631.33
35281234,Lydiard Park,Streetsmart,Lydiard House & Park,Premises Costs,Gas,CALOR GAS LTD,CV34,22/07/2022,"1,031.04"
34155234,Lydiard Park,Streetsmart,Lydiard House & Park,Premises Costs,Gas,CALOR GAS LTD,CV34,15/07/2022,"1,974.50"
34837266,Social Care,"Children, Families and Community Health Services",External Placements,3rd Party Payments,Residential Care,CAMBIAN CHILDCARE LTD,EN6 ,20/07/2022,"24,481.01"
34837267,Social Care,"Children, Families and Community Health Services",External Placements,3rd Party Payments,Residential Care,CAMBIAN CHILDCARE LTD,EN6 ,20/07/2022,"26,274.67"
Corporate Card Transaction,Homelessness and Travellers,Housing Services,Bed and Breakfast Accommodation,Transfer Payments,Payment of Costs,Campanile Hotels,,05/07/2022,534.30
36988233,Physical Support,Adults,Physical Support 18 - 64,Transfer Payments,Personal Budget - Direct Payments - Domiciliary Care,REDACTED PERSONAL DATA,SN25,29/07/2022,832.29
31933235,Streetsmart,Streetsmart,Lydiard House - Maintenance,Capital,Contractor Payments,CANTILLON GROUP LTD,SN25,06/07/2022,-120.00
36934233,Void Repairs,Supervision & Management,Void Property Repairs,3rd Party Payments,Contract Payments,CANTILLON GROUP LTD,SN25,29/07/2022,115.11
36934233,Void Repairs,Supervision & Management,Void Property Repairs,3rd Party Payments,Contract Payments,CANTILLON GROUP LTD,SN25,29/07/2022,"2,830.88"
36934233,Void Repairs,Supervision & Management,Void Property Repairs,3rd Party Payments,Contract Payments,CANTILLON GROUP LTD,SN25,29/07/2022,"4,852.27"
36934233,Void Repairs,Supervision & Management,Void Property Repairs,3rd Party Payments,Contract Payments,CANTILLON GROUP LTD,SN25,29/07/2022,"6,029.22"
36934233,Void Repairs,Supervision & Management,Void Property Repairs,3rd Party Payments,Contract Payments,CANTILLON GROUP LTD,SN25,29/07/2022,"8,938.76"
36934233,Planned Maintenance Programme,HRA Capital Financing,Kitchens,Capital,Contractor Payments,CANTILLON GROUP LTD,SN25,29/07/2022,"1,981.30"
36934233,Void Repairs,Supervision & Management,Void Property Repairs,3rd Party Payments,Contract Payments,CANTILLON GROUP LTD,SN25,29/07/2022,117.40
36934233,Void Repairs,Supervision & Management,Void Property Repairs,3rd Party Payments,Contract Payments,CANTILLON GROUP LTD,SN25,29/07/2022,"10,361.89"
36934233,Void Repairs,Supervision & Management,Void Property Repairs,3rd Party Payments,Contract Payments,CANTILLON GROUP LTD,SN25,29/07/2022,"2,506.20"
36921233,Landscaping & Open Space,Culture & Heritage & Art,Spring Gardens Refurbishment,Capital,Contractor Payments,CANTILLON GROUP LTD,SN25,29/07/2022,"32,476.07"
31933235,Planned Maintenance Programme,HRA Capital Financing,Improvements,Capital,Contractor Payments,CANTILLON GROUP LTD,SN25,06/07/2022,"-1,000.00"
31933235,Planned Maintenance Programme,HRA Capital Financing,Improvements,Capital,Contractor Payments,CANTILLON GROUP LTD,SN25,06/07/2022,"2,429.35"
36934233,Planned Maintenance Programme,HRA Capital Financing,Bathrooms,Capital,Contractor Payments,CANTILLON GROUP LTD,SN25,29/07/2022,"1,202.52"
36934233,Planned Maintenance Programme,HRA Capital Financing,Bathrooms,Capital,Contractor Payments,CANTILLON GROUP LTD,SN25,29/07/2022,"3,226.16"
36934233,Planned Maintenance Programme,HRA Capital Financing,Kitchens,Capital,Contractor Payments,CANTILLON GROUP LTD,SN25,29/07/2022,"4,024.24"
36934233,Void Repairs,Supervision & Management,Void Property Repairs,3rd Party Payments,Contract Payments,CANTILLON GROUP LTD,SN25,29/07/2022,"7,402.27"
36934233,Void Repairs,Supervision & Management,Void Property Repairs,3rd Party Payments,Contract Payments,CANTILLON GROUP LTD,SN25,29/07/2022,"5,966.01"
36934233,Void Repairs,Supervision & Management,Void Property Repairs,3rd Party Payments,Contract Payments,CANTILLON GROUP LTD,SN25,29/07/2022,"-40,000.00"
36934233,Void Repairs,Supervision & Management,Void Property Repairs,3rd Party Payments,Contract Payments,CANTILLON GROUP LTD,SN25,29/07/2022,"6,862.20"
36934233,Planned Maintenance Programme,HRA Capital Financing,Bathrooms,Capital,Contractor Payments,CANTILLON GROUP LTD,SN25,29/07/2022,"1,516.14"
36934233,Planned Maintenance Programme,HRA Capital Financing,Kitchens,Capital,Contractor Payments,CANTILLON GROUP LTD,SN25,29/07/2022,393.66
36934233,Void Repairs,Supervision & Management,Void Property Repairs,3rd Party Payments,Contract Payments,CANTILLON GROUP LTD,SN25,29/07/2022,"3,859.72"
36934233,Void Repairs,Supervision & Management,Void Property Repairs,3rd Party Payments,Contract Payments,CANTILLON GROUP LTD,SN25,29/07/2022,"4,316.73"
36934233,Planned Maintenance Programme,HRA Capital Financing,Central Heating,Capital,Contractor Payments,CANTILLON GROUP LTD,SN25,29/07/2022,"4,961.71"
36934233,Planned Maintenance Programme,HRA Capital Financing,Bathrooms,Capital,Contractor Payments,CANTILLON GROUP LTD,SN25,29/07/2022,"2,459.26"
36921233,Landscaping & Open Space,Culture & Heritage & Art,Spring Gardens Refurbishment,Capital,Contractor Payments,CANTILLON GROUP LTD,SN25,29/07/2022,"20,000.00"
31933235,Planned Maintenance Programme,HRA Capital Financing,Improvements,Capital,Contractor Payments,CANTILLON GROUP LTD,SN25,06/07/2022,"1,000.00"
31933235,Planned Maintenance Programme,HRA Capital Financing,Contingent Major Repairs,Capital,Contractor Payments,CANTILLON GROUP LTD,SN25,06/07/2022,330.00
36934233,Planned Maintenance Programme,HRA Capital Financing,Kitchens,Capital,Contractor Payments,CANTILLON GROUP LTD,SN25,29/07/2022,"2,755.83"
36934233,Void Repairs,Supervision & Management,Void Property Repairs,3rd Party Payments,Contract Payments,CANTILLON GROUP LTD,SN25,29/07/2022,"40,000.00"
36934233,Void Repairs,Supervision & Management,Void Property Repairs,3rd Party Payments,Contract Payments,CANTILLON GROUP LTD,SN25,29/07/2022,"1,664.99"
36934233,Void Repairs,Supervision & Management,Void Property Repairs,3rd Party Payments,Contract Payments,CANTILLON GROUP LTD,SN25,29/07/2022,"3,367.50"
36934233,Void Repairs,Supervision & Management,Void Property Repairs,3rd Party Payments,Contract Payments,CANTILLON GROUP LTD,SN25,29/07/2022,"3,119.96"
36934233,Void Repairs,Supervision & Management,Void Property Repairs,3rd Party Payments,Contract Payments,CANTILLON GROUP LTD,SN25,29/07/2022,80.29
35301234,Revenues & Benefits,Revenues & Benefits,Benefits,3rd Party Payments,Capita Strategic Partnership Service Charges,CAPITA BUSINESS SERVICES LTD,DL1 ,22/07/2022,"196,361.57"
32902234,Business Development,Supervision & Management,ICT & Administration,Supplies and Services,Equipment,CAPITA BUSINESS SERVICES LTD,DL1 ,11/07/2022,"9,150.00"
31889233,Business Development,Supervision & Management,ICT & Administration,Supplies and Services,Repairs & Maintenance,CAPITA BUSINESS SERVICES LTD,DL1 ,04/07/2022,"2,562.50"
35301234,Revenues & Benefits,Revenues & Benefits,Revenues,3rd Party Payments,Capita Strategic Partnership Service Charges,CAPITA BUSINESS SERVICES LTD,DL1 ,22/07/2022,"110,984.36"
35301234,Revenues & Benefits,Revenues & Benefits,Benefits,3rd Party Payments,Capita Strategic Partnership Service Charges,CAPITA BUSINESS SERVICES LTD,DL1 ,22/07/2022,"2,613.00"
35301234,Revenues & Benefits,Revenues & Benefits,Revenues,3rd Party Payments,Capita Strategic Partnership Service Charges,CAPITA BUSINESS SERVICES LTD,DL1 ,22/07/2022,"12,838.24"
35788233,Social Care,"Children, Families and Community Health Services",External Placements,3rd Party Payments,Independent Fostering Agency Placements,CAPSTONE FOSTER CARE (SW) LTD,TQ12,22/07/2022,"3,270.63"
35789233,Social Care,"Children, Families and Community Health Services",External Placements,3rd Party Payments,Independent Fostering Agency Placements,CAPSTONE FOSTER CARE (SW) LTD,TQ12,22/07/2022,"3,587.01"
35790233,Social Care,"Children, Families and Community Health Services",External Placements,3rd Party Payments,Independent Fostering Agency Placements,CAPSTONE FOSTER CARE (SW) LTD,TQ12,22/07/2022,"3,587.01"
33363233,Treasury,Corporate Finance,Treasury,Supplies and Services,Fees,CARD PROCESSING ADVISORY SERVICES LTD (CPRAS),W1W ,13/07/2022,"2,570.96"
34086244,Learning Disabilities,Adults,Learning Disability 65 and over,3rd Party Payments,Residential Care,CARE LTD,BS16,15/07/2022,"5,407.08"
34086244,Learning Disabilities,Adults,Learning Disability 65 and over,3rd Party Payments,Residential Care,CARE LTD,BS16,15/07/2022,"-14,030.78"
34086244,Learning Disabilities,Adults,Learning Disability 65 and over,Income,Client Contribution - Residential,CARE LTD,BS16,15/07/2022,-855.00
34086244,Learning Disabilities,Adults,Learning Disability 65 and over,3rd Party Payments,Residential Care,CARE LTD,BS16,15/07/2022,"11,779.71"
34122234,Learning Disabilities,Adults,Learning Disability 26 - 64,3rd Party Payments,Supported Living,CAREFORYOU LTD,N13 ,15/07/2022,"4,882.00"
32212233,Physical Support,Adults,Physical Support 65 and over,3rd Party Payments,Personal Budget - Domiciliary care,CAREWATCH (SWINDON),BA14,06/07/2022,952.40
32214234,Physical Support,Adults,Physical Support 65 and over,3rd Party Payments,Personal Budget - Domiciliary care,CAREWATCH (SWINDON),BA14,06/07/2022,"2,614.32"
32216233,Physical Support,Adults,Physical Support 65 and over,3rd Party Payments,Personal Budget - Domiciliary care,CAREWATCH (SWINDON),BA14,06/07/2022,"1,329.18"
32211238,Physical Support,Adults,Physical Support 65 and over,3rd Party Payments,Carers,CAREWATCH (SWINDON),BA14,06/07/2022,566.72
32214233,Physical Support,Adults,Physical Support 65 and over,3rd Party Payments,Personal Budget - Domiciliary care,CAREWATCH (SWINDON),BA14,06/07/2022,803.88
32211237,Physical Support,Adults,Physical Support 65 and over,3rd Party Payments,Personal Budget - Domiciliary care,CAREWATCH (SWINDON),BA14,06/07/2022,844.08
32219233,Physical Support,Adults,Physical Support 65 and over,3rd Party Payments,Personal Budget - Domiciliary care,CAREWATCH (SWINDON),BA14,06/07/2022,"2,408.36"
32217233,Physical Support,Adults,Physical Support 18 - 64,3rd Party Payments,Personal Budget - Domiciliary care,CAREWATCH (SWINDON),BA14,06/07/2022,"2,881.00"
32211239,Physical Support,Adults,Physical Support 65 and over,3rd Party Payments,Personal Budget - Domiciliary care,CAREWATCH (SWINDON),BA14,06/07/2022,"2,979.76"
32216234,Physical Support,Adults,Physical Support 65 and over,3rd Party Payments,Personal Budget - Domiciliary care,CAREWATCH (SWINDON),BA14,06/07/2022,580.96
32218233,Physical Support,Adults,Physical Support 65 and over,3rd Party Payments,Personal Budget - Domiciliary care,CAREWATCH (SWINDON),BA14,06/07/2022,"1,452.40"
32215234,Physical Support,Adults,Physical Support 65 and over,3rd Party Payments,Personal Budget - Domiciliary care,CAREWATCH (SWINDON),BA14,06/07/2022,"3,100.08"
32548233,"Children, Families & Community Health Services","Children, Familities & Community Health Services",Children's ICS Project,Capital,Contractor Payments,CAREWORKS LTD,SL3 ,08/07/2022,949.95
37158233,Social Care,"Children, Families and Community Health Services",Unaccompanied Asylum Seeking Children (UASC),3rd Party Payments,Supported Living,CARING FOR COMMUNITIES AND PEOPLE (CCP),GL50,29/07/2022,"1,270.00"
37155233,Social Care,"Children, Families and Community Health Services",Unaccompanied Asylum Seeking Children (UASC),3rd Party Payments,Supported Living,CARING FOR COMMUNITIES AND PEOPLE (CCP),GL50,29/07/2022,"2,640.00"
37157233,Social Care,"Children, Families and Community Health Services",Unaccompanied Asylum Seeking Children (UASC),3rd Party Payments,Supported Living,CARING FOR COMMUNITIES AND PEOPLE (CCP),GL50,29/07/2022,"5,310.00"
37157234,Social Care,"Children, Families and Community Health Services",Unaccompanied Asylum Seeking Children (UASC),3rd Party Payments,Supported Living,CARING FOR COMMUNITIES AND PEOPLE (CCP),GL50,29/07/2022,"6,390.00"
37156233,Social Care,"Children, Families and Community Health Services",Placement - Care Leaver Team,3rd Party Payments,Supported Living,CARING FOR COMMUNITIES AND PEOPLE (CCP),GL50,29/07/2022,"2,640.00"
37157235,Social Care,"Children, Families and Community Health Services",External Placements,3rd Party Payments,Supported Living,CARING FOR COMMUNITIES AND PEOPLE (CCP),GL50,29/07/2022,950.00
32300276,Physical Support,Adults,Physical Support 18 - 64,3rd Party Payments,Personal Budget - Domiciliary care,CARING HEART CARERS LIMITED,SN25,06/07/2022,932.16
35109242,Physical Support,Adults,Physical Support 65 and over,3rd Party Payments,Personal Budget - Domiciliary care,CARING HEART CARERS LIMITED,SN25,20/07/2022,866.84
32300277,Physical Support,Adults,Physical Support 65 and over,3rd Party Payments,Personal Budget - Domiciliary care,CARING HEART CARERS LIMITED,SN25,06/07/2022,"1,061.00"
32300278,Physical Support,Adults,Physical Support 18 - 64,3rd Party Payments,Personal Budget - Domiciliary care,CARING HEART CARERS LIMITED,SN25,06/07/2022,884.56
35480233,Lydiard Park,Streetsmart,Lydiard : Hotel Operations,Supplies and Services,Repairs & Maintenance,CARLTON SERVICES (UK) LTD,SN3 ,22/07/2022,"1,358.00"
37039233,Learning Disabilities,Adults,Learning Disability 26 - 64,Transfer Payments,Personal Budget - Direct Payments - Domiciliary Care,REDACTED PERSONAL DATA,SN2 ,29/07/2022,"2,357.21"
37053460,Physical Support,Adults,Physical Support 65 and over,3rd Party Payments,Carers,REDACTED PERSONAL DATA,SP11,29/07/2022,527.66
33526240,Early Years Block,DSG Skills and Attainment,Free Nursery Education Commissioning - three & four  year olds,3rd Party Payments,Contracts - Child Care,REDACTED PERSONAL DATA,SN25,13/07/2022,"1,161.39"
33526239,Early Years Block,DSG Skills and Attainment,Free Nursery Education Commissioning - three & four  year olds,3rd Party Payments,Contracts - Child Care,REDACTED PERSONAL DATA,SN4 ,13/07/2022,535.60
37053464,Learning Disabilities,Adults,Learning Disability 26 - 64,Transfer Payments,Personal Budget - Direct Payments - Other,REDACTED PERSONAL DATA,SN2 ,29/07/2022,681.56
37053463,Learning Disabilities,Adults,Learning Disability 26 - 64,Transfer Payments,Personal Budget - Direct Payments - Domiciliary Care,REDACTED PERSONAL DATA,SN2 ,29/07/2022,"1,800.31"
33376246,Early Years Block,DSG Skills and Attainment,Free Nursery Education Commissioning - three & four  year olds,3rd Party Payments,Contracts - Child Care,REDACTED PERSONAL DATA,SN3 ,13/07/2022,681.09
36007233,Responsive Repairs,Repairs,Responsive Repairs,Supplies and Services,Materials,CARPET WAREHOUSE SWINDON LTD,SN2 ,25/07/2022,800.00
34851233,Responsive Repairs,Repairs,Responsive Repairs,Supplies and Services,Materials,CARPET WAREHOUSE SWINDON LTD,SN2 ,20/07/2022,800.00
36006233,Responsive Repairs,Repairs,Responsive Repairs,3rd Party Payments,Contract Payments,CARPET WAREHOUSE SWINDON LTD,SN2 ,25/07/2022,"1,000.00"
33485233,Responsive Repairs,Repairs,Responsive Repairs,3rd Party Payments,Contract Payments,CARPET WAREHOUSE SWINDON LTD,SN2 ,13/07/2022,925.43
32557233,Responsive Repairs,Repairs,Responsive Repairs,3rd Party Payments,Contract Payments,CARPET WAREHOUSE SWINDON LTD,SN2 ,08/07/2022,888.18
32555233,Responsive Repairs,Repairs,Responsive Repairs,3rd Party Payments,Contract Payments,CARPET WAREHOUSE SWINDON LTD,SN2 ,08/07/2022,957.48
32553233,Responsive Repairs,Repairs,Responsive Repairs,3rd Party Payments,Contract Payments,CARPET WAREHOUSE SWINDON LTD,SN2 ,08/07/2022,650.34
32554233,Responsive Repairs,Repairs,Responsive Repairs,3rd Party Payments,Contract Payments,CARPET WAREHOUSE SWINDON LTD,SN2 ,08/07/2022,956.67
32551233,Responsive Repairs,Repairs,Responsive Repairs,3rd Party Payments,Contract Payments,CARPET WAREHOUSE SWINDON LTD,SN2 ,08/07/2022,525.00
34850233,Responsive Repairs,Repairs,Responsive Repairs,Supplies and Services,Materials,CARPET WAREHOUSE SWINDON LTD,SN2 ,20/07/2022,700.00
32558233,Responsive Repairs,Repairs,Responsive Repairs,3rd Party Payments,Contract Payments,CARPET WAREHOUSE SWINDON LTD,SN2 ,08/07/2022,"1,166.38"
32552233,Responsive Repairs,Repairs,Responsive Repairs,3rd Party Payments,Contract Payments,CARPET WAREHOUSE SWINDON LTD,SN2 ,08/07/2022,786.50
31956234,Responsive Repairs,Repairs,Responsive Repairs,3rd Party Payments,Contract Payments,CARPET WAREHOUSE SWINDON LTD,SN2 ,06/07/2022,800.00
32556233,Responsive Repairs,Repairs,Responsive Repairs,3rd Party Payments,Contract Payments,CARPET WAREHOUSE SWINDON LTD,SN2 ,08/07/2022,982.73
31957233,Responsive Repairs,Repairs,Responsive Repairs,3rd Party Payments,Contract Payments,CARPET WAREHOUSE SWINDON LTD,SN2 ,06/07/2022,600.00
Corporate Card Transaction,ASC Finance Services Teams,ASC Finance Services,ASC Money Management Team,Supplies and Services,Services,Carpets 4 Less,,25/07/2022,523.00
35952233,Social Care,"Children, Families and Community Health Services",Legal Fees,Supplies and Services,Fees,CARTER BROWN LTD,B15 ,25/07/2022,"2,140.90"
35953233,Social Care,"Children, Families and Community Health Services",Legal Fees,Supplies and Services,Fees,CARTER BROWN LTD,B15 ,25/07/2022,656.75
35488233,Social Care,"Children, Families and Community Health Services",Legal Fees,Supplies and Services,Fees,CARTER BROWN LTD,B15 ,22/07/2022,609.25
35485233,Social Care,"Children, Families and Community Health Services",Legal Fees,Supplies and Services,Fees,CARTER BROWN LTD,B15 ,22/07/2022,"3,000.20"
37053234,Learning Disabilities,Adults,Learning Disability 26 - 64,Transfer Payments,Personal Budget - Direct Payments - Domiciliary Care,REDACTED PERSONAL DATA,SN6 ,29/07/2022,"2,279.00"
32200233,Traded Services,Inclusion and Achievement,Plas Pencelli Outdoor Education Centre,Supplies and Services,Materials,CASTELL HOWELL FOOD LIMITED,SA14,06/07/2022,786.33
32200233,Traded Services,Inclusion and Achievement,Plas Pencelli Outdoor Education Centre,Supplies and Services,Materials,CASTELL HOWELL FOOD LIMITED,SA14,06/07/2022,"1,896.35"
35234235,Traded Services,Inclusion and Achievement,Plas Pencelli Outdoor Education Centre,Supplies and Services,Materials,CASTELL HOWELL FOOD LIMITED,SA14,20/07/2022,447.36
34047234,Traded Services,Inclusion and Achievement,Plas Pencelli Outdoor Education Centre,Supplies and Services,Materials,CASTELL HOWELL FOOD LIMITED,SA14,15/07/2022,"1,474.14"
34047234,Traded Services,Inclusion and Achievement,Plas Pencelli Outdoor Education Centre,Supplies and Services,Materials,CASTELL HOWELL FOOD LIMITED,SA14,15/07/2022,430.30
35234235,Traded Services,Inclusion and Achievement,Plas Pencelli Outdoor Education Centre,Supplies and Services,Materials,CASTELL HOWELL FOOD LIMITED,SA14,20/07/2022,971.84
33703234,Treasury,Corporate Finance,Private Finance Initiatives (PFI),Supplies and Services,Services,CASTLE GATE LEGAL & COMMERCIAL LTD,NG12,13/07/2022,"2,000.00"
34625233,Treasury,Corporate Finance,Private Finance Initiatives (PFI),Supplies and Services,Services,CASTLE GATE LEGAL & COMMERCIAL LTD,NG12,18/07/2022,"1,000.00"
32367234,,,Balance Sheet,Balance Sheet & Recharge,Water invoices,CASTLE WATER LTD,PH10,06/07/2022,"19,343.83"
36931233,,,Balance Sheet,Balance Sheet & Recharge,Water invoices,CASTLE WATER LTD,PH10,29/07/2022,-982.25
36929233,,,Balance Sheet,Balance Sheet & Recharge,Water invoices,CASTLE WATER LTD,PH10,29/07/2022,"-339,946.96"
36927233,,,Balance Sheet,Balance Sheet & Recharge,Water invoices,CASTLE WATER LTD,PH10,29/07/2022,-671.85
36927233,,,Balance Sheet,Balance Sheet & Recharge,Water invoices,CASTLE WATER LTD,PH10,29/07/2022,"339,946.96"
36931233,,,Balance Sheet,Balance Sheet & Recharge,Water invoices,CASTLE WATER LTD,PH10,29/07/2022,"87,037.03"
36932233,,,Balance Sheet,Balance Sheet & Recharge,Water invoices,CASTLE WATER LTD,PH10,29/07/2022,"-1,629.22"
36929233,,,Balance Sheet,Balance Sheet & Recharge,Water invoices,CASTLE WATER LTD,PH10,29/07/2022,671.85
34437233,Social Care,"Children, Families and Community Health Services",No Recourse to Public Funds,3rd Party Payments,No Recourse to Public Funds,CASTLES ESTATE AGENTS & MORTGAGE SERVICES LTD,SN1 ,18/07/2022,750.00
34438233,Social Care,"Children, Families and Community Health Services",No Recourse to Public Funds,3rd Party Payments,No Recourse to Public Funds,CASTLES ESTATE AGENTS & MORTGAGE SERVICES LTD,SN1 ,18/07/2022,750.00
34088241,Learning Disabilities,Adults,Learning Disability 26 - 64,Income,Client Contribution - Residential,CATHEDRAL HOMES,GL1 ,15/07/2022,-414.20
34088241,Learning Disabilities,Adults,Learning Disability 26 - 64,3rd Party Payments,Residential Care,CATHEDRAL HOMES,GL1 ,15/07/2022,"5,260.24"
34088241,Learning Disabilities,Adults,Learning Disability 26 - 64,3rd Party Payments,Residential Care,CATHEDRAL HOMES,GL1 ,15/07/2022,"5,961.60"
36951233,Museums & Heritage,Culture & Heritage,Steam:Operations,Supplies and Services,Contracts,CATHEDRAL LEASING LIMITED,B77 ,29/07/2022,"1,089.48"
36215234,Early Help,"Children, Families and Community Health Services","Holiday, Activities & Food Grant",3rd Party Payments,Contracts - Child Care,REDACTED PERSONAL DATA,SN5 ,27/07/2022,"1,080.00"
33376249,Early Years Block,DSG Skills and Attainment,Free Nursery Education Commissioning - three & four  year olds,3rd Party Payments,Contracts - Child Care,REDACTED PERSONAL DATA,SN5 ,13/07/2022,513.24
34389233,Learning Disabilities,Adults,Learning Disability 26 - 64,3rd Party Payments,Supported Accommodation Scheme,REDACTED PERSONAL DATA,SN6 ,20/07/2022,"1,671.04"
34389233,Learning Disabilities,Adults,Learning Disability 26 - 64,3rd Party Payments,Supported Accommodation Scheme,REDACTED PERSONAL DATA,SN6 ,20/07/2022,"2,444.96"
34389233,Learning Disabilities,Adults,Learning Disability 26 - 64,3rd Party Payments,Supported Accommodation Scheme,REDACTED PERSONAL DATA,SN6 ,20/07/2022,"2,058.96"
35794233,Social Care,"Children, Families and Community Health Services",External Placements,3rd Party Payments,Residential Care,CAUSEWAY CARE HOMES LTD,RG30,22/07/2022,"15,500.00"
32083233,Highways & Transport,Highways & Transport,Bridge Inspection and Maintenance,Supplies and Services,Repairs & Maintenance,CD FENCING & CONSTRUCTION SERVICES LTD,SN15,06/07/2022,"4,387.03"
34837265,Social Care,"Children, Families and Community Health Services",External Placements,3rd Party Payments,Supported Living,CEDAR HOPE CARE SERVICES LTD,RG1 ,20/07/2022,"10,168.00"
35907233,Physical Support,Adults,Physical Support 65 and over,3rd Party Payments,Personal Budget - Domiciliary care,CELTIC CARE SERVICES LTD,SN15,25/07/2022,"1,209.54"
35903233,Physical Support,Adults,Physical Support 65 and over,3rd Party Payments,Personal Budget - Domiciliary care,CELTIC CARE SERVICES LTD,SN15,25/07/2022,"2,574.72"
35905234,Physical Support,Adults,Physical Support 65 and over,3rd Party Payments,Personal Budget - Domiciliary care,CELTIC CARE SERVICES LTD,SN15,25/07/2022,"1,634.56"
35906233,Physical Support,Adults,Physical Support 65 and over,3rd Party Payments,Personal Budget - Domiciliary care,CELTIC CARE SERVICES LTD,SN15,25/07/2022,"1,430.40"
35904233,Mental Health,Adults,Mental Health 65 and over,3rd Party Payments,Personal Budget - Domiciliary care,CELTIC CARE SERVICES LTD,SN15,25/07/2022,572.16
34604233,Early Help,"Children, Families and Community Health Services","Holiday, Activities & Food Grant",3rd Party Payments,Contracts - Child Care,CENTRAL PRE-SCHOOL,SN1 ,20/07/2022,"1,476.00"
33527236,Early Years Block,DSG Skills and Attainment,Free Nursery Education Commissioning - three & four  year olds,3rd Party Payments,Contracts - Child Care,CENTRAL PRE-SCHOOL,SN1 ,13/07/2022,"10,133.50"
33527237,Early Years Block,DSG Skills and Attainment,Free Nursery Education Commissioning - two year olds,3rd Party Payments,Contracts - Child Care,CENTRAL PRE-SCHOOL,SN1 ,13/07/2022,"1,248.62"
37151233,Lydiard Park,Streetsmart,Lydiard : Hotel Operations,Supplies and Services,Hire / Rental,CHAMPIONS (UK) PLC,LE12,29/07/2022,500.00
35949233,Lydiard Park,Streetsmart,Lydiard : Forest Caf�,Supplies and Services,Confectionary,CHAPPLE & JENKINS LTD,BS15,25/07/2022,804.78
32997233,Lydiard Park,Streetsmart,Lydiard : Forest Caf�,Supplies and Services,Food,CHAPPLE & JENKINS LTD,BS15,13/07/2022,9.44
31913233,Lydiard Park,Streetsmart,Lydiard : Hotel Operations,Supplies and Services,Materials,CHAPPLE & JENKINS LTD,BS15,04/07/2022,830.79
31913233,Lydiard Park,Streetsmart,Lydiard : Hotel Operations,Supplies and Services,Liquid,CHAPPLE & JENKINS LTD,BS15,04/07/2022,"20,714.67"
32997233,Lydiard Park,Streetsmart,Lydiard : Forest Caf�,Supplies and Services,Confectionary,CHAPPLE & JENKINS LTD,BS15,13/07/2022,66.62
35949233,Lydiard Park,Streetsmart,Lydiard : Forest Caf�,Supplies and Services,Confectionary,CHAPPLE & JENKINS LTD,BS15,25/07/2022,10.92
32997233,Lydiard Park,Streetsmart,Lydiard : Forest Caf�,Supplies and Services,Confectionary,CHAPPLE & JENKINS LTD,BS15,13/07/2022,563.57
33739233,Other Repairs,Repairs,Unallocated job costs from OPEN system,Premises Costs,Maintenance - Buildings,CHARLES HARDING ESTATE AGENTS LIMITED,SN1 ,18/07/2022,30.00
34531233,Homelessness and Travellers,Housing Services,Homelessness Prevention,Transfer Payments,Payment of Costs,CHARLES HARDING LETTINGS AND PROPERTY MANAGEMENT,SN2 ,18/07/2022,"2,352.00"
35967233,Lydiard Park,Streetsmart,Lydiard : Forest Caf�,Supplies and Services,Confectionary,CHARLES SAUNDERS LTD,BS37,25/07/2022,845.17
35967233,Lydiard Park,Streetsmart,Lydiard : Forest Caf�,Supplies and Services,Food,CHARLES SAUNDERS LTD,BS37,25/07/2022,14.87
35967233,Lydiard Park,Streetsmart,Lydiard : Forest Caf�,Supplies and Services,Food,CHARLES SAUNDERS LTD,BS37,25/07/2022,372.49
34950233,Lydiard Park,Streetsmart,Lydiard : Coach House Caf�,Supplies and Services,Confectionary,CHARLES SAUNDERS LTD,BS37,20/07/2022,38.87
32866233,Physical Support,Adults,Fessey House,Supplies and Services,Food,CHARLES SAUNDERS LTD,BS37,11/07/2022,871.84
35431233,Lydiard Park,Streetsmart,Lydiard : Coach House Caf�,Supplies and Services,Food,CHARLES SAUNDERS LTD,BS37,22/07/2022,59.48
35431233,Lydiard Park,Streetsmart,Lydiard : Coach House Caf�,Supplies and Services,Food,CHARLES SAUNDERS LTD,BS37,22/07/2022,58.26
33779233,Lydiard Park,Streetsmart,Lydiard : Coach House Caf�,Supplies and Services,Confectionary,CHARLES SAUNDERS LTD,BS37,15/07/2022,811.19
35415233,Lydiard Park,Streetsmart,Lydiard : Forest Caf�,Supplies and Services,Confectionary,CHARLES SAUNDERS LTD,BS37,22/07/2022,543.68
35415233,Lydiard Park,Streetsmart,Lydiard : Forest Caf�,Supplies and Services,Food,CHARLES SAUNDERS LTD,BS37,22/07/2022,33.00
32865233,Physical Support,Adults,Fessey House,Supplies and Services,Food,CHARLES SAUNDERS LTD,BS37,11/07/2022,201.44
35968233,Lydiard Park,Streetsmart,Lydiard : Hotel Operations,Supplies and Services,Food,CHARLES SAUNDERS LTD,BS37,25/07/2022,29.74
33779233,Lydiard Park,Streetsmart,Lydiard : Coach House Caf�,Supplies and Services,Food,CHARLES SAUNDERS LTD,BS37,15/07/2022,25.02
34950233,Lydiard Park,Streetsmart,Lydiard : Coach House Caf�,Supplies and Services,Food,CHARLES SAUNDERS LTD,BS37,20/07/2022,266.21
35415233,Lydiard Park,Streetsmart,Lydiard : Forest Caf�,Supplies and Services,Confectionary,CHARLES SAUNDERS LTD,BS37,22/07/2022,256.56
36142233,Physical Support,Adults,Fessey House,Supplies and Services,Food,CHARLES SAUNDERS LTD,BS37,27/07/2022,219.97
35431233,Lydiard Park,Streetsmart,Lydiard : Coach House Caf�,Supplies and Services,Confectionary,CHARLES SAUNDERS LTD,BS37,22/07/2022,620.46
34950233,Lydiard Park,Streetsmart,Lydiard : Coach House Caf�,Supplies and Services,Materials,CHARLES SAUNDERS LTD,BS37,20/07/2022,25.36
32865233,Physical Support,Adults,Fessey House,Supplies and Services,Food,CHARLES SAUNDERS LTD,BS37,11/07/2022,874.02
36142233,Physical Support,Adults,Fessey House,Supplies and Services,Food,CHARLES SAUNDERS LTD,BS37,27/07/2022,968.13
32866233,Physical Support,Adults,Fessey House,Supplies and Services,Food,CHARLES SAUNDERS LTD,BS37,11/07/2022,197.89
35968233,Lydiard Park,Streetsmart,Lydiard : Hotel Operations,Supplies and Services,Food,CHARLES SAUNDERS LTD,BS37,25/07/2022,474.66
35431233,Lydiard Park,Streetsmart,Lydiard : Coach House Caf�,Supplies and Services,Confectionary,CHARLES SAUNDERS LTD,BS37,22/07/2022,87.47
34950233,Lydiard Park,Streetsmart,Lydiard : Coach House Caf�,Supplies and Services,Confectionary,CHARLES SAUNDERS LTD,BS37,20/07/2022,142.25
35966233,Human Resources and Organisational Development,"People, Culture and Organisational Resilience",Organisational Development,Employees,Training,CHARTERED TRADING STANDARDS INSTITUTE,SS15,25/07/2022,"1,710.00"
33577241,Early Years Block,DSG Skills and Attainment,Free Nursery Education Commissioning - two year olds,3rd Party Payments,Contracts - Child Care,CHEEKY CHIMPS,SN2 ,13/07/2022,"2,583.36"
34921233,High Needs Block,DSG Skills and Attainment,SEND Support,Supplies and Services,Payments to Educational Bodies,CHEEKY CHIMPS,SN2 ,20/07/2022,760.00
33577240,Early Years Block,DSG Skills and Attainment,Free Nursery Education Commissioning - three & four  year olds,3rd Party Payments,Contracts - Child Care,CHEEKY CHIMPS,SN2 ,13/07/2022,"17,767.65"
34086233,Physical Support,Adults,Physical Support 65 and over,Income,Client Contribution - Nursing,CHERITON (SW CARE) LTD,GL52,15/07/2022,-560.54
34086233,Physical Support,Adults,Physical Support 65 and over,Income,Client Contribution - Nursing,CHERITON (SW CARE) LTD,GL52,15/07/2022,-627.80
32888233,Physical Support,Adults,Physical Support 65 and over,3rd Party Payments,Other Care Packages,CHERITON (SW CARE) LTD,SN1 ,11/07/2022,"13,285.71"
34086233,Physical Support,Adults,Physical Support 65 and over,3rd Party Payments,Residential Care,CHERITON (SW CARE) LTD,GL52,15/07/2022,"2,560.12"
34086233,Physical Support,Adults,Physical Support 65 and over,3rd Party Payments,Nursing Care,CHERITON (SW CARE) LTD,GL52,15/07/2022,"3,600.00"
34086233,Physical Support,Adults,Physical Support 65 and over,Income,Client Contribution - Residential,CHERITON (SW CARE) LTD,GL52,15/07/2022,-608.80
34086233,Physical Support,Adults,Physical Support 65 and over,Income,Client Contribution - Nursing,CHERITON (SW CARE) LTD,GL52,15/07/2022,"-1,479.52"
34086233,Physical Support,Adults,Physical Support 65 and over,Income,Client Contribution - Residential,CHERITON (SW CARE) LTD,GL52,15/07/2022,-605.40
34086233,Physical Support,Adults,Physical Support 65 and over,3rd Party Payments,Residential Care,CHERITON (SW CARE) LTD,GL52,15/07/2022,"2,668.72"
34086233,Physical Support,Adults,Physical Support 65 and over,3rd Party Payments,Nursing Care,CHERITON (SW CARE) LTD,GL52,15/07/2022,"2,384.04"
34086233,Physical Support,Adults,Physical Support 65 and over,3rd Party Payments,Nursing Care,CHERITON (SW CARE) LTD,GL52,15/07/2022,"2,560.12"
34086233,Physical Support,Adults,Physical Support 65 and over,3rd Party Payments,Nursing Care,CHERITON (SW CARE) LTD,GL52,15/07/2022,"3,214.29"
34086233,Physical Support,Adults,Physical Support 65 and over,3rd Party Payments,Nursing Care,CHERITON (SW CARE) LTD,GL52,15/07/2022,"3,310.52"
34086233,Physical Support,Adults,Physical Support 65 and over,Income,Client Contribution - Nursing,CHERITON (SW CARE) LTD,GL52,15/07/2022,-678.48
34086233,Physical Support,Adults,Physical Support 18 - 64,3rd Party Payments,Residential Care,CHERITON (SW CARE) LTD,GL52,15/07/2022,"2,384.04"
34086233,Physical Support,Adults,Physical Support 65 and over,3rd Party Payments,Nursing Care,CHERITON (SW CARE) LTD,GL52,15/07/2022,"3,220.80"
34086233,Physical Support,Adults,Physical Support 65 and over,Income,Client Contribution - Nursing,CHERITON (SW CARE) LTD,GL52,15/07/2022,-968.72
34086233,Physical Support,Adults,Physical Support 65 and over,Income,Client Contribution - Residential,CHERITON (SW CARE) LTD,GL52,15/07/2022,-572.20
34086233,Physical Support,Adults,Physical Support 65 and over,Income,Client Contribution - Nursing,CHERITON (SW CARE) LTD,GL52,15/07/2022,-941.70
34086233,Physical Support,Adults,Physical Support 65 and over,3rd Party Payments,Residential Care,CHERITON (SW CARE) LTD,GL52,15/07/2022,"2,384.04"
35848233,Physical Support,Adults,Physical Support 65 and over,3rd Party Payments,Residential Care,CHERITON (SW CARE) LTD,SN1 ,25/07/2022,"2,612.36"
34086233,Physical Support,Adults,Physical Support 65 and over,Income,Client Contribution - Residential,CHERITON (SW CARE) LTD,GL52,15/07/2022,-610.00
34086233,Physical Support,Adults,Physical Support 65 and over,3rd Party Payments,Nursing Care,CHERITON (SW CARE) LTD,GL52,15/07/2022,"3,840.18"
33582235,Early Years Block,DSG Skills and Attainment,Free Nursery Education Commissioning - two year olds,3rd Party Payments,Contracts - Child Care,CHILD BASE NURSERIES,MK16,13/07/2022,"2,465.09"
33582234,Early Years Block,DSG Skills and Attainment,Free Nursery Education Commissioning - three & four  year olds,3rd Party Payments,Contracts - Child Care,CHILD BASE NURSERIES,MK16,13/07/2022,"19,165.25"
31592233,Responsive Repairs,Repairs,Responsive Repairs,3rd Party Payments,Contract Payments,CHILD SCAFFOLDING LTD,SN1 ,01/07/2022,580.00
31593233,Responsive Repairs,Repairs,Responsive Repairs,3rd Party Payments,Contract Payments,CHILD SCAFFOLDING LTD,SN1 ,01/07/2022,820.00
31593233,Responsive Repairs,Repairs,Responsive Repairs,3rd Party Payments,Contract Payments,CHILD SCAFFOLDING LTD,SN1 ,01/07/2022,580.00
34036233,Responsive Repairs,Repairs,Responsive Repairs,3rd Party Payments,Contract Payments,CHILD SCAFFOLDING LTD,SN1 ,15/07/2022,130.00
34036233,Responsive Repairs,Repairs,Responsive Repairs,3rd Party Payments,Contract Payments,CHILD SCAFFOLDING LTD,SN1 ,15/07/2022,195.00
34037233,Responsive Repairs,Repairs,Responsive Repairs,3rd Party Payments,Contract Payments,CHILD SCAFFOLDING LTD,SN1 ,15/07/2022,65.00
31592233,Responsive Repairs,Repairs,Responsive Repairs,3rd Party Payments,Contract Payments,CHILD SCAFFOLDING LTD,SN1 ,01/07/2022,680.00
31592233,Responsive Repairs,Repairs,Responsive Repairs,3rd Party Payments,Contract Payments,CHILD SCAFFOLDING LTD,SN1 ,01/07/2022,320.00
31593233,Responsive Repairs,Repairs,Responsive Repairs,3rd Party Payments,Contract Payments,CHILD SCAFFOLDING LTD,SN1 ,01/07/2022,640.00
31593233,Responsive Repairs,Repairs,Responsive Repairs,3rd Party Payments,Contract Payments,CHILD SCAFFOLDING LTD,SN1 ,01/07/2022,620.00
31592233,Responsive Repairs,Repairs,Responsive Repairs,3rd Party Payments,Contract Payments,CHILD SCAFFOLDING LTD,SN1 ,01/07/2022,660.00
31592233,Responsive Repairs,Repairs,Responsive Repairs,3rd Party Payments,Contract Payments,CHILD SCAFFOLDING LTD,SN1 ,01/07/2022,840.00
34037233,Responsive Repairs,Repairs,Responsive Repairs,3rd Party Payments,Contract Payments,CHILD SCAFFOLDING LTD,SN1 ,15/07/2022,260.00
31593233,Responsive Repairs,Repairs,Responsive Repairs,3rd Party Payments,Contract Payments,CHILD SCAFFOLDING LTD,SN1 ,01/07/2022,440.00
31593233,Responsive Repairs,Repairs,Responsive Repairs,3rd Party Payments,Contract Payments,CHILD SCAFFOLDING LTD,SN1 ,01/07/2022,480.00
31593233,Responsive Repairs,Repairs,Responsive Repairs,3rd Party Payments,Contract Payments,CHILD SCAFFOLDING LTD,SN1 ,01/07/2022,690.00
34036233,Responsive Repairs,Repairs,Responsive Repairs,3rd Party Payments,Contract Payments,CHILD SCAFFOLDING LTD,SN1 ,15/07/2022,65.00
34037233,Responsive Repairs,Repairs,Responsive Repairs,3rd Party Payments,Contract Payments,CHILD SCAFFOLDING LTD,SN1 ,15/07/2022,195.00
31592233,Responsive Repairs,Repairs,Responsive Repairs,3rd Party Payments,Contract Payments,CHILD SCAFFOLDING LTD,SN1 ,01/07/2022,280.00
31592233,Responsive Repairs,Repairs,Responsive Repairs,3rd Party Payments,Contract Payments,CHILD SCAFFOLDING LTD,SN1 ,01/07/2022,480.00
34037233,Responsive Repairs,Repairs,Responsive Repairs,3rd Party Payments,Contract Payments,CHILD SCAFFOLDING LTD,SN1 ,15/07/2022,130.00
31592233,Responsive Repairs,Repairs,Responsive Repairs,3rd Party Payments,Contract Payments,CHILD SCAFFOLDING LTD,SN1 ,01/07/2022,380.00
31592233,Responsive Repairs,Repairs,Responsive Repairs,3rd Party Payments,Contract Payments,CHILD SCAFFOLDING LTD,SN1 ,01/07/2022,520.00
31593233,Responsive Repairs,Repairs,Responsive Repairs,3rd Party Payments,Contract Payments,CHILD SCAFFOLDING LTD,SN1 ,01/07/2022,680.00
34036233,Responsive Repairs,Repairs,Responsive Repairs,3rd Party Payments,Contract Payments,CHILD SCAFFOLDING LTD,SN1 ,15/07/2022,260.00
34276233,Social Care,"Children, Families and Community Health Services",Looked After Children Service,3rd Party Payments,Personal Needs,CHILDREN'S CONTACT SERVICES LTD,BS9 ,15/07/2022,696.00
34275233,Social Care,"Children, Families and Community Health Services",Looked After Children Service,3rd Party Payments,Personal Needs,CHILDREN'S CONTACT SERVICES LTD,BS9 ,15/07/2022,"1,758.22"
37154233,Parking & Bus lanes,Highway Operations and Car Parking,Street Parking,Supplies and Services,Materials,CHIPSIDE LTD,SN15,29/07/2022,392.70
37154233,Parking & Bus lanes,Highway Operations and Car Parking,Bus Lane Enforcement,Supplies and Services,Materials,CHIPSIDE LTD,SN15,29/07/2022,329.70
37154233,Parking & Bus lanes,Highway Operations and Car Parking,Bus Lane Enforcement,Supplies and Services,Materials,CHIPSIDE LTD,SN15,29/07/2022,19.57
37154233,Parking & Bus lanes,Highway Operations and Car Parking,Bus Lane Enforcement,Supplies and Services,Materials,CHIPSIDE LTD,SN15,29/07/2022,"1,096.68"
37154233,Parking & Bus lanes,Highway Operations and Car Parking,Street Parking,Supplies and Services,Materials,CHIPSIDE LTD,SN15,29/07/2022,835.62
33377234,Early Years Block,DSG Skills and Attainment,Free Nursery Education Commissioning - three & four  year olds,3rd Party Payments,Contracts - Child Care,CHISELDON PRIMARY SCHOOL,SN4 ,13/07/2022,"4,771.32"
34194233,Schools Block - Central,DSG Skills and Attainment,Universal Infant Free School Meals,Supplies and Services,Payments to Educational Bodies,CHISELDON PRIMARY SCHOOL,SN4 ,18/07/2022,"2,338.00"
34213233,DSG Other Funding,DSG Skills and Attainment,DFE Additional Grants,Supplies and Services,Payments to Educational Bodies,CHISELDON PRIMARY SCHOOL,SN4 ,18/07/2022,"1,051.25"
34201244,Schools - Primary,DSG Skills and Attainment,Primary School Budgets,3rd Party Payments,Mainstream Delegated Funding,CHISELDON PRIMARY SCHOOL,SN4 ,18/07/2022,"62,191.00"
33378233,Early Years Block,DSG Skills and Attainment,Free Nursery Education Commissioning - two year olds,3rd Party Payments,Contracts - Child Care,CHISELDON PRIMARY SCHOOL,SN4 ,13/07/2022,559.73
34194234,Schools Block - Central,DSG Skills and Attainment,Universal Infant Free School Meals,Supplies and Services,Payments to Educational Bodies,CHISELDON PRIMARY SCHOOL,SN4 ,18/07/2022,"9,083.00"
34201243,DSG Other Funding,DSG Skills and Attainment,DFE Additional Grants,3rd Party Payments,Payment of Pupil Premium to school,CHISELDON PRIMARY SCHOOL,SN4 ,18/07/2022,"3,679.00"
34089244,Learning Disabilities,Adults,Learning Disability 26 - 64,Income,Client Contribution - Residential,CHOSEN CARE LTD,GL3 ,15/07/2022,-359.00
34089244,Learning Disabilities,Adults,Learning Disability 26 - 64,Income,Client Contribution - Residential,CHOSEN CARE LTD,GL3 ,15/07/2022,-319.00
34089244,Learning Disabilities,Adults,Learning Disability 26 - 64,3rd Party Payments,Residential Care,CHOSEN CARE LTD,GL3 ,15/07/2022,"7,145.08"
34089244,Learning Disabilities,Adults,Learning Disability 65 and over,Income,Client Contribution - Residential,CHOSEN CARE LTD,GL3 ,15/07/2022,-605.80
34089244,Learning Disabilities,Adults,Learning Disability 26 - 64,3rd Party Payments,Residential Care,CHOSEN CARE LTD,GL3 ,15/07/2022,"11,209.16"
34089244,Learning Disabilities,Adults,Learning Disability 65 and over,3rd Party Payments,Residential Care,CHOSEN CARE LTD,GL3 ,15/07/2022,"7,297.20"
34089244,Learning Disabilities,Adults,Learning Disability 26 - 64,3rd Party Payments,Residential Care,CHOSEN CARE LTD,GL3 ,15/07/2022,"7,137.76"
37053318,Physical Support,Adults,Physical Support 18 - 64,Transfer Payments,Personal Budget - Direct Payments - Domiciliary Care,REDACTED PERSONAL DATA,SN25,29/07/2022,763.29
31797233,Social Care,"Children, Families and Community Health Services",Placement Adoption Service,3rd Party Payments,Adoption Allowances,REDACTED PERSONAL DATA,SN6 ,04/07/2022,"1,055.64"
34471234,Social Care,"Children, Families and Community Health Services",Placement Adoption Service,3rd Party Payments,Adoption Allowances,REDACTED PERSONAL DATA,SN6 ,18/07/2022,"1,055.64"
31796240,Social Care,"Children, Families and Community Health Services",Placement Adoption Service,3rd Party Payments,Adoption Allowances,REDACTED PERSONAL DATA,SN6 ,04/07/2022,699.84
34471233,Social Care,"Children, Families and Community Health Services",Placement Adoption Service,3rd Party Payments,Adoption Allowances,REDACTED PERSONAL DATA,SN6 ,18/07/2022,699.84
32018237,Social Care,"Children, Families and Community Health Services",External Placements,3rd Party Payments,Independent Fostering Agency Placements,CHRYSALISCARE LTD,DA7 ,06/07/2022,"3,697.99"
32018238,Social Care,"Children, Families and Community Health Services",External Placements,3rd Party Payments,Independent Fostering Agency Placements,CHRYSALISCARE LTD,DA7 ,06/07/2022,"5,881.01"
32534233,Other Repairs,Repairs,Asbestos Services,Premises Costs,Permanent Fixtures and Fittings,CHUBB FIRE & SECURITY T/A CHUBB COMMUNITY CARE,BB1 ,08/07/2022,"8,931.37"
34123233,Planned Maintenance Programme,HRA Capital Financing,Electrics,Capital,Contractor Payments,CHUBB FIRE & SECURITY T/A CHUBB COMMUNITY CARE,BB1 ,15/07/2022,"33,945.07"
35975233,Homeline,Special Services,Homeline,Supplies and Services,Materials,CHUBB FIRE & SECURITY T/A CHUBB COMMUNITY CARE,BB1 ,25/07/2022,798.00
34093233,Physical Support,Adults,Physical Support 65 and over,Income,Client Contribution - Nursing,CHURCH VIEW,SN3 ,15/07/2022,"-1,802.48"
34093233,Mental Health,Adults,Mental Health 65 and over,Income,Client Contribution - Nursing,CHURCH VIEW,SN3 ,15/07/2022,-627.80
34093233,Physical Support,Adults,Physical Support 65 and over,Income,Client Contribution - Nursing,CHURCH VIEW,SN3 ,15/07/2022,-351.16
34093233,Mental Health,Adults,Mental Health 65 and over,3rd Party Payments,Nursing Care,CHURCH VIEW,SN3 ,15/07/2022,"5,000.00"
34093233,Physical Support,Adults,Physical Support 65 and over,Income,Client Contribution - Nursing,CHURCH VIEW,SN3 ,15/07/2022,-535.88
34093233,Physical Support,Adults,Physical Support 65 and over,Income,Client Contribution - Nursing,CHURCH VIEW,SN3 ,15/07/2022,-763.24
34093233,Physical Support,Adults,Physical Support 65 and over,Income,Client Contribution - Nursing,CHURCH VIEW,SN3 ,15/07/2022,-606.52
34093233,Physical Support,Adults,Physical Support 65 and over,Income,Client Contribution - Nursing,CHURCH VIEW,SN3 ,15/07/2022,-620.28
34093233,Physical Support,Adults,Physical Support 65 and over,Income,Client Contribution - Nursing,CHURCH VIEW,SN3 ,15/07/2022,-741.88
34093233,Physical Support,Adults,Physical Support 65 and over,Income,Client Contribution - Nursing,CHURCH VIEW,SN3 ,15/07/2022,-833.52
34093233,Physical Support,Adults,Physical Support 65 and over,Income,Client Contribution - Nursing,CHURCH VIEW,SN3 ,15/07/2022,-911.16
34093233,Physical Support,Adults,Physical Support 65 and over,Income,Client Contribution - Nursing,CHURCH VIEW,SN3 ,15/07/2022,"-1,288.96"
34093233,Physical Support,Adults,Physical Support 65 and over,3rd Party Payments,Nursing Care,CHURCH VIEW,SN3 ,15/07/2022,"5,235.68"
34093233,Physical Support,Adults,Physical Support 65 and over,Income,Client Contribution - Nursing,CHURCH VIEW,SN3 ,15/07/2022,-999.64
34093233,Physical Support,Adults,Physical Support 65 and over,Income,Client Contribution - Nursing,CHURCH VIEW,SN3 ,15/07/2022,-610.00
34093233,Physical Support,Adults,Physical Support 65 and over,Income,Client Contribution - Nursing,CHURCH VIEW,SN3 ,15/07/2022,-910.56
34093233,Physical Support,Adults,Physical Support 65 and over,3rd Party Payments,Nursing Care,CHURCH VIEW,SN3 ,15/07/2022,"2,668.72"
34093233,Physical Support,Adults,Physical Support 65 and over,3rd Party Payments,Nursing Care,CHURCH VIEW,SN3 ,15/07/2022,"2,560.12"
37074235,Other Repairs,Repairs,Unallocated job costs from OPEN system,Premises Costs,Repairs - Buildings,CHURCHES FIRE SECURITY LTD,SO53,29/07/2022,"1,626.39"
37139233,Other Repairs,Repairs,Unallocated job costs from OPEN system,Premises Costs,Repairs - Buildings,CHURCHES FIRE SECURITY LTD,SO53,29/07/2022,"2,138.19"
37134233,Other Repairs,Repairs,Unallocated job costs from OPEN system,Premises Costs,Repairs - Buildings,CHURCHES FIRE SECURITY LTD,SO53,29/07/2022,"1,671.84"
37133233,Other Repairs,Repairs,Unallocated job costs from OPEN system,Premises Costs,Repairs - Buildings,CHURCHES FIRE SECURITY LTD,SO53,29/07/2022,"1,137.97"
37135233,Parking & Bus lanes,Highway Operations and Car Parking,Car Parking,Premises Costs,Repairs - Buildings,CHURCHES FIRE SECURITY LTD,SO53,29/07/2022,"1,203.02"
37137233,Facilities Management,"People, Culture and Organisational Resilience",Office Accommodation,Premises Costs,Repairs - Buildings,CHURCHES FIRE SECURITY LTD,SO53,29/07/2022,579.24
37138233,Other Repairs,Repairs,Unallocated job costs from OPEN system,Premises Costs,Repairs - Buildings,CHURCHES FIRE SECURITY LTD,SO53,29/07/2022,"2,021.08"
37136233,Parking & Bus lanes,Highway Operations and Car Parking,Car Parking,Premises Costs,Repairs - Buildings,CHURCHES FIRE SECURITY LTD,SO53,29/07/2022,"1,723.40"
36946233,Social Care,"Children, Families and Community Health Services",No Recourse to Public Funds,3rd Party Payments,No Recourse to Public Funds,CHURCHES HOUSING ASSOCIATION OF DUDLEY & DISTRICT LTD (CHADD),DY2 ,29/07/2022,"1,585.12"
34107238,Learning Disabilities,Adults,Learning Disability 26 - 64,3rd Party Payments,Residential Care,CIDERSTONE HOUSE,SN25,15/07/2022,"9,703.96"
34107238,Learning Disabilities,Adults,Learning Disability 26 - 64,Income,Client Contribution - Residential,CIDERSTONE HOUSE,SN25,15/07/2022,-677.60
34107238,Learning Disabilities,Adults,Learning Disability 26 - 64,Income,Client Contribution - Residential,CIDERSTONE HOUSE,SN25,15/07/2022,-414.20
34107238,Learning Disabilities,Adults,Learning Disability 26 - 64,Income,Client Contribution - Residential,CIDERSTONE HOUSE,SN25,15/07/2022,-423.00
34107238,Learning Disabilities,Adults,Learning Disability 26 - 64,Income,Client Contribution - Residential,CIDERSTONE HOUSE,SN25,15/07/2022,-425.60
34107238,Learning Disabilities,Adults,Learning Disability 26 - 64,3rd Party Payments,Residential Care,CIDERSTONE HOUSE,SN25,15/07/2022,"9,895.88"
34107238,Learning Disabilities,Adults,Learning Disability 26 - 64,3rd Party Payments,Residential Care,CIDERSTONE HOUSE,SN25,15/07/2022,"10,495.76"
34107238,Learning Disabilities,Adults,Learning Disability 26 - 64,3rd Party Payments,Residential Care,CIDERSTONE HOUSE,SN25,15/07/2022,"11,049.40"
34107238,Learning Disabilities,Adults,Learning Disability 26 - 64,3rd Party Payments,Residential Care,CIDERSTONE HOUSE,SN25,15/07/2022,"10,018.48"
34107238,Learning Disabilities,Adults,Learning Disability 26 - 64,Income,Client Contribution - Residential,CIDERSTONE HOUSE,SN25,15/07/2022,-438.80
33312234,High Needs Block,DSG Skills and Attainment,Post 16 - New Responsibilties,3rd Party Payments,FE Colleges,CIRENCESTER COLLEGE,GL7 ,13/07/2022,"2,323.58"
33311233,High Needs Block,DSG Skills and Attainment,Out of Borough School Fees,3rd Party Payments,Other Local Authority Mainstream Schools- Pre 16,CIRENCESTER KINGSHILL SCHOOL,GL7 ,13/07/2022,582.00
33311234,High Needs Block,DSG Skills and Attainment,Out of Borough School Fees,3rd Party Payments,Other Local Authority Mainstream Schools- Pre 16,CIRENCESTER KINGSHILL SCHOOL,GL7 ,13/07/2022,582.00
35505237,Homelessness and Travellers,Housing Services,Leased Private Managed Accommodation,Transfer Payments,Payment of Costs,REDACTED PERSONAL DATA,SN5 ,25/07/2022,500.00
Corporate Card Transaction,Community Health & Wellbeing,Public Health,Community Health and Wellbeing Management,Supplies and Services,Materials,Citrix Systems Inc.,,11/07/2022,575.30
32830235,Planned Maintenance Programme,HRA Capital Financing,Exceptional Extensive,Capital,Contractor Payments,CITY ENERGY NETWORK LTD,CF10,11/07/2022,"1,924.00"
32831234,Planned Maintenance Programme,HRA Capital Financing,Exceptional Extensive,Capital,Contractor Payments,CITY ENERGY NETWORK LTD,CF10,11/07/2022,586.40
31403233,Planned Maintenance Programme,HRA Capital Financing,Exceptional Extensive,Capital,Contractor Payments,CITY ENERGY NETWORK LTD,CF10,01/07/2022,586.40
33697233,Elections & Democracy,Elections and Democracy,Local Elections,Supplies and Services,Post,CIVICA ELECTION SERVICES LIMITED,N8 0,13/07/2022,"1,911.65"
31518233,Elections & Democracy,Elections and Democracy,Local Elections,Supplies and Services,Post,CIVICA ELECTION SERVICES LIMITED,N8 0,01/07/2022,420.99
31693233,Elections & Democracy,Elections and Democracy,Register of Electors,Supplies and Services,Materials,CIVICA ELECTION SERVICES LIMITED,N8 0,01/07/2022,336.50
36083233,Elections & Democracy,Elections and Democracy,Register of Electors,Supplies and Services,Materials,CIVICA ELECTION SERVICES LIMITED,N8 0,25/07/2022,135.42
33697233,Elections & Democracy,Elections and Democracy,Local Elections,Supplies and Services,Materials,CIVICA ELECTION SERVICES LIMITED,N8 0,13/07/2022,178.98
31518233,Elections & Democracy,Elections and Democracy,Local Elections,Supplies and Services,Stock Adjustments,CIVICA ELECTION SERVICES LIMITED,N8 0,01/07/2022,945.61
31694234,Elections & Democracy,Elections and Democracy,Local Elections,Supplies and Services,Materials,CIVICA ELECTION SERVICES LIMITED,N8 0,01/07/2022,"6,888.25"
31693233,Elections & Democracy,Elections and Democracy,Register of Electors,Supplies and Services,Post,CIVICA ELECTION SERVICES LIMITED,N8 0,01/07/2022,309.00
36083233,Elections & Democracy,Elections and Democracy,Register of Electors,Supplies and Services,Post,CIVICA ELECTION SERVICES LIMITED,N8 0,25/07/2022,567.90
33670233,Elections & Democracy,Elections and Democracy,Register of Electors,Supplies and Services,Services,CIVICA UK LTD,DY1 ,13/07/2022,"16,870.00"
32462233,Planning & Regulatory,Strategic Planning,Economy & Development Management,Employees,Temporary / Agency - by Accounts Payable,REDACTED PERSONAL DATA,BS37,08/07/2022,"8,486.40"
33379237,Early Years Block,DSG Skills and Attainment,Free Nursery Education Commissioning - three & four  year olds,3rd Party Payments,Contracts - Child Care,REDACTED PERSONAL DATA,SN2 ,13/07/2022,586.56
32721233,Care Management & Safeguarding,Adults,Local Safeguarding Board,Supplies and Services,Fees,CLARK WARD ASSOCIATES LTD,SN1 ,08/07/2022,"1,740.00"
32766233,Education,Inclusion and Achievement,Education Standards and Quality,Supplies and Services,Fees,CLARKE WILLMOTT LLP,BS1 ,08/07/2022,930.00
33527244,Early Years Block,DSG Skills and Attainment,Free Nursery Education Commissioning - three & four  year olds,3rd Party Payments,Contracts - Child Care,CLIFTON ST PRE-SCHOOL,SN1 ,13/07/2022,"5,182.80"
35259233,Travel,Highways & Transport,Concessionary Travel,3rd Party Payments,Concessionary Travel Subsidy,COACHSTYLE LTD,SN14,20/07/2022,741.08
31925233,Travel,Highways & Transport,Concessionary Travel,3rd Party Payments,Concessionary Travel Subsidy,COACHSTYLE LTD,SN14,04/07/2022,741.08
32788233,Travel,Highways & Transport,Concessionary Travel,3rd Party Payments,Concessionary Travel Subsidy,COACHSTYLE LTD,SN14,08/07/2022,739.27
32783233,Travel,Highways & Transport,Concessionary Travel,3rd Party Payments,Concessionary Travel Subsidy,COACHSTYLE LTD,SN14,08/07/2022,669.04
32777233,Travel,Highways & Transport,Concessionary Travel,3rd Party Payments,Concessionary Travel Subsidy,COACHSTYLE LTD,SN14,08/07/2022,669.04
34092235,Physical Support,Adults,Physical Support 18 - 64,Income,Client Contribution - Residential,COATE WATER CARE CO LTD,SN3 ,15/07/2022,-359.00
34092235,Mental Health,Adults,Mental Health 65 and over,3rd Party Payments,Residential Care,COATE WATER CARE CO LTD,SN3 ,15/07/2022,"2,800.00"
34092235,Physical Support,Adults,Physical Support 65 and over,Income,Client Contribution - Residential,COATE WATER CARE CO LTD,SN3 ,15/07/2022,-954.00
34092235,Physical Support,Adults,Physical Support 65 and over,3rd Party Payments,Residential Care,COATE WATER CARE CO LTD,SN3 ,15/07/2022,"2,668.72"
34092235,Physical Support,Adults,Physical Support 65 and over,Income,Client Contribution - Residential,COATE WATER CARE CO LTD,SN3 ,15/07/2022,"2,264.40"
34092235,Physical Support,Adults,Physical Support 65 and over,Income,Client Contribution - Residential,COATE WATER CARE CO LTD,SN3 ,15/07/2022,-506.20
34092235,Physical Support,Adults,Physical Support 65 and over,Income,Client Contribution - Residential,COATE WATER CARE CO LTD,SN3 ,15/07/2022,-539.40
34092235,Physical Support,Adults,Physical Support 65 and over,Income,Client Contribution - Residential,COATE WATER CARE CO LTD,SN3 ,15/07/2022,-986.91
34092235,Physical Support,Adults,Physical Support 65 and over,Income,Client Contribution - Residential,COATE WATER CARE CO LTD,SN3 ,15/07/2022,-893.72
34092235,Physical Support,Adults,Physical Support 65 and over,Income,Client Contribution - Residential,COATE WATER CARE CO LTD,SN3 ,15/07/2022,992.34
34092235,Physical Support,Adults,Physical Support 65 and over,Income,Client Contribution - Residential,COATE WATER CARE CO LTD,SN3 ,15/07/2022,-559.40
34092235,Physical Support,Adults,Physical Support 65 and over,Income,Client Contribution - Residential,COATE WATER CARE CO LTD,SN3 ,15/07/2022,-847.36
34092235,Physical Support,Adults,Physical Support 18 - 64,3rd Party Payments,Residential Care,COATE WATER CARE CO LTD,SN3 ,15/07/2022,"2,560.12"
34092235,Physical Support,Adults,Physical Support 65 and over,3rd Party Payments,Residential Care,COATE WATER CARE CO LTD,SN3 ,15/07/2022,"2,560.12"
34092235,Physical Support,Adults,Physical Support 65 and over,Income,Client Contribution - Residential,COATE WATER CARE CO LTD,SN3 ,15/07/2022,-630.56
34092235,Physical Support,Adults,Physical Support 65 and over,Income,Client Contribution - Residential,COATE WATER CARE CO LTD,SN3 ,15/07/2022,-727.20
34092235,Physical Support,Adults,Physical Support 65 and over,3rd Party Payments,Residential Care,COATE WATER CARE CO LTD,SN3 ,15/07/2022,-10.98
34092235,Physical Support,Adults,Physical Support 65 and over,Income,Client Contribution - Residential,COATE WATER CARE CO LTD,SN3 ,15/07/2022,-510.92
34092235,Physical Support,Adults,Physical Support 65 and over,3rd Party Payments,Residential Care,COATE WATER CARE CO LTD,SN3 ,15/07/2022,"3,328.00"
34092235,Physical Support,Adults,Physical Support 65 and over,Income,Client Contribution - Residential,COATE WATER CARE CO LTD,SN3 ,15/07/2022,"-1,201.84"
34092235,Physical Support,Adults,Physical Support 18 - 64,3rd Party Payments,Residential Care,COATE WATER CARE CO LTD,SN3 ,15/07/2022,"2,668.72"
34092235,Physical Support,Adults,Physical Support 65 and over,Income,Client Contribution - Residential,COATE WATER CARE CO LTD,SN3 ,15/07/2022,"-1,434.76"
34092235,Physical Support,Adults,Physical Support 65 and over,Income,Client Contribution - Residential,COATE WATER CARE CO LTD,SN3 ,15/07/2022,-955.48
34092235,Physical Support,Adults,Physical Support 65 and over,Income,Client Contribution - Residential,COATE WATER CARE CO LTD,SN3 ,15/07/2022,"-2,193.60"
34092235,Physical Support,Adults,Physical Support 65 and over,Income,Client Contribution - Residential,COATE WATER CARE CO LTD,SN3 ,15/07/2022,"-1,135.44"
34092235,Physical Support,Adults,Physical Support 65 and over,Income,Client Contribution - Residential,COATE WATER CARE CO LTD,SN3 ,15/07/2022,-732.00
34092235,Physical Support,Adults,Physical Support 65 and over,Income,Client Contribution - Residential,COATE WATER CARE CO LTD,SN3 ,15/07/2022,-622.80
34092235,Physical Support,Adults,Physical Support 65 and over,Income,Client Contribution - Residential,COATE WATER CARE CO LTD,SN3 ,15/07/2022,-597.40
34088239,Learning Disabilities,Adults,Learning Disability 26 - 64,Income,Client Contribution - Residential,COCKLEBURY FARMHOUSE,SN15,15/07/2022,-425.60
34088239,Learning Disabilities,Adults,Learning Disability 26 - 64,3rd Party Payments,Residential Care,COCKLEBURY FARMHOUSE,SN15,15/07/2022,"8,288.00"
34939233,Town Centre,"Economy, Growth and Place",Fleming Way Bus Boulevard,Capital,Contractor Payments,COLAS LTD,B37 ,20/07/2022,"603,126.27"
35272233,Property & Assets,Property & Assets,General Enhancement Works Corporate Buildings,Capital,Contractor Payments,COLES SCAFFOLDING CONTRACTORS LTD,SN25,20/07/2022,"4,100.00"
33527248,Early Years Block,DSG Skills and Attainment,Free Nursery Education Commissioning - three & four  year olds,3rd Party Payments,Contracts - Child Care,COLEVIEW PRE-SCHOOL,SN3 ,13/07/2022,"6,593.73"
33527252,Early Years Block,DSG Skills and Attainment,Free Nursery Education Commissioning - two year olds,3rd Party Payments,Contracts - Child Care,COLOURFUL TIME DAY NURSERY LTD,SN5 ,13/07/2022,"1,771.92"
34068239,High Needs Block,DSG Skills and Attainment,SEN Resourcing Assessment Panel,3rd Party Payments,Top up funding - Maintained providers Pre 16,COLOURFUL TIME DAY NURSERY LTD,SN5 ,20/07/2022,540.00
33527251,Early Years Block,DSG Skills and Attainment,Free Nursery Education Commissioning - three & four  year olds,3rd Party Payments,Contracts - Child Care,COLOURFUL TIME DAY NURSERY LTD,SN5 ,13/07/2022,"11,039.15"
35867233,Physical Support,Adults,Physical Support 18 - 64,3rd Party Payments,Personal Budget - Day services,COMMUNITY ACCESS NETWORK LTD,SN25,25/07/2022,645.22
34086246,Learning Disabilities,Adults,Learning Disability 26 - 64,Income,Client Contribution - Residential,COMMUNITY ACCESS NETWORK LTD,SN25,15/07/2022,-293.60
35847233,Physical Support,Adults,Physical Support 18 - 64,3rd Party Payments,Personal Budget - Day services,COMMUNITY ACCESS NETWORK LTD,SN25,25/07/2022,567.29
35850233,Physical Support,Adults,Physical Support 18 - 64,3rd Party Payments,Personal Budget - Day services,COMMUNITY ACCESS NETWORK LTD,SN25,25/07/2022,540.55
34086247,Learning Disabilities,Adults,Learning Disability 26 - 64,3rd Party Payments,Supported Living,COMMUNITY ACCESS NETWORK LTD,SN25,15/07/2022,24.00
34086247,Learning Disabilities,Adults,Learning Disability 26 - 64,3rd Party Payments,Supported Living,COMMUNITY ACCESS NETWORK LTD,SN25,15/07/2022,497.28
34086246,Learning Disabilities,Adults,Learning Disability 65 and over,Income,Client Contribution - Residential,COMMUNITY ACCESS NETWORK LTD,SN25,15/07/2022,-578.20
34086247,Learning Disabilities,Adults,Learning Disability 26 - 64,3rd Party Payments,Supported Living,COMMUNITY ACCESS NETWORK LTD,SN25,15/07/2022,"1,207.68"
34086246,Learning Disabilities,Adults,Learning Disability 26 - 64,3rd Party Payments,Residential Care,COMMUNITY ACCESS NETWORK LTD,SN25,15/07/2022,"4,820.08"
34086247,Learning Disabilities,Adults,Learning Disability 26 - 64,3rd Party Payments,Supported Living,COMMUNITY ACCESS NETWORK LTD,SN25,15/07/2022,"3,683.08"
34086247,Learning Disabilities,Adults,Learning Disability 26 - 64,3rd Party Payments,Supported Living,COMMUNITY ACCESS NETWORK LTD,SN25,15/07/2022,"1,342.76"
34086246,Learning Disabilities,Adults,Learning Disability 65 and over,3rd Party Payments,Residential Care,COMMUNITY ACCESS NETWORK LTD,SN25,15/07/2022,"4,817.08"
34086247,Learning Disabilities,Adults,Learning Disability 26 - 64,Income,Client Contribution - Supported Living,COMMUNITY ACCESS NETWORK LTD,SN25,15/07/2022,-142.80
37161234,Social Care,"Children, Families and Community Health Services",External Placements,3rd Party Payments,Independent Fostering Agency Placements,COMMUNITY FOSTER CARE,GL1 ,29/07/2022,"5,139.80"
37160234,Social Care,"Children, Families and Community Health Services",External Placements,3rd Party Payments,Independent Fostering Agency Placements,COMMUNITY FOSTER CARE,GL1 ,29/07/2022,"3,927.30"
37161233,Social Care,"Children, Families and Community Health Services",External Placements,3rd Party Payments,Independent Fostering Agency Placements,COMMUNITY FOSTER CARE,GL1 ,29/07/2022,"4,974.00"
37162234,Social Care,"Children, Families and Community Health Services",External Placements,3rd Party Payments,Independent Fostering Agency Placements,COMMUNITY FOSTER CARE,GL1 ,29/07/2022,"3,953.43"
37162233,Social Care,"Children, Families and Community Health Services",External Placements,3rd Party Payments,Independent Fostering Agency Placements,COMMUNITY FOSTER CARE,GL1 ,29/07/2022,"3,825.90"
37160235,Social Care,"Children, Families and Community Health Services",External Placements,3rd Party Payments,Independent Fostering Agency Placements,COMMUNITY FOSTER CARE,GL1 ,29/07/2022,"4,058.21"
34092236,Learning Disabilities,Adults,Learning Disability 26 - 64,3rd Party Payments,Residential Care,COMMUNITY THERAPEUTIC SERVICES LTD,BS22,15/07/2022,"10,824.40"
32024234,Social Care,"Children, Families and Community Health Services",Placement - Care Leaver Team,3rd Party Payments,Staying Put,COMPASS FOSTERING LONDON LTD,LE11,06/07/2022,"2,485.80"
31511233,Disabled Children,"Children, Families and Community Health Services",DCT Daytime Short Breaks,3rd Party Payments,Respite Care,COMPLETELY CARE RECRUITMENT CONSULTANTS LIMITED,GL17,01/07/2022,537.75
32923233,Property & Assets,Property & Assets,General Enhancement Works Corporate Buildings,Capital,Contractor Payments,CONCRETE REPAIRS LTD,CR4 ,11/07/2022,"54,171.60"
35324233,High Needs Block,DSG Skills and Attainment,Hearing Support Team,Supplies and Services,Equipment,CONNEVANS LTD,RH1 ,22/07/2022,430.35
37035233,Learning Disabilities,Adults,Learning Disability 26 - 64,Transfer Payments,Personal Budget - Direct Payments - Domiciliary Care,REDACTED PERSONAL DATA,GL2 ,29/07/2022,"4,199.53"
35805233,Museums & Heritage,Culture & Heritage,Swindon Museum & Art Gallery,Supplies and Services,Subscriptions,CONTEMPORARY ART SOCIETY,EC1V,22/07/2022,550.00
35805233,Museums & Heritage,Culture & Heritage,Swindon Museum & Art Gallery,Supplies and Services,Subscriptions,CONTEMPORARY ART SOCIETY,EC1V,22/07/2022,"1,700.00"
37145233,Streetsmart,Streetsmart,Waterside Depot,Premises Costs,Maintenance - Buildings,COOLINK LTD,SN11,29/07/2022,"1,187.00"
31970233,Property Management,Property,Corporate Repairs & Maintenance Programme,Premises Costs,Maintenance - Buildings,COOLINK LTD,SN11,06/07/2022,"4,983.00"
35732233,Property Management,Property,Corporate Repairs & Maintenance Programme,Premises Costs,Maintenance - Buildings,COOLINK LTD,SN11,22/07/2022,637.00
31970233,Property Management,Property,Corporate Repairs & Maintenance Programme,Premises Costs,Maintenance - Buildings,COOLINK LTD,SN11,06/07/2022,"3,467.00"
37145233,Property Management,Property,Corporate Repairs & Maintenance Programme,Premises Costs,Maintenance - Buildings,COOLINK LTD,SN11,29/07/2022,484.79
37145233,Property Management,Property,Corporate Repairs & Maintenance Programme,Premises Costs,Maintenance - Buildings,COOLINK LTD,SN11,29/07/2022,208.60
34976246,Streetsmart,Streetsmart,Waterside Depot,Premises Costs,Maintenance - Buildings,COOLINK LTD,SN11,20/07/2022,208.60
35732233,Property Management,Property,Corporate Repairs & Maintenance Programme,Premises Costs,Maintenance - Buildings,COOLINK LTD,SN11,22/07/2022,681.28
34976246,Property Service Charged Properties,Property,Service Charged - North Swindon Library Complex,Premises Costs,Maintenance - Buildings,COOLINK LTD,SN11,20/07/2022,226.10
37144233,Property Management,Property,Corporate Repairs & Maintenance Programme,Premises Costs,Maintenance - Buildings,COOLINK LTD,SN11,29/07/2022,243.60
37144233,Property Management,Property,Corporate Repairs & Maintenance Programme,Premises Costs,Maintenance - Buildings,COOLINK LTD,SN11,29/07/2022,464.00
32830234,Property Management,Property,Corporate Repairs & Maintenance Programme,Premises Costs,Maintenance - Buildings,COOLINK LTD,SN11,11/07/2022,548.00
37144233,Property Management,Property,Corporate Repairs & Maintenance Programme,Premises Costs,Maintenance - Buildings,COOLINK LTD,SN11,29/07/2022,497.00
37145233,Property Management,Property,Corporate Repairs & Maintenance Programme,Premises Costs,Maintenance - Buildings,COOLINK LTD,SN11,29/07/2022,313.60
37145233,Property Management,Property,Corporate Repairs & Maintenance Programme,Premises Costs,Maintenance - Buildings,COOLINK LTD,SN11,29/07/2022,162.00
36141233,Safeguarding and Quality Assurance,"Children, Families and Community Health Services",Participation,3rd Party Payments,Contracts - Child Care,CORAM VOICE,WC1N,27/07/2022,"12,396.95"
34453233,Social Care,"Children, Families and Community Health Services",Placement Adoption Service,3rd Party Payments,Adoption Allowances,REDACTED PERSONAL DATA,BA15,18/07/2022,860.00
31781234,Social Care,"Children, Families and Community Health Services",Placement Adoption Service,3rd Party Payments,Adoption Allowances,REDACTED PERSONAL DATA,BA15,04/07/2022,860.00
34090233,Learning Disabilities,Adults,Learning Disability 26 - 64,Income,Client Contribution - Residential,CORNERSTONES UK LTD,SN9 ,15/07/2022,-423.00
34090233,Learning Disabilities,Adults,Learning Disability 26 - 64,3rd Party Payments,Residential Care,CORNERSTONES UK LTD,SN9 ,15/07/2022,"8,160.76"
34090233,Learning Disabilities,Adults,Learning Disability 26 - 64,Income,Client Contribution - Residential,CORNERSTONES UK LTD,SN9 ,15/07/2022,-361.00
34090233,Learning Disabilities,Adults,Learning Disability 26 - 64,3rd Party Payments,Residential Care,CORNERSTONES UK LTD,SN9 ,15/07/2022,"4,178.84"
34090233,Learning Disabilities,Adults,Learning Disability 26 - 64,Income,Client Contribution - Residential,CORNERSTONES UK LTD,SN9 ,15/07/2022,-414.20
34090233,Learning Disabilities,Adults,Learning Disability 26 - 64,3rd Party Payments,Residential Care,CORNERSTONES UK LTD,SN9 ,15/07/2022,"6,251.16"
34090233,Learning Disabilities,Adults,Learning Disability 26 - 64,3rd Party Payments,Residential Care,CORNERSTONES UK LTD,SN9 ,15/07/2022,"7,986.12"
34090233,Learning Disabilities,Adults,Learning Disability 26 - 64,3rd Party Payments,Residential Care,CORNERSTONES UK LTD,SN9 ,15/07/2022,"5,322.56"
34090233,Learning Disabilities,Adults,Learning Disability 26 - 64,Income,Client Contribution - Residential,CORNERSTONES UK LTD,SN9 ,15/07/2022,-410.20
34090233,Learning Disabilities,Adults,Learning Disability 26 - 64,3rd Party Payments,Residential Care,CORNERSTONES UK LTD,SN9 ,15/07/2022,"6,922.20"
31929233,Museums & Heritage,Culture & Heritage,Lydiard - Museum Operations,Supplies and Services,Goods for resale,CORNFLOWER LTD,RG14,04/07/2022,457.00
31926233,Museums & Heritage,Culture & Heritage,Lydiard - Museum Operations,Supplies and Services,Goods for resale,CORNFLOWER LTD,RG14,04/07/2022,562.00
32979233,Streetsmart,Streetsmart,Waterside Depot,Supplies and Services,Services,COSTAIN LTD,SL6 ,11/07/2022,"24,500.00"
31523233,Streetsmart,Streetsmart,Street Cleaning,Supplies and Services,Equipment,COSTAIN LTD,SL6 ,01/07/2022,"10,250.00"
37053486,Learning Disabilities,Adults,Learning Disability 26 - 64,Transfer Payments,Personal Budget - Direct Payments - Domiciliary Care,REDACTED PERSONAL DATA,SP11,29/07/2022,"1,604.83"
33527257,Early Years Block,DSG Skills and Attainment,Free Nursery Education Commissioning - two year olds,3rd Party Payments,Contracts - Child Care,COVINGHAM KINGFISHER PRE-SCHOOL,SN3 ,13/07/2022,"1,291.68"
33527256,Early Years Block,DSG Skills and Attainment,Free Nursery Education Commissioning - three & four  year olds,3rd Party Payments,Contracts - Child Care,COVINGHAM KINGFISHER PRE-SCHOOL,SN3 ,13/07/2022,"4,170.02"
33254235,High Needs Block,DSG Skills and Attainment,SEN Resourcing Assessment Panel,3rd Party Payments,Top up funding - Maintained providers Pre 16,COVINGHAM PARK PRIMARY SCHOOL,SN3 ,13/07/2022,"1,561.67"
34194236,Schools Block - Central,DSG Skills and Attainment,Universal Infant Free School Meals,Supplies and Services,Payments to Educational Bodies,COVINGHAM PARK PRIMARY SCHOOL,SN3 ,18/07/2022,"22,648.00"
34201245,DSG Other Funding,DSG Skills and Attainment,DFE Additional Grants,3rd Party Payments,Payment of Pupil Premium to school,COVINGHAM PARK PRIMARY SCHOOL,SN3 ,18/07/2022,"7,353.00"
34194235,Schools Block - Central,DSG Skills and Attainment,Universal Infant Free School Meals,Supplies and Services,Payments to Educational Bodies,COVINGHAM PARK PRIMARY SCHOOL,SN3 ,18/07/2022,"33,523.00"
34213234,DSG Other Funding,DSG Skills and Attainment,DFE Additional Grants,Supplies and Services,Payments to Educational Bodies,COVINGHAM PARK PRIMARY SCHOOL,SN3 ,18/07/2022,"2,283.75"
34201246,Schools - Primary,DSG Skills and Attainment,Primary School Budgets,3rd Party Payments,Mainstream Delegated Funding,COVINGHAM PARK PRIMARY SCHOOL,SN3 ,18/07/2022,"130,175.00"
33527261,Early Years Block,DSG Skills and Attainment,Free Nursery Education Commissioning - two year olds,3rd Party Payments,Contracts - Child Care,COVINGHAM ROUNDABOUT PLAYGROUP,SN3 ,13/07/2022,"1,248.63"
33527260,Early Years Block,DSG Skills and Attainment,Free Nursery Education Commissioning - three & four  year olds,3rd Party Payments,Contracts - Child Care,COVINGHAM ROUNDABOUT PLAYGROUP,SN3 ,13/07/2022,"13,976.12"
34114234,Memory & Cognition,Adults,Support for Memory and Cognition 65 and over,3rd Party Payments,Residential Care,COXWELL HALL AND MEWS NURSING HOME,TW20,15/07/2022,"5,968.24"
34088233,Learning Disabilities,Adults,Learning Disability 26 - 64,3rd Party Payments,Residential Care,CRAEGMOOR HEALTHCARE,BA14,15/07/2022,"8,267.84"
34088233,Learning Disabilities,Adults,Learning Disability 26 - 64,Income,Client Contribution - Residential,CRAEGMOOR HEALTHCARE,BA14,15/07/2022,-414.20
34949233,Sheltered Accomodation,Special Services,Hastings Court,Supplies and Services,Materials,CRIME CONCERN UK,CO1 ,20/07/2022,430.00
33528235,Early Years Block,DSG Skills and Attainment,Free Nursery Education Commissioning - three & four  year olds,3rd Party Payments,Contracts - Child Care,CROFT PLAYGROUP,SN3 ,13/07/2022,-547.80
33527264,Early Years Block,DSG Skills and Attainment,Free Nursery Education Commissioning - three & four  year olds,3rd Party Payments,Contracts - Child Care,CROFT PLAYGROUP,SN3 ,13/07/2022,"13,250.86"
32496233,School Transport,Inclusion and Achievement,Special Educational Needs Transport,Transport Costs,Home to School Transport,CROSS STREET RADIO CARS,SN1 ,08/07/2022,770.00
32538233,School Transport,Inclusion and Achievement,Mainstream School Transport,Transport Costs,Home to School Transport,CROSS STREET RADIO CARS,SN1 ,08/07/2022,"1,800.00"
32518233,School Transport,Inclusion and Achievement,Mainstream School Transport,Transport Costs,Home to School Transport,CROSS STREET RADIO CARS,SN1 ,08/07/2022,950.00
32495233,School Transport,Inclusion and Achievement,Special Educational Needs Transport,Transport Costs,Home to School Transport,CROSS STREET RADIO CARS,SN1 ,08/07/2022,"1,900.00"
32539233,School Transport,Inclusion and Achievement,Special Educational Needs Transport,Transport Costs,Home to School Transport,CROSS STREET RADIO CARS,SN1 ,08/07/2022,960.00
34233238,DSG Other Funding,DSG Skills and Attainment,LAC pupil premium,Supplies and Services,Services,CROSSGATES CP SCHOOL,LD1 ,18/07/2022,650.00
34412233,DSG Other Funding,DSG Skills and Attainment,LAC pupil premium,Supplies and Services,Services,CROSSGATES CP SCHOOL,LD1 ,18/07/2022,650.00
33260234,High Needs Block,DSG Skills and Attainment,SEN Resourcing Assessment Panel,3rd Party Payments,Top up funding - Maintained providers Pre 16,CROWDYS HILL SCHOOL,SN2 ,13/07/2022,"46,087.75"
34201266,High Needs Block,DSG Skills and Attainment,Special School Place,3rd Party Payments,HNB- Place Funding pre 16,CROWDYS HILL SCHOOL,SN2 ,18/07/2022,"170,000.00"
34194254,Schools Block - Central,DSG Skills and Attainment,Universal Infant Free School Meals,Supplies and Services,Payments to Educational Bodies,CROWDYS HILL SCHOOL,SN2 ,18/07/2022,"1,958.00"
34201265,High Needs Block,DSG Skills and Attainment,Special School Place,3rd Party Payments,HNB- Place Funding post 16,CROWDYS HILL SCHOOL,SN2 ,18/07/2022,"38,334.00"
34220233,DSG Other Funding,DSG Skills and Attainment,DFE Additional Grants,Supplies and Services,Payments to Educational Bodies,CROWDYS HILL SCHOOL,SN2 ,18/07/2022,"7,032.50"
34201267,DSG Other Funding,DSG Skills and Attainment,DFE Additional Grants,3rd Party Payments,Payment of Pupil Premium to school,CROWDYS HILL SCHOOL,SN2 ,18/07/2022,"9,077.00"
33264233,High Needs Block,DSG Skills and Attainment,SEN Resourcing Assessment Panel,3rd Party Payments,Top up funding - Maintained providers Post 16,CROWDYS HILL SCHOOL,SN2 ,13/07/2022,"53,000.30"
33260235,High Needs Block,DSG Skills and Attainment,SEN Resourcing Assessment Panel,3rd Party Payments,Top up funding - Maintained providers Pre 16,CROWDYS HILL SCHOOL,SN2 ,13/07/2022,"126,536.60"
34194253,Schools Block - Central,DSG Skills and Attainment,Universal Infant Free School Meals,Supplies and Services,Payments to Educational Bodies,CROWDYS HILL SCHOOL,SN2 ,18/07/2022,"1,470.00"
32065233,"Volutary Sector, Equipment and Carers",Adults,Voluntary Sector Adults,3rd Party Payments,Contracts - Social Care,CRUSE BEREAVEMENT CARE,TW9 ,06/07/2022,"6,250.00"
35140250,Physical Support,Adults,Physical Support 65 and over,3rd Party Payments,Personal Budget - Domiciliary care,CRYSTAL CARING LIMITED,SN2 ,20/07/2022,"2,330.96"
34920236,Physical Support,Adults,Physical Support 65 and over,3rd Party Payments,Personal Budget - Domiciliary care,CRYSTAL CARING LIMITED,SN2 ,20/07/2022,"1,628.00"
34920235,Physical Support,Adults,Physical Support 65 and over,3rd Party Payments,Personal Budget - Domiciliary care,CRYSTAL CARING LIMITED,SN2 ,20/07/2022,"1,425.32"
36715233,Other Repairs,Repairs,Unallocated job costs from OPEN system,Premises Costs,Repairs - Buildings,CRYSTAL ELECTRONICS LTD,NN6 ,29/07/2022,"6,751.45"
31457233,Responsive Repairs,Repairs,Responsive Repairs,Supplies and Services,Materials,CRYSTAL ELECTRONICS LTD,NN6 ,01/07/2022,"3,178.20"
Corporate Card Transaction,Community Health & Wellbeing,Public Health,Swindon Circles,Supplies and Services,Food,Cs* Tesco Stores Gc,,11/07/2022,"1,600.00"
33484233,Highways Inspections & Maintenance,Highway Operations and Car Parking,Streetlighting,Supplies and Services,Materials,CU PHOSCO LIGHTING LTD,SG12,13/07/2022,225.00
33484233,Highways Inspections & Maintenance,Highway Operations and Car Parking,Streetlighting,Supplies and Services,Materials,CU PHOSCO LIGHTING LTD,SG12,13/07/2022,270.40
33484233,Highways Inspections & Maintenance,Highway Operations and Car Parking,Streetlighting,Supplies and Services,Materials,CU PHOSCO LIGHTING LTD,SG12,13/07/2022,77.50
33484233,Highways Inspections & Maintenance,Highway Operations and Car Parking,Streetlighting,Supplies and Services,Materials,CU PHOSCO LIGHTING LTD,SG12,13/07/2022,125.00
Corporate Card Transaction,ASC Finance Services Teams,ASC Finance Services,ASC Money Management Team,Supplies and Services,Services,Currys Online,,25/07/2022,521.00
37053251,Physical Support,Adults,Physical Support 18 - 64,Transfer Payments,Personal Budget - Direct Payments - Domiciliary Care,REDACTED PERSONAL DATA,SN25,29/07/2022,"3,076.26"
37053558,Physical Support,Adults,Physical Support 18 - 64,Transfer Payments,Personal Budget - Direct Payments - Domiciliary Care,REDACTED PERSONAL DATA,SP11,29/07/2022,"4,468.00"
37028233,Physical Support,Adults,Physical Support 18 - 64,Transfer Payments,Personal Budget - Direct Payments - Domiciliary Care,REDACTED PERSONAL DATA,SN3 ,29/07/2022,"2,686.43"
37053382,Learning Disabilities,Adults,Learning Disability 26 - 64,Transfer Payments,Personal Budget - Direct Payments - Domiciliary Care,REDACTED PERSONAL DATA,SN2 ,29/07/2022,"1,445.84"
37053422,Learning Disabilities,Adults,Learning Disability 26 - 64,Transfer Payments,Personal Budget - Direct Payments - Domiciliary Care,REDACTED PERSONAL DATA,SN2 ,29/07/2022,"9,937.71"
32541233,School Transport,Inclusion and Achievement,Special Educational Needs Transport,Transport Costs,Home to School Transport,REDACTED PERSONAL DATA,SN2 ,08/07/2022,729.60
33529233,Early Years Block,DSG Skills and Attainment,Free Nursery Education Commissioning - three & four  year olds,3rd Party Payments,Contracts - Child Care,REDACTED PERSONAL DATA,SN1 ,13/07/2022,882.38
33944233,Landscaping & Open Space,Culture & Heritage & Art,Moredon Recreation - Multi Sports Hub,Capital,Professional Fees,DARNTONB3 ARCHITECTURE,LS1 ,15/07/2022,"3,883.00"
37053296,Physical Support,Adults,Physical Support 18 - 64,Transfer Payments,Personal Budget - Direct Payments - Domiciliary Care,REDACTED PERSONAL DATA,SN2 ,29/07/2022,599.56
37053368,Learning Disabilities,Adults,Learning Disability 26 - 64,Transfer Payments,Personal Budget - Direct Payments - Domiciliary Care,REDACTED PERSONAL DATA,SP11,29/07/2022,698.07
37053367,Learning Disabilities,Adults,Learning Disability 26 - 64,Transfer Payments,Personal Budget - Direct Payments - Domiciliary Care,REDACTED PERSONAL DATA,SP11,29/07/2022,698.07
37053366,Learning Disabilities,Adults,Learning Disability 26 - 64,Transfer Payments,Personal Budget - Direct Payments - Domiciliary Care,REDACTED PERSONAL DATA,SP11,29/07/2022,698.07
31824238,Social Care,"Children, Families and Community Health Services",Placement Adoption Service,3rd Party Payments,Special Guardianship Orders,REDACTED PERSONAL DATA,B35 ,04/07/2022,676.96
34496254,Social Care,"Children, Families and Community Health Services",Placement Adoption Service,3rd Party Payments,Special Guardianship Orders,REDACTED PERSONAL DATA,B35 ,18/07/2022,676.96
32472233,Streetsmart,Streetsmart,Waterside Fleet Hires,Transport Costs,Vehicle Hire / Contract,DAWSONRENTLES SWEEPERS,HD6 ,08/07/2022,"2,954.77"
32471233,Streetsmart,Streetsmart,Waterside Fleet Hires,Transport Costs,Vehicle Hire / Contract,DAWSONRENTLES SWEEPERS,HD6 ,08/07/2022,"2,954.77"
36573233,Streetsmart,Streetsmart,Street Cleaning,Supplies and Services,Equipment,DAWSONRENTLES SWEEPERS,HD6 ,27/07/2022,672.14
32469233,Streetsmart,Streetsmart,Waterside Fleet Hires,Transport Costs,Vehicle Hire / Contract,DAWSONRENTLES SWEEPERS,HD6 ,08/07/2022,"2,867.86"
33011233,Streetsmart,Streetsmart,Waterside Fleet Hires,Transport Costs,Vehicle Hire / Contract,DAWSONRENTLES SWEEPERS,HD6 ,13/07/2022,"2,150.90"
33010233,Streetsmart,Streetsmart,Waterside Fleet Hires,Transport Costs,Vehicle Hire / Contract,DAWSONRENTLES SWEEPERS,HD6 ,13/07/2022,"3,041.67"
34968236,Streetsmart,Streetsmart,Waterside Fleet Hires,Transport Costs,Vehicle Hire / Contract,DAWSONRENTLES SWEEPERS,HD6 ,20/07/2022,807.00
33008233,Streetsmart,Streetsmart,Waterside Fleet Hires,Transport Costs,Vehicle Hire / Contract,DAWSONRENTLES SWEEPERS,HD6 ,13/07/2022,"3,215.48"
33013233,Streetsmart,Streetsmart,Waterside Fleet Hires,Transport Costs,Vehicle Hire / Contract,DAWSONRENTLES SWEEPERS,HD6 ,13/07/2022,"2,954.77"
32470233,Streetsmart,Streetsmart,Waterside Fleet Hires,Transport Costs,Vehicle Hire / Contract,DAWSONRENTLES SWEEPERS,HD6 ,08/07/2022,"2,150.90"
33012233,Streetsmart,Streetsmart,Waterside Fleet Hires,Transport Costs,Vehicle Hire / Contract,DAWSONRENTLES SWEEPERS,HD6 ,13/07/2022,"2,954.77"
33009233,Streetsmart,Streetsmart,Waterside Fleet Hires,Transport Costs,Vehicle Hire / Contract,DAWSONRENTLES SWEEPERS,HD6 ,13/07/2022,"2,780.96"
32473233,Streetsmart,Streetsmart,Waterside Fleet Hires,Transport Costs,Vehicle Hire / Contract,DAWSONRENTLES SWEEPERS,HD6 ,08/07/2022,"1,990.00"
36099233,Social Care,"Children, Families and Community Health Services",Looked After Children Service,3rd Party Payments,Personal Needs,REDACTED PERSONAL DATA,SN5 ,25/07/2022,602.12
31844237,Social Care,"Children, Families and Community Health Services",Placement Fostering Service,3rd Party Payments,Carers Skills Payments - Advanced,REDACTED PERSONAL DATA,SN5 ,04/07/2022,270.00
34567234,Social Care,"Children, Families and Community Health Services",Placement Fostering Service,3rd Party Payments,Carers Skills Payments - Advanced,REDACTED PERSONAL DATA,SN5 ,18/07/2022,270.00
34567234,Social Care,"Children, Families and Community Health Services",Placement Fostering Service,3rd Party Payments,Foster Care Basic Payments,REDACTED PERSONAL DATA,SN5 ,18/07/2022,520.20
34567234,Social Care,"Children, Families and Community Health Services",Placement Fostering Service,3rd Party Payments,Foster Care Additional Allowance,REDACTED PERSONAL DATA,SN5 ,18/07/2022,100.00
31844237,Social Care,"Children, Families and Community Health Services",Placement Fostering Service,3rd Party Payments,Foster Care Basic Payments,REDACTED PERSONAL DATA,SN5 ,04/07/2022,520.20
31844237,Social Care,"Children, Families and Community Health Services",Placement Fostering Service,3rd Party Payments,Foster Care Additional Allowance,REDACTED PERSONAL DATA,SN5 ,04/07/2022,100.00
33531233,Early Years Block,DSG Skills and Attainment,Free Nursery Education Commissioning - three & four  year olds,3rd Party Payments,Contracts - Child Care,REDACTED PERSONAL DATA,SN5 ,13/07/2022,"1,295.32"
31439233,Landscaping & Open Space,Culture & Heritage & Art,GWCF - Trees for Climate,Capital,Contractor Payments,DEEPER GREEN SERVICES LTD,BS26,01/07/2022,965.00
34188233,Landscaping & Open Space,Culture & Heritage & Art,GWCF - Trees for Climate,Capital,Contractor Payments,DEEPER GREEN SERVICES LTD,BS26,15/07/2022,525.00
32566233,Digital & Business Change,Digital & Business Change,IT Operations,Supplies and Services,License Costs,DELL CORPORATION LTD,EC3A,08/07/2022,"6,637.92"
32568233,Digital & Business Change,Digital & Business Change,IT Operations,Supplies and Services,License Costs,DELL CORPORATION LTD,EC3A,08/07/2022,"7,695.33"
34234233,DSG Other Funding,DSG Skills and Attainment,LAC pupil premium,Supplies and Services,Services,DELVES JUNIOR SCHOOL,WS5 ,18/07/2022,650.00
33380235,Early Years Block,DSG Skills and Attainment,Free Nursery Education Commissioning - three & four  year olds,3rd Party Payments,Contracts - Child Care,REDACTED PERSONAL DATA,SN1 ,13/07/2022,534.40
32400233,Traded Services,Inclusion and Achievement,Plas Pencelli Outdoor Education Centre,Transport Costs,Repairs & Maintenance - Vehicles,REDACTED PERSONAL DATA,LD3 ,08/07/2022,447.47
32400233,Traded Services,Inclusion and Achievement,Plas Pencelli Outdoor Education Centre,Transport Costs,Repairs & Maintenance - Vehicles,REDACTED PERSONAL DATA,LD3 ,08/07/2022,59.55
34392233,Learning Disabilities,Adults,Learning Disability 26 - 64,3rd Party Payments,Supported Accommodation Scheme,REDACTED PERSONAL DATA,SN2 ,20/07/2022,"2,004.72"
34392233,Learning Disabilities,Adults,Learning Disability 26 - 64,3rd Party Payments,Supported Accommodation Scheme,REDACTED PERSONAL DATA,SN2 ,20/07/2022,"1,675.36"
34392233,Learning Disabilities,Adults,Learning Disability 26 - 64,3rd Party Payments,Supported Accommodation Scheme,REDACTED PERSONAL DATA,SN2 ,20/07/2022,"1,321.36"
34775233,Street Furniture & Lighting,Strategic Planning and Highways,LED Street Lighting,Capital,Professional Fees,DESIGNS FOR LIGHTING LTD,SO23,20/07/2022,"1,037.50"
34440233,Social Care,"Children, Families and Community Health Services",Looked After Children Service,Transport Costs,Client Costs of Taxis,DEVON COUNTY COUNCIL,EX4 ,18/07/2022,"2,457.00"
Corporate Card Transaction,ASC Finance Services Teams,ASC Finance Services,ASC Money Management Team,Supplies and Services,Services,Dfs Trading Limited,,15/07/2022,"1,147.00"
36175233,Streetsmart,Streetsmart,Waterside Fleet Workshops,Supplies and Services,Equipment,DH PEOPLE PLUS LTD T/A DRIVER HIRE TRAINING,BD1 ,27/07/2022,"2,000.00"
34445236,Social Care,"Children, Families and Community Health Services",Placement Adoption Service,3rd Party Payments,Adoption Allowances,REDACTED PERSONAL DATA,CF44,18/07/2022,500.34
31770233,Social Care,"Children, Families and Community Health Services",Placement Adoption Service,3rd Party Payments,Adoption Allowances,REDACTED PERSONAL DATA,CF44,04/07/2022,500.34
37062233,Facilities Management,"People, Culture and Organisational Resilience",Office Accommodation,3rd Party Payments,Contract Payments,DIGITAL ID LTD,SK1 ,29/07/2022,457.30
34108234,Physical Support,Adults,Physical Support 65 and over,Income,Client Contribution - Residential,DIVA CARE LIMITED,GL7 ,15/07/2022,-627.80
34108234,Physical Support,Adults,Physical Support 65 and over,Income,Client Contribution - Nursing,DIVA CARE LIMITED,GL7 ,15/07/2022,"-2,193.11"
34108234,Physical Support,Adults,Physical Support 65 and over,3rd Party Payments,Residential Care,DIVA CARE LIMITED,GL7 ,15/07/2022,"5,040.00"
34108234,Physical Support,Adults,Physical Support 65 and over,Income,Client Contribution - Nursing,DIVA CARE LIMITED,GL7 ,15/07/2022,"1,040.80"
34108234,Physical Support,Adults,Physical Support 65 and over,Income,Client Contribution - Nursing,DIVA CARE LIMITED,GL7 ,15/07/2022,"-1,074.88"
34108234,Physical Support,Adults,Physical Support 65 and over,Income,Client Contribution - Nursing,DIVA CARE LIMITED,GL7 ,15/07/2022,-268.72
34108234,Physical Support,Adults,Physical Support 65 and over,3rd Party Payments,Nursing Care,DIVA CARE LIMITED,GL7 ,15/07/2022,"3,246.44"
34108234,Physical Support,Adults,Physical Support 65 and over,Income,Client Contribution - Nursing,DIVA CARE LIMITED,GL7 ,15/07/2022,"5,141.43"
32068234,Social Care,"Children, Families and Community Health Services",Looked After Children Service,3rd Party Payments,Personal Needs,DMR SERVICES,B74 ,06/07/2022,919.20
32069233,Social Care,"Children, Families and Community Health Services",Looked After Children Service,3rd Party Payments,Personal Needs,DMR SERVICES,B74 ,06/07/2022,919.20
35483233,Social Care,"Children, Families and Community Health Services",Legal Fees,Supplies and Services,Fees,DNA WORLDWIDE GROUP,BA11,22/07/2022,665.00
34911233,Digital & Business Change,Digital & Business Change,IT Systems,Supplies and Services,License Costs,DOCUSIGN INC,9410,20/07/2022,"11,799.00"
37040233,Physical Support,Adults,Physical Support 18 - 64,Transfer Payments,Personal Budget - Direct Payments - Domiciliary Care,REDACTED PERSONAL DATA,SP11,29/07/2022,"4,756.08"
31844243,Social Care,"Children, Families and Community Health Services",Placement Fostering Service,3rd Party Payments,Foster Care Additional Allowance,REDACTED PERSONAL DATA,SN2 ,04/07/2022,18.00
31844243,Social Care,"Children, Families and Community Health Services",Placement Fostering Service,3rd Party Payments,Foster Care Basic Payments,REDACTED PERSONAL DATA,SN2 ,04/07/2022,342.00
31844243,Social Care,"Children, Families and Community Health Services",Placement Fostering Service,3rd Party Payments,Carers Skills Payments - Core,REDACTED PERSONAL DATA,SN2 ,04/07/2022,116.00
31844243,Social Care,"Children, Families and Community Health Services",Placement Fostering Service,3rd Party Payments,Holiday Payment,REDACTED PERSONAL DATA,SN2 ,04/07/2022,342.00
34263233,DSG Other Funding,DSG Skills and Attainment,LAC pupil premium,Supplies and Services,Services,DORCAN ACADEMY,SN3 ,18/07/2022,650.00
34262236,DSG Other Funding,DSG Skills and Attainment,LAC pupil premium,Supplies and Services,Services,DORCAN ACADEMY,SN3 ,18/07/2022,650.00
33292233,High Needs Block,DSG Skills and Attainment,SEN Resourcing Assessment Panel,3rd Party Payments,Top up funding - Academies and Free Schools Pre 16,DORCAN ACADEMY,SN3 ,13/07/2022,"6,206.17"
34235233,DSG Other Funding,DSG Skills and Attainment,LAC pupil premium,Supplies and Services,Services,DOWNLAND SCHOOL WCC FUND A/C,SN10,18/07/2022,650.00
35542233,Homelessness and Travellers,Housing Services,Leased Private Managed Accommodation,Transfer Payments,Payment of Costs,REDACTED PERSONAL DATA,SN6 ,25/07/2022,700.00
34964233,DMJ Tower,Housing Services,DMJ Apartments,Premises Costs,Maintenance - Buildings,REDACTED PERSONAL DATA,WC1R,20/07/2022,"1,250.00"
34605233,Early Help,"Children, Families and Community Health Services","Holiday, Activities & Food Grant",3rd Party Payments,Contracts - Child Care,DRAYCOTT SPORTS CAMP,SN25,20/07/2022,"12,204.00"
31892234,Licencing,Regulatory Services,Licensing,Supplies and Services,Fees,DROVEWAY KENNELS,SN6 ,04/07/2022,"1,185.00"
32530233,Sheltered Accomodation,Special Services,Sheltered Housing Management General,Supplies and Services,Equipment,DRPK CONTRACTS LTD,BT30,08/07/2022,261.00
32530233,Sheltered Accomodation,Special Services,Sheltered Housing Management General,Supplies and Services,Equipment,DRPK CONTRACTS LTD,BT30,08/07/2022,609.00
34107239,Physical Support,Adults,Physical Support 18 - 64,3rd Party Payments,Nursing Care,DRUMMOND GRANGE NURSING HOME,EH18,15/07/2022,"6,603.00"
34370233,Learning Disabilities,Adults,Learning Disability 26 - 64,3rd Party Payments,Supported Accommodation Scheme,REDACTED PERSONAL DATA,SN25,20/07/2022,"2,058.96"
34290233,Highways Inspections & Maintenance,Highway Operations and Car Parking,Streetlighting,Supplies and Services,Materials,DW WINDSOR LTD,EN11,15/07/2022,367.54
34290233,Highways Inspections & Maintenance,Highway Operations and Car Parking,Streetlighting,Supplies and Services,Materials,DW WINDSOR LTD,EN11,15/07/2022,160.00
34290233,Highways Inspections & Maintenance,Highway Operations and Car Parking,Streetlighting,Supplies and Services,Materials,DW WINDSOR LTD,EN11,15/07/2022,82.77
33187233,NEV,"Economy, Growth and Place",Gablecross Junction,Capital,Contractor Payments,DYER & BUTLER LTD,SO16,13/07/2022,"106,971.30"
34107236,Physical Support,Adults,Physical Support 65 and over,Income,Client Contribution - Supported Living,DYNAMIC SUPPORT LTD,SN25,15/07/2022,-235.16
34107236,Learning Disabilities,Adults,Learning Disability 26 - 64,3rd Party Payments,Supported Living,DYNAMIC SUPPORT LTD,SN25,15/07/2022,"3,765.12"
34107236,Learning Disabilities,Adults,Learning Disability 26 - 64,3rd Party Payments,Supported Living,DYNAMIC SUPPORT LTD,SN25,15/07/2022,"1,390.40"
34107236,Learning Disabilities,Adults,Learning Disability 26 - 64,3rd Party Payments,Supported Living,DYNAMIC SUPPORT LTD,SN25,15/07/2022,"5,612.16"
34107236,Learning Disabilities,Adults,Learning Disability 26 - 64,3rd Party Payments,Supported Living,DYNAMIC SUPPORT LTD,SN25,15/07/2022,"6,393.60"
34107236,Learning Disabilities,Adults,Learning Disability 26 - 64,3rd Party Payments,Supported Living,DYNAMIC SUPPORT LTD,SN25,15/07/2022,"13,019.76"
34107236,Mental Health,Adults,Mental Health 18-64,3rd Party Payments,Supported Living,DYNAMIC SUPPORT LTD,SN25,15/07/2022,-92.61
34107236,Mental Health,Adults,Mental Health 18-64,3rd Party Payments,Supported Living,DYNAMIC SUPPORT LTD,SN25,15/07/2022,"1,491.84"
34107236,Learning Disabilities,Adults,Learning Disability 26 - 64,3rd Party Payments,Supported Living,DYNAMIC SUPPORT LTD,SN25,15/07/2022,"6,392.46"
34107236,Learning Disabilities,Adults,Learning Disability 26 - 64,3rd Party Payments,Supported Living,DYNAMIC SUPPORT LTD,SN25,15/07/2022,-191.82
34107236,Learning Disabilities,Adults,Learning Disability 26 - 64,3rd Party Payments,Supported Living,DYNAMIC SUPPORT LTD,SN25,15/07/2022,"3,132.76"
34107236,Physical Support,Adults,Physical Support 65 and over,3rd Party Payments,Supported Living,DYNAMIC SUPPORT LTD,SN25,15/07/2022,"7,459.20"
34107236,Mental Health,Adults,Mental Health 18-64,3rd Party Payments,Supported Living,DYNAMIC SUPPORT LTD,SN25,15/07/2022,"7,459.20"
34107236,Mental Health,Adults,Mental Health 18-64,3rd Party Payments,Supported Living,DYNAMIC SUPPORT LTD,SN25,15/07/2022,"52,785.00"
34107236,Learning Disabilities,Adults,Learning Disability 26 - 64,Income,Client Contribution - Supported Living,DYNAMIC SUPPORT LTD,SN25,15/07/2022,-440.60
34107236,Learning Disabilities,Adults,Learning Disability 26 - 64,3rd Party Payments,Supported Living,DYNAMIC SUPPORT LTD,SN25,15/07/2022,"-6,387.73"
34107236,Learning Disabilities,Adults,Learning Disability 26 - 64,3rd Party Payments,Supported Living,DYNAMIC SUPPORT LTD,SN25,15/07/2022,"-18,349.07"
34107236,Learning Disabilities,Adults,Learning Disability 26 - 64,3rd Party Payments,Supported Living,DYNAMIC SUPPORT LTD,SN25,15/07/2022,"2,685.48"
32511235,Learning Disabilities,Adults,Learning Disability 26 - 64,3rd Party Payments,Personal Budget - Domiciliary care,DYNAMIC SUPPORT LTD,SN25,08/07/2022,632.96
32219234,Physical Support,Adults,Physical Support 65 and over,3rd Party Payments,Personal Budget - Domiciliary care,DYNAMIC SUPPORT LTD,SN25,06/07/2022,"14,914.56"
34107236,Mental Health,Adults,Mental Health 18-64,3rd Party Payments,Supported Living,DYNAMIC SUPPORT LTD,SN25,15/07/2022,"1,342.76"
34107236,Mental Health,Adults,Mental Health 18-64,3rd Party Payments,Supported Living,DYNAMIC SUPPORT LTD,SN25,15/07/2022,"9,499.23"
34107236,Learning Disabilities,Adults,Learning Disability 26 - 64,Income,Client Contribution - Supported Living,DYNAMIC SUPPORT LTD,SN25,15/07/2022,-112.00
34107236,Learning Disabilities,Adults,Learning Disability 26 - 64,3rd Party Payments,Supported Living,DYNAMIC SUPPORT LTD,SN25,15/07/2022,"-5,446.14"
34107236,Learning Disabilities,Adults,Learning Disability 26 - 64,3rd Party Payments,Supported Living,DYNAMIC SUPPORT LTD,SN25,15/07/2022,122.64
34107236,Learning Disabilities,Adults,Learning Disability 26 - 64,3rd Party Payments,Supported Living,DYNAMIC SUPPORT LTD,SN25,15/07/2022,142.08
34107236,Mental Health,Adults,Mental Health 18-64,3rd Party Payments,Supported Living,DYNAMIC SUPPORT LTD,SN25,15/07/2022,"-18,349.07"
34107236,Learning Disabilities,Adults,Learning Disability 26 - 64,Income,Client Contribution - Supported Living,DYNAMIC SUPPORT LTD,SN25,15/07/2022,-258.12
34107236,Learning Disabilities,Adults,Learning Disability 26 - 64,3rd Party Payments,Supported Living,DYNAMIC SUPPORT LTD,SN25,15/07/2022,"4,688.64"
34107236,Mental Health,Adults,Mental Health 18-64,3rd Party Payments,Supported Living,DYNAMIC SUPPORT LTD,SN25,15/07/2022,"-16,086.86"
34107236,Mental Health,Adults,Mental Health 18-64,3rd Party Payments,Supported Living,DYNAMIC SUPPORT LTD,SN25,15/07/2022,"22,595.79"
34107236,Learning Disabilities,Adults,Learning Disability 26 - 64,3rd Party Payments,Supported Living,DYNAMIC SUPPORT LTD,SN25,15/07/2022,"1,342.76"
34107236,Learning Disabilities,Adults,Learning Disability 26 - 64,3rd Party Payments,Supported Living,DYNAMIC SUPPORT LTD,SN25,15/07/2022,903.32
34107236,Learning Disabilities,Adults,Learning Disability 26 - 64,3rd Party Payments,Supported Living,DYNAMIC SUPPORT LTD,SN25,15/07/2022,671.36
34107236,Learning Disabilities,Adults,Learning Disability 65 and over,3rd Party Payments,Supported Living,DYNAMIC SUPPORT LTD,SN25,15/07/2022,"2,685.48"
34107236,Learning Disabilities,Adults,Learning Disability 65 and over,3rd Party Payments,Supported Living,DYNAMIC SUPPORT LTD,SN25,15/07/2022,"3,480.96"
34107236,Mental Health,Adults,Mental Health 18-64,3rd Party Payments,Supported Living,DYNAMIC SUPPORT LTD,SN25,15/07/2022,"-11,205.29"
34107236,Learning Disabilities,Adults,Learning Disability 26 - 64,3rd Party Payments,Supported Living,DYNAMIC SUPPORT LTD,SN25,15/07/2022,"-2,014.11"
34107236,Learning Disabilities,Adults,Learning Disability 26 - 64,3rd Party Payments,Supported Living,DYNAMIC SUPPORT LTD,SN25,15/07/2022,"2,244.00"
34107236,Learning Disabilities,Adults,Learning Disability 26 - 64,3rd Party Payments,Supported Living,DYNAMIC SUPPORT LTD,SN25,15/07/2022,"1,072.00"
34107236,Learning Disabilities,Adults,Learning Disability 26 - 64,3rd Party Payments,Supported Living,DYNAMIC SUPPORT LTD,SN25,15/07/2022,"6,464.64"
34107236,Learning Disabilities,Adults,Learning Disability 26 - 64,3rd Party Payments,Supported Living,DYNAMIC SUPPORT LTD,SN25,15/07/2022,532.80
32220233,Physical Support,Adults,Physical Support 65 and over,3rd Party Payments,Personal Budget - Domiciliary care,DYNAMIC SUPPORT LTD,SN25,06/07/2022,"7,457.28"
34107236,Learning Disabilities,Adults,Learning Disability 26 - 64,Income,Client Contribution - Supported Living,DYNAMIC SUPPORT LTD,SN25,15/07/2022,-18.12
34107236,Learning Disabilities,Adults,Learning Disability 26 - 64,3rd Party Payments,Supported Living,DYNAMIC SUPPORT LTD,SN25,15/07/2022,"-4,719.09"
34107236,Learning Disabilities,Adults,Learning Disability 26 - 64,3rd Party Payments,Supported Living,DYNAMIC SUPPORT LTD,SN25,15/07/2022,"1,562.88"
34107236,Learning Disabilities,Adults,Learning Disability 26 - 64,3rd Party Payments,Supported Living,DYNAMIC SUPPORT LTD,SN25,15/07/2022,"2,486.40"
34107236,Learning Disabilities,Adults,Learning Disability 26 - 64,3rd Party Payments,Supported Living,DYNAMIC SUPPORT LTD,SN25,15/07/2022,"2,770.56"
34107236,Physical Support,Adults,Physical Support 65 and over,3rd Party Payments,Supported Living,DYNAMIC SUPPORT LTD,SN25,15/07/2022,"4,475.52"
34107236,Mental Health,Adults,Mental Health 18-64,3rd Party Payments,Supported Living,DYNAMIC SUPPORT LTD,SN25,15/07/2022,"-9,499.23"
34107236,Learning Disabilities,Adults,Learning Disability 26 - 64,Income,Client Contribution - Personal Budget � Fairer Charging,DYNAMIC SUPPORT LTD,SN25,15/07/2022,-135.60
34107236,Learning Disabilities,Adults,Learning Disability 26 - 64,3rd Party Payments,Supported Living,DYNAMIC SUPPORT LTD,SN25,15/07/2022,"9,499.23"
34107236,Learning Disabilities,Adults,Learning Disability 26 - 64,3rd Party Payments,Supported Living,DYNAMIC SUPPORT LTD,SN25,15/07/2022,"1,847.04"
34107236,Learning Disabilities,Adults,Learning Disability 26 - 64,3rd Party Payments,Supported Living,DYNAMIC SUPPORT LTD,SN25,15/07/2022,"2,344.32"
34107236,Learning Disabilities,Adults,Learning Disability 26 - 64,3rd Party Payments,Supported Living,DYNAMIC SUPPORT LTD,SN25,15/07/2022,"7,459.20"
34107236,Learning Disabilities,Adults,Learning Disability 26 - 64,3rd Party Payments,Supported Living,DYNAMIC SUPPORT LTD,SN25,15/07/2022,"4,475.52"
34107236,Learning Disabilities,Adults,Learning Disability 26 - 64,3rd Party Payments,Supported Living,DYNAMIC SUPPORT LTD,SN25,15/07/2022,"7,175.04"
34107236,Learning Disabilities,Adults,Learning Disability 26 - 64,3rd Party Payments,Supported Living,DYNAMIC SUPPORT LTD,SN25,15/07/2022,426.24
34107236,Learning Disabilities,Adults,Learning Disability 26 - 64,3rd Party Payments,Supported Living,DYNAMIC SUPPORT LTD,SN25,15/07/2022,"4,984.56"
32511236,Learning Disabilities,Adults,Learning Disability 26 - 64,3rd Party Payments,Personal Budget - Domiciliary care,DYNAMIC SUPPORT LTD,SN25,08/07/2022,586.08
36940233,Early Help,"Children, Families and Community Health Services",Public Health 0 - 5 years,Supplies and Services,Equipment,DYSLEXIA BOX LIMITED,CB4 ,29/07/2022,"3,126.00"
36941233,Early Help,"Children, Families and Community Health Services",Public Health 0 - 5 years,Supplies and Services,Equipment,DYSLEXIA BOX LIMITED,CB4 ,29/07/2022,"1,774.00"
33657233,DSG Other Funding,DSG Skills and Attainment,LAC pupil premium,Supplies and Services,Services,DYSON PERRINS CHURCH OF ENGLAND ACADEMY,WR14,20/07/2022,650.00
34236233,DSG Other Funding,DSG Skills and Attainment,LAC pupil premium,Supplies and Services,Services,DYSON PERRINS CHURCH OF ENGLAND ACADEMY,WR14,18/07/2022,650.00
33744233,Property & Assets,Property & Assets,Health Hydro Improvements,Capital,Contractor Payments,E W BEARD LTD,SN3 ,13/07/2022,"12,543.12"
32727233,Town Centre,"Economy, Growth and Place","No 7, 9 & 11 Carriage works @ Railway Village",Capital,Contractor Payments,E W BEARD LTD,SN3 ,08/07/2022,"152,621.47"
36902233,Environmental & Regulatory,Highways & Transport,Shaw Farm Landfill Site,Supplies and Services,Testing / Inspection,EARTH DIRECT LTD,WV10,29/07/2022,"2,599.87"
34201248,Schools - Primary,DSG Skills and Attainment,Primary School Budgets,3rd Party Payments,Mainstream Delegated Funding,EAST WICHEL COMMUNITY PRIMARY SCHOOL,SN1 ,18/07/2022,"133,266.00"
34194237,Schools Block - Central,DSG Skills and Attainment,Universal Infant Free School Meals,Supplies and Services,Payments to Educational Bodies,EAST WICHEL COMMUNITY PRIMARY SCHOOL,SN1 ,18/07/2022,"29,783.00"
34237233,DSG Other Funding,DSG Skills and Attainment,LAC pupil premium,Supplies and Services,Services,EAST WICHEL COMMUNITY PRIMARY SCHOOL,SN1 ,18/07/2022,650.00
34213235,DSG Other Funding,DSG Skills and Attainment,DFE Additional Grants,Supplies and Services,Payments to Educational Bodies,EAST WICHEL COMMUNITY PRIMARY SCHOOL,SN1 ,18/07/2022,"2,138.75"
33531234,Early Years Block,DSG Skills and Attainment,Free Nursery Education Commissioning - three & four  year olds,3rd Party Payments,Contracts - Child Care,EAST WICHEL COMMUNITY PRIMARY SCHOOL,SN1 ,13/07/2022,"13,255.36"
34194238,Schools Block - Central,DSG Skills and Attainment,Universal Infant Free School Meals,Supplies and Services,Payments to Educational Bodies,EAST WICHEL COMMUNITY PRIMARY SCHOOL,SN1 ,18/07/2022,"18,290.00"
33254236,High Needs Block,DSG Skills and Attainment,SEN Resourcing Assessment Panel,3rd Party Payments,Top up funding - Maintained providers Pre 16,EAST WICHEL COMMUNITY PRIMARY SCHOOL,SN1 ,13/07/2022,"4,984.17"
34201247,DSG Other Funding,DSG Skills and Attainment,DFE Additional Grants,3rd Party Payments,Payment of Pupil Premium to school,EAST WICHEL COMMUNITY PRIMARY SCHOOL,SN1 ,18/07/2022,"7,112.00"
34091243,Learning Disabilities,Adults,Learning Disability 26 - 64,3rd Party Payments,Residential Care,EASTERBROOK FARM LTD,EX20,15/07/2022,"4,494.52"
34091243,Learning Disabilities,Adults,Learning Disability 26 - 64,Income,Client Contribution - Residential,EASTERBROOK FARM LTD,EX20,15/07/2022,-347.00
31935233,DSG Other Funding,DSG Skills and Attainment,LAC pupil premium,3rd Party Payments,Education / Training,EB EDUCATION SERVICES LTD,SK4 ,04/07/2022,"12,908.75"
33720235,Streetsmart,Streetsmart,Waterside Fleet Workshops,Supplies and Services,Materials,ECON ENGINEERING LTD,HG4 ,13/07/2022,654.44
34097233,Physical Support,Adults,Physical Support 65 and over,Income,Client Contribution - Residential,EDGE HILL,DT5 ,15/07/2022,"-4,857.17"
34097233,Physical Support,Adults,Physical Support 65 and over,3rd Party Payments,Residential Care,EDGE HILL,DT5 ,15/07/2022,"2,560.12"
34097233,Mental Health,Adults,Mental Health 65 and over,Income,Client Contribution - Residential,EDGE HILL,DT5 ,15/07/2022,-441.48
34097233,Physical Support,Adults,Physical Support 65 and over,Income,Client Contribution - Residential,EDGE HILL,DT5 ,15/07/2022,"1,024.46"
34097233,Physical Support,Adults,Physical Support 65 and over,Income,Client Contribution - Residential,EDGE HILL,DT5 ,15/07/2022,-729.44
34097233,Physical Support,Adults,Physical Support 65 and over,Income,Client Contribution - Residential,EDGE HILL,DT5 ,15/07/2022,-569.40
34097233,Physical Support,Adults,Physical Support 65 and over,Income,Client Contribution - Residential,EDGE HILL,DT5 ,15/07/2022,-627.80
34097233,Physical Support,Adults,Physical Support 65 and over,3rd Party Payments,Residential Care,EDGE HILL,DT5 ,15/07/2022,"-10,149.05"
34097233,Physical Support,Adults,Physical Support 65 and over,3rd Party Payments,Residential Care,EDGE HILL,DT5 ,15/07/2022,"3,400.00"
34097233,Physical Support,Adults,Physical Support 65 and over,3rd Party Payments,Residential Care,EDGE HILL,DT5 ,15/07/2022,"3,328.00"
34097233,Physical Support,Adults,Physical Support 65 and over,Income,Client Contribution - Residential,EDGE HILL,DT5 ,15/07/2022,"1,355.57"
34097233,Physical Support,Adults,Physical Support 65 and over,Income,Client Contribution - Residential,EDGE HILL,DT5 ,15/07/2022,"4,459.04"
34097233,Physical Support,Adults,Physical Support 65 and over,Income,Client Contribution - Residential,EDGE HILL,DT5 ,15/07/2022,42.41
34097233,Physical Support,Adults,Physical Support 65 and over,Income,Client Contribution - Residential,EDGE HILL,DT5 ,15/07/2022,"-1,302.04"
34097233,Physical Support,Adults,Physical Support 65 and over,Income,Client Contribution - Residential,EDGE HILL,DT5 ,15/07/2022,-871.20
34097233,Physical Support,Adults,Physical Support 65 and over,3rd Party Payments,Residential Care,EDGE HILL,DT5 ,15/07/2022,-914.33
34097233,Physical Support,Adults,Physical Support 65 and over,Income,Client Contribution - Residential,EDGE HILL,DT5 ,15/07/2022,-608.80
34097233,Physical Support,Adults,Physical Support 65 and over,Income,Client Contribution - Residential,EDGE HILL,DT5 ,15/07/2022,-852.01
34097233,Physical Support,Adults,Physical Support 65 and over,Income,Client Contribution - Residential,EDGE HILL,DT5 ,15/07/2022,"-2,322.10"
34097233,Physical Support,Adults,Physical Support 65 and over,3rd Party Payments,Residential Care,EDGE HILL,DT5 ,15/07/2022,-87.08
34097233,Physical Support,Adults,Physical Support 65 and over,3rd Party Payments,Residential Care,EDGE HILL,DT5 ,15/07/2022,"-6,530.89"
34097233,Physical Support,Adults,Physical Support 65 and over,3rd Party Payments,Residential Care,EDGE HILL,DT5 ,15/07/2022,"2,384.04"
34097233,Physical Support,Adults,Physical Support 65 and over,3rd Party Payments,Residential Care,EDGE HILL,DT5 ,15/07/2022,"2,844.24"
34097233,Physical Support,Adults,Physical Support 65 and over,Income,Client Contribution - Residential,EDGE HILL,DT5 ,15/07/2022,"4,707.67"
34097233,Physical Support,Adults,Physical Support 65 and over,Income,Client Contribution - Residential,EDGE HILL,DT5 ,15/07/2022,"2,407.96"
34097233,Physical Support,Adults,Physical Support 65 and over,Income,Client Contribution - Residential,EDGE HILL,DT5 ,15/07/2022,"-2,388.77"
34097233,Physical Support,Adults,Physical Support 65 and over,Income,Client Contribution - Residential,EDGE HILL,DT5 ,15/07/2022,"-1,127.84"
34097233,Physical Support,Adults,Physical Support 65 and over,Income,Client Contribution - Residential,EDGE HILL,DT5 ,15/07/2022,-879.52
34097233,Physical Support,Adults,Physical Support 65 and over,Income,Client Contribution - Residential,EDGE HILL,DT5 ,15/07/2022,-862.80
34097233,Physical Support,Adults,Physical Support 65 and over,Income,Client Contribution - Residential,EDGE HILL,DT5 ,15/07/2022,-818.56
34097233,Physical Support,Adults,Physical Support 65 and over,Income,Client Contribution - Residential,EDGE HILL,DT5 ,15/07/2022,-726.24
34097233,Physical Support,Adults,Physical Support 65 and over,Income,Client Contribution - Residential,EDGE HILL,DT5 ,15/07/2022,-747.52
34097233,Physical Support,Adults,Physical Support 65 and over,Income,Client Contribution - Residential,EDGE HILL,DT5 ,15/07/2022,-343.72
34097233,Physical Support,Adults,Physical Support 65 and over,3rd Party Payments,Residential Care,EDGE HILL,DT5 ,15/07/2022,"2,668.72"
34097233,Physical Support,Adults,Physical Support 65 and over,3rd Party Payments,Residential Care,EDGE HILL,DT5 ,15/07/2022,"11,154.81"
34097233,Mental Health,Adults,Mental Health 65 and over,3rd Party Payments,Residential Care,EDGE HILL,DT5 ,15/07/2022,"3,680.00"
34097233,Physical Support,Adults,Physical Support 65 and over,Income,Client Contribution - Residential,EDGE HILL,DT5 ,15/07/2022,408.13
34097233,Physical Support,Adults,Physical Support 65 and over,Income,Client Contribution - Residential,EDGE HILL,DT5 ,15/07/2022,"-4,654.08"
34097233,Physical Support,Adults,Physical Support 65 and over,Income,Client Contribution - Residential,EDGE HILL,DT5 ,15/07/2022,"-1,368.48"
34097233,Physical Support,Adults,Physical Support 65 and over,Income,Client Contribution - Residential,EDGE HILL,DT5 ,15/07/2022,-947.12
34097233,Physical Support,Adults,Physical Support 65 and over,Income,Client Contribution - Residential,EDGE HILL,DT5 ,15/07/2022,-655.84
34097233,Physical Support,Adults,Physical Support 65 and over,3rd Party Payments,Residential Care,EDGE HILL,DT5 ,15/07/2022,-91.43
34097233,Mental Health,Adults,Mental Health 65 and over,3rd Party Payments,Residential Care,EDGE HILL,DT5 ,15/07/2022,"2,560.12"
34097233,Physical Support,Adults,Physical Support 18 - 64,3rd Party Payments,Residential Care,EDGE HILL,DT5 ,15/07/2022,"2,560.12"
34097233,Physical Support,Adults,Physical Support 65 and over,Income,Client Contribution - Residential,EDGE HILL,DT5 ,15/07/2022,40.81
34097233,Physical Support,Adults,Physical Support 65 and over,Income,Client Contribution - Residential,EDGE HILL,DT5 ,15/07/2022,"-1,378.16"
34097233,Physical Support,Adults,Physical Support 65 and over,Income,Client Contribution - Residential,EDGE HILL,DT5 ,15/07/2022,-649.04
34097233,Physical Support,Adults,Physical Support 65 and over,Income,Client Contribution - Residential,EDGE HILL,DT5 ,15/07/2022,-576.92
34097233,Memory & Cognition,Adults,Support for Memory and Cognition 65 and over,3rd Party Payments,Residential Care,EDGE HILL,DT5 ,15/07/2022,"2,560.12"
34097233,Physical Support,Adults,Physical Support 65 and over,Income,Client Contribution - Residential,EDGE HILL,DT5 ,15/07/2022,"-1,431.36"
34097233,Physical Support,Adults,Physical Support 65 and over,Income,Client Contribution - Residential,EDGE HILL,DT5 ,15/07/2022,"-1,163.52"
34097233,Physical Support,Adults,Physical Support 65 and over,Income,Client Contribution - Residential,EDGE HILL,DT5 ,15/07/2022,-729.60
34097233,Physical Support,Adults,Physical Support 65 and over,Income,Client Contribution - Residential,EDGE HILL,DT5 ,15/07/2022,-657.56
34097233,Physical Support,Adults,Physical Support 65 and over,Income,Client Contribution - Residential,EDGE HILL,DT5 ,15/07/2022,18.07
34097233,Physical Support,Adults,Physical Support 65 and over,Income,Client Contribution - Residential,EDGE HILL,DT5 ,15/07/2022,"-1,906.76"
34097233,Physical Support,Adults,Physical Support 65 and over,Income,Client Contribution - Residential,EDGE HILL,DT5 ,15/07/2022,-745.80
34097233,Physical Support,Adults,Physical Support 65 and over,Income,Client Contribution - Residential,EDGE HILL,DT5 ,15/07/2022,-595.40
34097233,Physical Support,Adults,Physical Support 65 and over,Income,Client Contribution - Residential,EDGE HILL,DT5 ,15/07/2022,-567.28
34097233,Physical Support,Adults,Physical Support 65 and over,3rd Party Payments,Residential Care,EDGE HILL,DT5 ,15/07/2022,"-5,137.64"
34097233,Physical Support,Adults,Physical Support 65 and over,3rd Party Payments,Residential Care,EDGE HILL,DT5 ,15/07/2022,"4,614.29"
34097233,Physical Support,Adults,Physical Support 65 and over,3rd Party Payments,Residential Care,EDGE HILL,DT5 ,15/07/2022,"11,842.69"
34097233,Memory & Cognition,Adults,Support for Memory and Cognition 65 and over,Income,Client Contribution - Residential,EDGE HILL,DT5 ,15/07/2022,-942.56
34097233,Physical Support,Adults,Physical Support 65 and over,Income,Client Contribution - Residential,EDGE HILL,DT5 ,15/07/2022,-984.52
36675233,Responsive Repairs,Repairs,Responsive Repairs,Supplies and Services,Materials,EDMUNDSON ELECTRICAL LTD,SN2 ,29/07/2022,549.13
32636233,Treasury,Corporate Finance,Private Finance Initiatives (PFI),Supplies and Services,Service Charges,EDUCATION SUPPORT (SWINDON) LTD,BR8 ,08/07/2022,"2,911.60"
32636233,Treasury,Corporate Finance,Private Finance Initiatives (PFI),Income,Settlements,EDUCATION SUPPORT (SWINDON) LTD,BR8 ,08/07/2022,-913.54
32636233,Treasury,Corporate Finance,Private Finance Initiatives (PFI),3rd Party Payments,Contract Payments,EDUCATION SUPPORT (SWINDON) LTD,BR8 ,08/07/2022,"951,418.51"
33237233,,,Balance Sheet,Balance Sheet & Recharge,Mobile phone invoices,EE (EVERYTHING EVERYWHERE),S98 ,13/07/2022,"7,630.50"
34584233,Planning & Regulatory,Strategic Planning,Planning Development,Employees,Temporary / Agency - by Accounts Payable,EGGLETON PLANNING AND DESIGN LTD,HG4 ,18/07/2022,"1,716.00"
36937233,Planning & Regulatory,Strategic Planning,Planning Development,Employees,Temporary / Agency - by Accounts Payable,EGGLETON PLANNING AND DESIGN LTD,HG4 ,29/07/2022,"1,800.00"
34585233,Planning & Regulatory,Strategic Planning,Planning Development,Employees,Temporary / Agency - by Accounts Payable,EGGLETON PLANNING AND DESIGN LTD,HG4 ,18/07/2022,"1,152.00"
34566234,Social Care,"Children, Families and Community Health Services",Placement Fostering Service,3rd Party Payments,Carers Skills Payments - Qualified,REDACTED PERSONAL DATA,SN5 ,18/07/2022,160.00
31844233,Social Care,"Children, Families and Community Health Services",Placement Fostering Service,3rd Party Payments,Foster Care Basic Payments,REDACTED PERSONAL DATA,SN5 ,04/07/2022,491.52
31844233,Social Care,"Children, Families and Community Health Services",Placement Fostering Service,3rd Party Payments,Carers Skills Payments - Qualified,REDACTED PERSONAL DATA,SN5 ,04/07/2022,160.00
34566234,Social Care,"Children, Families and Community Health Services",Placement Fostering Service,3rd Party Payments,Foster Care Basic Payments,REDACTED PERSONAL DATA,SN5 ,18/07/2022,491.52
34394233,Learning Disabilities,Adults,Learning Disability 26 - 64,3rd Party Payments,Supported Accommodation Scheme,REDACTED PERSONAL DATA,SN25,20/07/2022,"1,671.04"
33533237,Early Years Block,DSG Skills and Attainment,Free Nursery Education Commissioning - three & four  year olds,3rd Party Payments,Contracts - Child Care,ELDENE PRE-SCHOOL,SN3 ,13/07/2022,"9,502.68"
33533238,Early Years Block,DSG Skills and Attainment,Free Nursery Education Commissioning - two year olds,3rd Party Payments,Contracts - Child Care,ELDENE PRE-SCHOOL,SN3 ,13/07/2022,"4,836.07"
34237234,DSG Other Funding,DSG Skills and Attainment,LAC pupil premium,Supplies and Services,Services,ELDENE PRIMARY SCHOOL,SN3 ,18/07/2022,650.00
34206233,DSG Other Funding,DSG Skills and Attainment,DFE Additional Grants,Supplies and Services,Payments to Educational Bodies,ELDENE PRIMARY SCHOOL,SN3 ,18/07/2022,"4,711.25"
34202237,High Needs Block,DSG Skills and Attainment,SRP (Special Resource Provision) Place,3rd Party Payments,HNB- Place Funding pre 16,ELDENE PRIMARY SCHOOL,SN3 ,18/07/2022,"5,000.00"
33263233,High Needs Block,DSG Skills and Attainment,SEN Resourcing Assessment Panel,3rd Party Payments,Top up funding - Maintained providers Pre 16,ELDENE PRIMARY SCHOOL,SN3 ,13/07/2022,"8,194.17"
34198235,Schools - Primary,DSG Skills and Attainment,Primary School Budgets,3rd Party Payments,Mainstream Delegated Funding,ELDENE PRIMARY SCHOOL,SN3 ,18/07/2022,"128,237.00"
34198236,DSG Other Funding,DSG Skills and Attainment,DFE Additional Grants,3rd Party Payments,Payment of Pupil Premium to school,ELDENE PRIMARY SCHOOL,SN3 ,18/07/2022,"14,972.00"
34191234,Schools Block - Central,DSG Skills and Attainment,Universal Infant Free School Meals,Supplies and Services,Payments to Educational Bodies,ELDENE PRIMARY SCHOOL,SN3 ,18/07/2022,"12,037.00"
33250233,High Needs Block,DSG Skills and Attainment,SEN Resourcing Assessment Panel,3rd Party Payments,Top up funding - Maintained providers Pre 16,ELDENE PRIMARY SCHOOL,SN3 ,13/07/2022,"8,511.26"
34191233,Schools Block - Central,DSG Skills and Attainment,Universal Infant Free School Meals,Supplies and Services,Payments to Educational Bodies,ELDENE PRIMARY SCHOOL,SN3 ,18/07/2022,"20,301.00"
33533234,Early Years Block,DSG Skills and Attainment,Free Nursery Education Commissioning - three & four  year olds,3rd Party Payments,Contracts - Child Care,ELDENE PRIMARY SCHOOL,SN3 ,13/07/2022,"12,788.57"
34237235,DSG Other Funding,DSG Skills and Attainment,LAC pupil premium,Supplies and Services,Services,ELDENE PRIMARY SCHOOL,SN3 ,18/07/2022,650.00
35363233,Public Health,Public Health,Health Checks,3rd Party Payments,Contract Payments,ELDENE SURGERY,SN3 ,25/07/2022,506.00
37053248,Learning Disabilities,Adults,Learning Disability 26 - 64,Transfer Payments,Personal Budget - Direct Payments - Other,REDACTED PERSONAL DATA,SP11,29/07/2022,548.46
31871233,Corporate,Corporate Finance,Chief Executive's Office,Supplies and Services,Subscriptions,EMAP PUBLISHING LTD,EC2A,04/07/2022,"2,266.94"
35240233,Responsive Repairs,Repairs,Responsive Repairs,Supplies and Services,Materials,EMERGENCY SECURITY SERVICES LTD,SN2 ,20/07/2022,877.82
35250233,Responsive Repairs,Repairs,Responsive Repairs,Supplies and Services,Materials,EMERGENCY SECURITY SERVICES LTD,SN2 ,20/07/2022,"1,125.64"
35251234,Responsive Repairs,Repairs,Responsive Repairs,Supplies and Services,Materials,EMERGENCY SECURITY SERVICES LTD,SN2 ,20/07/2022,"1,791.87"
37097233,Void Repairs,Supervision & Management,Void Property Repairs,Supplies and Services,Materials,EMERGENCY SECURITY SERVICES LTD,SN2 ,29/07/2022,259.90
35247233,Responsive Repairs,Repairs,Responsive Repairs,Supplies and Services,Materials,EMERGENCY SECURITY SERVICES LTD,SN2 ,20/07/2022,"1,785.47"
35252233,Responsive Repairs,Repairs,Responsive Repairs,Supplies and Services,Materials,EMERGENCY SECURITY SERVICES LTD,SN2 ,20/07/2022,825.64
32273233,Responsive Repairs,Repairs,Responsive Repairs,3rd Party Payments,Contract Payments,EMERGENCY SECURITY SERVICES LTD,SN2 ,06/07/2022,901.13
37097233,Void Repairs,Supervision & Management,Void Property Repairs,Supplies and Services,Materials,EMERGENCY SECURITY SERVICES LTD,SN2 ,29/07/2022,199.90
35244233,Responsive Repairs,Repairs,Responsive Repairs,Supplies and Services,Materials,EMERGENCY SECURITY SERVICES LTD,SN2 ,20/07/2022,818.75
31319234,Responsive Repairs,Repairs,Responsive Repairs,Supplies and Services,Materials,EMERGENCY SECURITY SERVICES LTD,SN2 ,01/07/2022,988.20
33534235,Early Years Block,DSG Skills and Attainment,Free Nursery Education Commissioning - three & four  year olds,3rd Party Payments,Contracts - Child Care,REDACTED PERSONAL DATA,SN25,13/07/2022,796.58
33535233,Early Years Block,DSG Skills and Attainment,Free Nursery Education Commissioning - two year olds,3rd Party Payments,Contracts - Child Care,REDACTED PERSONAL DATA,SN25,13/07/2022,"1,076.40"
33387233,Early Years Block,DSG Skills and Attainment,Free Nursery Education Commissioning - three & four  year olds,3rd Party Payments,Contracts - Child Care,REDACTED PERSONAL DATA,SN4 ,13/07/2022,678.60
37053335,Learning Disabilities,Adults,Learning Disability 26 - 64,3rd Party Payments,Carers,REDACTED PERSONAL DATA,SP11,29/07/2022,648.32
32634233,Human Resources and Organisational Development,"People, Culture and Organisational Resilience",Organisational Development,Employees,Training,ENERGY DEVELOPMENT SERVICES LIMITED,SN4 ,08/07/2022,65.00
